Workbook

Sheet Anleitung
C3: EWI Merit-Order Tool 2020
C5: Kurzanleitung | E5: =Impressum!F5 -> Version 2020.1.1
D8: Um alle Funktionen des EWI Merit-Order Tools 2020 nutzen zu können, müssen Makros aktiviert werden.
D10: Die Merit-Order
D11: Als Merit-Order wird die Einsatzreihenfolge der an der Strombörse anbietenden Kraftwerke bezeichnet. Sie orientiert sich an den Grenzkosten der Kraftwerke, diese werden aufsteigend sortiert. Es handelt sich dabei um eine Annäherung an die tatsächlichen Angebotskurven bspw. der Day-Ahead-Auktion an der Strombörse. Die jährlich mittlere Merit-Order des deutschen Kraftwerksparks gibt einen guten Überblick über die Verhältnisse der Grenzkosten der Kraftwerke entsprechend aktueller Bedingungen. Die Merit-Order wird dabei insbesondere vom Kraftwerkspark und den zugrundeliegenden Brennstoffpreisen und Emissionszertifikatspreisen beeinflusst.
D13: Das EWI Merit-Order Tool 2020
D14: Das EWI Merit-Order Tool 2020 ermöglicht die Ermittlung und grafische Repräsentation der jährlichen mittleren Merit-Order basierend auf dem konventionellen Kraftwerkspark 2019. Benutzer*innen können die der Merit-Order zugrundeliegenden Annahmen variieren, um den Effekt veränderter Brennstoffpreise oder anderer Annahmen auf die Merit-Order zu untersuchen. Zusätzlich besteht die Möglichkeit, Kraftwerke aus der Merit-Order zu entfernen oder hinzuzufügen. Nutzer*innen können also auch den Einfluss von Kraftwerksstilllegungen oder -zubauten auf die Merit-Order analysieren und visualisieren. Als Standardeinstellung wird nur die Merit-Order der konventionellen Kraftwerke ausgegeben. Um die Merit-Order in Abhängigkeit konkreter Einspeisesituationen erneuerbarer-Energien-Anlagen (EE-Anlagen) abzubilden, kann außerdem eine Annahme zur verfügbaren EE-Leistung getroffen werden.
D16: Bedienung:
D18: Start:
D19: Im Tabellenblatt Start können die der Merit-Order zugrundeliegenden Annahmen angepasst werden. Die Standardannahmen bilden die Merit-Order konventioneller Kraftwerke des Jahres 2019 ab. Um einen Überblick über die Auswirkungen veränderter Annahmen auf die Merit-Order zu geben, wird die Verteilung der Grenzkosten der Kraftwerke als Boxplot-Diagramm visualisiert. Außerdem kann eine Annahme zur EE-Erzeugung getroffen werden.
D21: Über die Schaltfläche Annahmen zurücksetzen können die Annahmen auf die Standardwerte zurückgesetzt werden.
D23: Bei Aktivierung des Schalters Merit-Order aktualisieren wird die Merit-Order im Tabellenblatt Merit-Order, basierend auf den gewählten Annahmen, neu aufgestellt.
D25: Merit-Order:
D26: Im Tabellenblatt Merit-Order wird die Merit-Order visualisiert. Die Darstellung gibt die Merit-Order blockscharf wieder. Dabei werden die einzelnen Kraftwerkstypen farblich kenntlich gemacht. Zusätzlich wird die Merit-Order als nach Grenzkosten sortierte Liste der Kraftwerksblöcke dargestellt. Die Merit-Order wird bei Aktivierung der Schaltfläche Merit-Order aktualisieren neu berechnet.
D28: Kraftwerksliste:
D29: In der Kraftwerksliste werden alle Kraftwerksblöcke und die dazugehörigen Annahmen dargestellt. Einzelne Annahmen können verändert werden. Zusätzlich können Kraftwerke aus der Merit-Order entfernt oder hinzugefügt werden.
D31: Eine ausführliche Dokumentation gibt es auf unserer Website:
D32: www.ewi.uni-koeln.de/de/news/ewi-merit-order-tool-2020/

Sheet Start
C3: EWI Merit-Order Tool 2020
C5: Start | P5: =Impressum!F5 -> Version 2020.1.1
C7: Brennstoffkosten | H7: Übersicht über die Grenzkosten der Kraftwerke
C8: Brennstoff | D8: Kosten | E8: Einheit | F8: Quelle | H8: Das Boxplot-Diagramm gibt einen ersten Überblick über die Grenzkosten der Kraftwerke. In der Abbildung rechts
C9: Kernenergie | D9: 5.5 | E9: EUR/MWhth | F9: siehe Dokumentation | H9: werden die einzelnen Elemente des Diagramms erläutert. Veränderungen der Annahmen gibt das Diagramm
C10: Braunkohle | D10: 3.1 | E10: EUR/MWhth | F10: EWI (2019) | H10: augenblicklich wieder. Um die Annahmen in die Merit-Order (Tabellenblatt: Merit-Order) zu übernehmen, muss die
C11: Steinkohle | D11: 7.92 | E11: EUR/MWhth | F11: VDKi (2020) | H11: Schaltfläche Aktualisiere Merit-Order aktiviert werden.
C12: Erdgas | D12: 13.57 | E12: EUR/MWhth | F12: Spot TTF
C13: Öl | D13: 33.14 | E13: EUR/MWhth | F13: SDKW (2019)
C14: Abfall | D14: 0 | E14: EUR/MWhth | F14: siehe Dokumentation
C15: Sonstige | D15: 33.14 | E15: EUR/MWhth | F15: siehe Dokumentation
C17: Emissionszertifikatspreis
D18: Kosten | E18: Einheit | F18: Quelle
C19: Emissionszertifikatspreis | D19: 24.86612403 | E19: EUR/tCO2 | F19: Sandbag (2020)
C21: Transportkosten
C22: Kraftwerkstyp | D22: Kosten | E22: Einheit | F22: Quelle
C23: Kernenergie | D23: 0 | E23: EUR/MWhth | F23: siehe Dokumentation
C24: Braunkohle | D24: 0 | E24: EUR/MWhth | F24: siehe Dokumentation
C25: Steinkohle | D25: 1.25 | E25: EUR/MWhth | F25: R2B (2019)
C26: Erdgas | D26: 0.5 | E26: EUR/MWhth | F26: R2B (2019)
C27: Öl | D27: 0.3 | E27: EUR/MWhth | F27: R2B (2019)
C28: Abfall | D28: 0 | E28: EUR/MWhth | F28: siehe Dokumentation
C29: Sonstige | D29: 0 | E29: EUR/MWhth | F29: siehe Dokumentation | H29: Verfügbare EE-Leistung | I29: 0 | J29: MW
C31: Sonstige variable Kosten | H31: Nicht-Verfügbarkeit | M31: Emissionsfaktoren
C32: Kraftwerkstyp | D32: Kosten | E32: Einheit | F32: Quelle | H32: Kraftwerkstyp | J32: Einheit | K32: Quelle | M32: Brennstoff | O32: Einheit | P32: Quelle
C33: Kernenergie | D33: 1.2 | E33: EUR/Mwhel | F33: siehe Dokumentation | H33: Kernenergie | I33: 7 | J33: % | K33: ENTSO-E (2020) | M33: Kernenergie | N33: 0 | O33: tCO2/MWhth | P33: siehe Dokumentation
C34: Braunkohle | D34: 1.7 | E34: EUR/Mwhel | F34: R2B (2019) | H34: Braunkohle | I34: 12 | J34: % | K34: ENTSO-E (2020) | M34: Braunkohle | N34: 0.404 | O34: tCO2/MWhth | P34: ÜNB (2019)
C35: Steinkohle | D35: 1.3 | E35: EUR/Mwhel | F35: R2B (2019) | H35: Steinkohle | I35: 21 | J35: % | K35: ENTSO-E (2020) | M35: Steinkohle | N35: 0.337 | O35: tCO2/MWhth | P35: ÜNB (2019)
C36: GuD | D36: 1.5 | E36: EUR/Mwhel | F36: R2B (2019) | H36: GuD | I36: 13 | J36: % | K36: ENTSO-E (2020) | M36: Erdgas | N36: 0.201 | O36: tCO2/MWhth | P36: ÜNB (2019)
C37: Gasturbine | D37: 1 | E37: EUR/Mwhel | F37: R2B (2019) | H37: Gasturbine | I37: 13 | J37: % | K37: ENTSO-E (2020) | M37: Öl | N37: 0.28 | O37: tCO2/MWhth | P37: ÜNB (2019)
C38: Öl | D38: 1 | E38: EUR/Mwhel | F38: siehe Dokumentation | H38: Öl | I38: 15 | J38: % | K38: siehe Dokumentation | M38: Abfall | N38: 0 | O38: tCO2/MWhth | P38: siehe Dokumentation
C39: Abfall | D39: 1 | E39: EUR/Mwhel | F39: siehe Dokumentation | H39: Abfall | I39: 15 | J39: % | K39: siehe Dokumentation | M39: Sonstige | N39: 0.214 | O39: tCO2/MWhth | P39: ÜNB (2019)
C40: Sonstige | D40: 1 | E40: EUR/Mwhel | F40: siehe Dokumentation | H40: Sonstige | I40: 15 | J40: % | K40: siehe Dokumentation

Sheet Merit-Order
C3: EWI Merit-Order Tool 2020
C5: Merit-Order | K5: =Impressum!F5 -> Version 2020.1.1
C7: Grafische Darstellung der Merit-Order
C10: Merit-Order in tabellarischer Form
C11: Kraftwerksnummer der Bundesnetzagentur | D11: Unternehmen | E11: Kraftwerksname | F11: Blockname | G11: Aufnahme der kommerziellen Stromerzeugung | H11: Kraftwerkstyp | I11: Durchschnittliche verfügbare Nettonennleistung [MW] | J11: Kumulierte verfügbare Nettonennleistung [MW] | K11: Grenzkosten [EUR/MWhel]
C12: BNA0084 | D12: Vattenfall Wärme Berlin AG | E12: Reuter | F12: Reuter M | G12: 30.10.1998 | H12: Abfall | I12: 30.6 | J12: 30.6 | K12: 1
C13: BNA0088b | D13: Solvay Chemicals GmbH | E13: Dampfturbinenanlage der EBS-Kessel | G13: 16.10.2009 | H13: Abfall | I13: 29.75 | J13: 60.35 | K13: 1
C14: BNA0097 | D14: MVA Bielefeld-Herford GmbH | E14: MVA Bielefeld | F14: Linien 1 - 3 | G14: 01.07.1981 | H14: Abfall | I14: 28.9 | J14: 89.25 | K14: 1
C15: BNA0117a | D15: Energie- und Wasserversorgung Bonn/Rhein-Sieg GmbH | E15: Heizkraftwerk Karlstraße | F15: Heizkraftwerk Karlstraße | G15: 01.07.1990 | H15: Abfall | I15: 10.2 | J15: 99.45 | K15: 1
C16: BNA0139 | D16: swb Entsorgung GmbH & Co. KG | E16: KW Hafen | F16: MKK | G16: 2009 | H16: Abfall | I16: 28.05 | J16: 127.5 | K16: 1
C17: BNA0223b | D17: Stadtwerke Düsseldorf AG | E17: DT | F17: Flingern T1 | G17: 17.04.2000 | H17: Abfall | I17: 45.645 | J17: 173.145 | K17: 1
C18: BNA0237 | D18: Progroup Power 1 GmbH | E18: EBS-Heizkraftwerk | G18: 10.02.2011 | H18: Abfall | I18: 19.975 | J18: 193.12 | K18: 1
C19: BNA0287a | D19: Mainova AG | E19: MHKW Frankfurt | F19: T 3 (nur alleiniger Betrieb, kein gemeinsamer Betrieb mit T 7 möglich) | G19: 01.01.1969 | H19: Abfall | I19: 22.1 | J19: 215.22 | K19: 1
C20: BNA0287b | D20: Mainova AG | E20: MHKW Frankfurt | F20: T 7 (nur alleiniger Betrieb, kein gemeinsamer Betrieb mit T 3 möglich) | G20: 01.01.2006 | H20: Abfall | I20: 39.525 | J20: 254.745 | K20: 1
C21: BNA0380 | D21: EEW Energy from Waste Großräschen GmbH | E21: EEW Großräschen | G21: 01.12.2007 | H21: Abfall | I21: 19.805 | J21: 274.55 | K21: 1
C22: BNA0398 | D22: MVR Müllverwertung Rugenberger Damm GmbH & Co. KG | E22: MVR Müllverwertung Rugenberger Damm GmbH & Co. KG | G22: 12.08.1999 | H22: Abfall | I22: 20.4 | J22: 294.95 | K22: 1
C23: BNA0407 | D23: Enertec Hameln GmbH | E23: Enertec Hameln | F23: Linien 1,3,4 | G23: 07.10.1913 | H23: Abfall | I23: 11.22 | J23: 306.17 | K23: 1
C24: BNA0417 | D24: EEW Energy from Waste Hannover GmbH | E24: EEW Energy from Waste Hannover GmbH | F24: Hannover | G24: 01.06.2005 | H24: Abfall | I24: 19.125 | J24: 325.295 | K24: 1
C25: BNA0438 | D25: EEW Energy from Waste Helmstedt GmbH | E25: TRV Buschhaus | F25: Linie 1-3 | G25: 31.03.1999 | H25: Abfall | I25: 31.875 | J25: 357.17 | K25: 1
C26: BNA0519 | D26: RWE Generation SE | E26: Karnap | F26: B | G26: 16.03.1987 | H26: Abfall | I26: 32.3 | J26: 389.47 | K26: 1
C27: BNA0590 | D27: MVV Energie AG | E27: TREA Leuna | F27: Linie 1 | G27: 26.08.2005 | H27: Abfall | I27: 13.8125 | J27: 403.2825 | K27: 1
C28: BNA0591 | D28: MVV Energie AG | E28: TREA Leuna | F28: Linie 2 | G28: 19.06.2007 | H28: Abfall | I28: 13.8125 | J28: 417.095 | K28: 1
C29: BNA0599 | D29: AVEA Entsorgungsbetriebe GmbH & Co. KG | F29: entfällt | G29: 03.05.2011 | H29: Abfall | I29: 9.86 | J29: 426.955 | K29: 1
C30: BNA0622 | D30: Müllheizkraftwerk Rothensee GmbH | E30: MHKW Rothensee | F30: Block 1 | G30: 17.07.2005 | H30: Abfall | I30: 24.82 | J30: 451.775 | K30: 1
C31: BNA0623 | D31: Müllheizkraftwerk Rothensee GmbH | E31: MHKW Rothensee | F31: Block 2 | G31: 08.09.2006 | H31: Abfall | I31: 24.82 | J31: 476.595 | K31: 1
C32: BNA0640 | D32: MVV Energie AG | E32: HKW Mannheim | F32: Turbine 3 | G32: 13.10.2006 | H32: Abfall | I32: 7.3525 | J32: 483.9475 | K32: 1
C33: BNA0641a | D33: MVV Energie AG | E33: HKW Mannheim | F33: Turbine 60 | G33: 07.01.2010 | H33: Abfall | I33: 18.785 | J33: 502.7325 | K33: 1
C34: BNA0641b | D34: MVV Energie AG | E34: HKW Mannheim | F34: Turbine D.0 | G34: 13.08.2012 | H34: Abfall | I34: 4.5645 | J34: 507.297 | K34: 1
C35: BNA0641c | D35: MVV Energie AG | E35: HKW Mannheim | F35: Turbine E.0 | G35: 14.06.2012 | H35: Abfall | I35: 3.298 | J35: 510.595 | K35: 1
C36: BNA0693 | D36: SWN Stadtwerke Neumünster GmbH | E36: Heizkraftwerk NMS | G36: 03.05.1974 | H36: Abfall | I36: 45.56 | J36: 556.155 | K36: 1
C37: BNA0746 | D37: N-ERGIE AG | E37: HKW Sandreuth | G37: 01.09.1996 | H37: Abfall | I37: 15.3 | J37: 571.455 | K37: 1
C38: BNA0750 | D38: GMVA Gemeinschafts-Müll-Verbrennungsanlage Niederrhein GmbH | E38: GMVA Niederrhein | F38: Ausspeisung 10/110kV (Turbine 2) | G38: 17.10.1991 | H38: Abfall | I38: 34.34 | J38: 605.795 | K38: 1
C39: BNA0751 | D39: GMVA Gemeinschafts-Müll-Verbrennungsanlage Niederrhein GmbH | E39: GMVA Niederrhein | F39: Ausspeisung 10/25kV (Turbine 1) | G39: 06.04.2006 | H39: Abfall | I39: 17.935 | J39: 623.73 | K39: 1
C40: BNA0845 | D40: Stadtwerke Rosenheim GmbH & Co. KG | E40: MHKW, WKW | F40: T1a/b, T2 | G40: 01.01.1988 | H40: Abfall | I40: 7.65 | J40: 631.38 | K40: 1
C41: BNA0855 | D41: Steag GmbH | E41: IKW Rüdersdorf | G41: 15.12.2009 | H41: Abfall | I41: 25.5 | J41: 656.88 | K41: 1
C42: BNA0895 | D42: GKS Gemeinschaftskraftwerk Schweinfurt GmbH | E42: GKS | F42: entfällt | G42: 01.06.1990 | H42: Abfall | I42: 20.74 | J42: 677.62 | K42: 1
C43: BNA0939a | D43: EnBW Energie Baden-Württemberg AG | E43: Restmüll-Heizkraftwerk Stuttgart-Münster | F43: MÜN DT19 neu | G43: 01.01.2009 | H43: Abfall | I43: 16.575 | J43: 694.195 | K43: 1
C44: BNA0969a | D44: SWM Services GmbH | E44: Nord 1 | F44: 1 | G44: 15.09.1991 | H44: Abfall | I44: 15.3 | J44: 709.495 | K44: 1
C45: BNA0969c | D45: SWM Services GmbH | E45: Nord 3 | F45: 3 | G45: 17.05.1984 | H45: Abfall | I45: 18.7 | J45: 728.195 | K45: 1
C46: BNA1020 | D46: RWE Power AG | E46: MVA Weisweiler | F46: MVA | G46: 22.10.1996 | H46: Abfall | I46: 22.95 | J46: 751.145 | K46: 1
C47: BNA1108 | D47: PD energy GmbH | E47: PD energy GmbH | G47: 01.01.2010 | H47: Abfall | I47: 8.415 | J47: 759.56 | K47: 1
C48: BNA1110 | D48: Zweckverband Restmüllheizkraftwerk Böblingen | E48: Restmüllheizkraftwerk Böblingen | F48: Müllverbrennung | G48: 03.05.1999 | H48: Abfall | I48: 8.075 | J48: 767.635 | K48: 1
C49: BNA1114 | D49: swb Entsorgung GmbH & Co. KG | E49: MHKW | F49: MHKW | G49: 1969 / 2012 | H49: Abfall | I49: 37.4 | J49: 805.035 | K49: 1
C50: BNA1116 | D50: Bremerhavener Entsorgungsgesellschaft mbH | E50: BEG | G50: 18.03.1977 | H50: Abfall | I50: 11.9 | J50: 816.935 | K50: 1
C51: BNA1119 | D51: Zweckverband Abfallverwertung Südostbayern | E51: MHKW Burgkirchen | G51: 15.01.1994 | H51: Abfall | I51: 10.625 | J51: 827.56 | K51: 1
C52: BNA1139 | D52: EEW Energy from Waste Saarbrücken GmbH | E52: TREA Breisgau | G52: 15.07.2005 | H52: Abfall | I52: 11.56 | J52: 839.12 | K52: 1
C53: BNA1144 | D53: EEW Energy from Waste Göppingen GmbH | E53: EEW Göppingen | F53: Turb. Neu | G53: 01.07.1975 | H53: Abfall | I53: 9.35 | J53: 848.47 | K53: 1
C54: BNA1148 | D54: MHB Hamm Betriebsführungsgesellschaft mbH | E54: MVA Hamm | G54: 13.02.1986 | H54: Abfall | I54: 12.393 | J54: 860.863 | K54: 1
C55: BNA1154 | D55: AGR Abfallentsorgungsgesellschaft Ruhrgebiet mbH | E55: RZR Herten I | F55: RZR I | G55: 06.01.1982 | H55: Abfall | I55: 13.175 | J55: 874.038 | K55: 1
C56: BNA1155 | D56: AGR Abfallentsorgungsgesellschaft Ruhrgebiet mbH | E56: RZR Herten II | F56: RZR II | G56: 07.01.2009 | H56: Abfall | I56: 9.945 | J56: 883.983 | K56: 1
C57: BNA1161 | D57: Zweckverband Müllverwertungsanlage Ingolstadt (MVA Ingolstadt) | E57: MVA Ingolstadt | F57: Müllheizkraftwerk (MHKW) | G57: 26.10.1984 | H57: Abfall | I57: 21.675 | J57: 905.658 | K57: 1
C58: BNA1167 | D58: Kreis Weseler Abfallgesellschaft mbH & Co. KG (KWA) | E58: Abfallentsorgungszentrum Asdonkshof | F58: MVA | G58: 01.04.1997 | H58: Abfall | I58: 13.6 | J58: 919.258 | K58: 1
C59: BNA1168 | D59: Müllheizkraftwerk Kassel GmbH | E59: Müllheizkraftwerk | G59: 17.12.1985 | H59: Abfall | I59: 12.495 | J59: 931.753 | K59: 1
C60: BNA1184 | D60: AVG Köln mbH | E60: RMVA Köln | F60: RMVA Köln | G60: 01.02.1998 | H60: Abfall | I60: 38.335 | J60: 970.088 | K60: 1
C61: BNA1186b | D61: EGK Entsorgungsgesellschaft Krefeld GmbH & Co.KG | E61: MKVA Krefeld | F61: Turbine 4 | G61: 01.01.2002 | H61: Abfall | I61: 11.73 | J61: 981.818 | K61: 1
C62: BNA1186c | D62: EGK Entsorgungsgesellschaft Krefeld GmbH & Co.KG | E62: MKVA Krefeld | F62: Turbine 2 | G62: 01.01.1976 | H62: Abfall | I62: 1.275 | J62: 983.093 | K62: 1
C63: BNA1186d | D63: EGK Entsorgungsgesellschaft Krefeld GmbH & Co.KG | E63: MKVA Krefeld | F63: Turbine 5 | G63: 01.01.1997 | H63: Abfall | I63: 2.38 | J63: 985.473 | K63: 1
C64: BNA1186e | D64: EGK Entsorgungsgesellschaft Krefeld GmbH & Co.KG | E64: MKVA Krefeld | F64: Turbine 1 | G64: 01.01.1976 | H64: Abfall | I64: 1.275 | J64: 986.748 | K64: 1
C65: BNA1190 | D65: Steag GmbH | E65: Thermische Abfallbehandlung Lauta GmbH & Co. oHG | G65: 21.07.2004 | H65: Abfall | I65: 13.345 | J65: 1000.093 | K65: 1
C66: BNA1197 | D66: Technische Werke Ludwigshafen AG | E66: FHKW Ludwigshafen | F66: FHKW | G66: 01.08.1967 | H66: Abfall | I66: 23.8 | J66: 1023.893 | K66: 1
C67: BNA1198 | D67: SUEZ Energie und Verwertung GmbH | E67: SITA Abfallverwertung GmbH | G67: 22.06.2005 | H67: Abfall | I67: 19.55 | J67: 1043.443 | K67: 1
C68: BNA1199 | D68: Entsorgungsgesellschaft Mainz mbH | E68: MHKW Mainz | G68: 01.12.2009 | H68: Abfall | I68: 13.26 | J68: 1056.703 | K68: 1
C69: BNA1222 | D69: Energieversorgung Offenbach AG | E69: Müllheizkraftwerk Offenbach | G69: 01.01.1972 | H69: Abfall | I69: 12.325 | J69: 1069.028 | K69: 1
C70: BNA1229 | D70: EEW Energy from Waste Saarbrücken GmbH | E70: MHKW Pirmasens | G70: 01.01.1999 | H70: Abfall | I70: 12.75 | J70: 1081.778 | K70: 1
C71: BNA1232 | D71: EEW Energy from Waste Premnitz GmbH | E71: ZWSF | F71: ZWSF | G71: 08.01.2004 | H71: Abfall | I71: 2.125 | J71: 1083.903 | K71: 1
C72: BNA1233 | D72: EEW Energy from Waste Premnitz GmbH | E72: EVE | F72: EVE | G72: 09.06.2009 | H72: Abfall | I72: 12.325 | J72: 1096.228 | K72: 1
C73: BNA1243 | D73: Vattenfall Europe New Energy Ecopower GmbH | E73: EBS-HKW Rostock | G73: 2009 | H73: Abfall | I73: 14.45 | J73: 1110.678 | K73: 1
C74: BNA1244 | D74: AVA Velsen GmbH | E74: AVA Velsen | G74: 07.08.1997 | H74: Abfall | I74: 13.6 | J74: 1124.278 | K74: 1
C75: BNA1254 | D75: Zweckverband Müllverwertung Schwandorf | E75: Müllkraftwerk Schwandorf | G75: 31.08.1982 | H75: Abfall | I75: 45.9 | J75: 1170.178 | K75: 1
C76: BNA1255 | D76: Kraftwerk Schwedt GmbH & Co. KG | E76: Kraftwerk Schwedt GmbH & Co.KG | G76: 01.04.2011 | H76: Abfall | I76: 24.565 | J76: 1194.743 | K76: 1
C77: BNA1261 | D77: EEW Energy from Waste Stapelfeld GmbH | G77: 01.10.1979 | H77: Abfall | I77: 13.94 | J77: 1208.683 | K77: 1
C78: BNA1262 | D78: REMONDIS Thermische Abfallverwertung GmbH | E78: REMONDIS Thermische Abfallverwertung GmbH | G78: 21.04.2008 | H78: Abfall | I78: 20.4 | J78: 1229.083 | K78: 1
C79: BNA1286 | D79: Zweckverband für Abfallwirtschaft Südwestthüringen (ZASt) | E79: Restabfallbehandlungsanlage | F79: 1 | G79: 13.11.2007 | H79: Abfall | I79: 10.285 | J79: 1239.368 | K79: 1
C80: BNA1289 | D80: AMK - Abfallentsorgungsgesellschaft des Märkischen Kreises mbH | E80: AMK - Abfallentsorgungsgesellschaft des Märkischen Kreises mbH | G80: 01.04.1981 | H80: Abfall | I80: 10.7185 | J80: 1250.0865 | K80: 1
C81: BNA1291 | D81: IHKW Industrieheizkraftwerk Andernach GmbH | E81: IHKW Andernach | G81: 14.01.2008 | H81: Abfall | I81: 10.625 | J81: 1260.7115 | K81: 1
C82: BNA1295 | D82: AVA Abfallverwertung Augsburg GmbH | E82: AVA GmbH | F82: AHKW | G82: 16.09.1994 | H82: Abfall | I82: 8.5 | J82: 1269.2115 | K82: 1
C83: BNA1316 | D83: EKOCity GmbH | E83: Müllheizkraftwerk | G83: 01.01.1976 | H83: Abfall | I83: 25.5 | J83: 1294.7115 | K83: 1
C84: BNA1330 | D84: Steinbeis Energie GmbH | E84: Steinbeis Energie | G84: 27.09.2010 | H84: Abfall | I84: 14.45 | J84: 1309.1615 | K84: 1
C85: BNA1447a | D85: Evonik Röhm GmbH | F85: G2 | G85: 20.11.1990 | H85: Abfall | I85: 10.115 | J85: 1319.2765 | K85: 1
C86: BNA1447b | D86: Evonik Röhm GmbH | F86: G3/Kontu | G86: 12.03.2012 | H86: Abfall | I86: 5.865 | J86: 1325.1415 | K86: 1
C87: BNA1448 | D87: EEW Energy from Waste Saarbrücken GmbH | E87: AHKW Neunkirchen | F87: Linie 3 + 4 | G87: 02.06.1977 | H87: Abfall | I87: 9.86 | J87: 1335.0015 | K87: 1
C88: BNA1449a | D88: Zweckverband Abfallwirtschaft Raum Würzburg | E88: Turbosatz 1 | G88: 04.06.1984 | H88: Abfall | I88: 7.395 | J88: 1342.3965 | K88: 1
C89: BNA1449b | D89: Zweckverband Abfallwirtschaft Raum Würzburg | E89: Turbosatz 2 | G89: 09.11.1998 | H89: Abfall | I89: 10.2 | J89: 1352.5965 | K89: 1
C90: BNA1465a | D90: B+T Energie GmbH | E90: EBS-Kraftwerk Witzenhausen | G90: 24.06.2009 | H90: Abfall | I90: 23.8 | J90: 1376.3965 | K90: 1
C91: BNA1490 | D91: EBS - Kraftwerk GmbH | E91: EBKW Knapsack | G91: 01.01.2009 | H91: Abfall | I91: 28.39 | J91: 1404.7865 | K91: 1
C92: BNA1510 | D92: Spreestromerzeugungs GmbH | E92: Hamburger Rieger | G92: 01.01.2013 | H92: Abfall | I92: 15.895 | J92: 1420.6815 | K92: 1
C93: BNA1520 | D93: ESWE BioEnergie GmbH | E93: Biomasseheizkraftwerk Wiesbaden | G93: 01.01.2014 | H93: Abfall | I93: 8.925 | J93: 1429.6065 | K93: 1
C94: BNA1864 | D94: KÄMMERER Energie GmbH | E94: Turbine 4 | G94: 1962 | H94: Abfall | I94: 8.075 | J94: 1437.6815 | K94: 1
C95: BNA1865 | D95: KÄMMERER Energie GmbH | E95: Turbine 5 | G95: 1972 | H95: Abfall | I95: 8.33 | J95: 1446.0115 | K95: 1
C96: BNA1867 | D96: AVG Köln mbH | E96: AVG Köln | F96: Turbosatz 2 | G96: 01.05.2017 | H96: Abfall | I96: 15.3 | J96: 1461.3115 | K96: 1
D97: Nicht-EEG-Anlagen < 10 MW | H97: Abfall | I97: 120.224425 | J97: 1581.535925 | K97: 1
C98: BNA0157 | D98: Preussen Elektra GmbH | E98: Brokdorf | F98: KBR | G98: 22.12.1986 | H98: Kernenergie | I98: 1311.3 | J98: 2892.835925 | K98: 17.86666667
C99: BNA0251 | D99: Preussen Elektra GmbH | E99: Grohnde | F99: KWG | G99: 01.02.1985 | H99: Kernenergie | I99: 1264.8 | J99: 4157.635925 | K99: 17.86666667
C100: BNA0263 | D100: Preussen Elektra GmbH | E100: Isar 2 | F100: KKI 2 | G100: 09.04.1988 | H100: Kernenergie | I100: 1311.3 | J100: 5468.935925 | K100: 17.86666667
C101: BNA0382 | D101: RWE Power AG | E101: Kernkraft Gundremmingen | F101: C | G101: 02.11.1984 | H101: Kernenergie | I101: 1197.84 | J101: 6666.775925 | K101: 17.86666667
C102: BNA0607 | D102: RWE Power AG | E102: Kernkraftwerk Emsland | F102: KKE | G102: 19.04.1988 | H102: Kernenergie | I102: 1242.48 | J102: 7909.255925 | K102: 17.86666667
C103: BNA0686 | D103: EnBW Energie Baden-Württemberg AG | E103: Gemeinschaftskernkraftwerk Neckarwestheim II | F103: GKN II | G103: 15.04.1989 | H103: Kernenergie | I103: 1218.3 | J103: 9127.555925 | K103: 17.86666667
C104: BNA0802 | D104: EnBW Energie Baden-Württemberg AG | E104: Kernkraftwerk Philippsburg 2 | F104: KKP 2 | G104: 18.04.1985 | H104: Kernenergie | I104: 1303.86 | J104: 10431.41593 | K104: 17.86666667
C105: BNA1185 | D105: Pfeifer & Langen GmbH & Co. KG | E105: P&L Werk Könnern | F105: Kessel 1 und 2 | G105: 31.03.2014 | H105: Braunkohle | I105: 17.864 | J105: 10449.27993 | K105: 32.01806759
C106: BNA1164 | D106: Pfeifer & Langen GmbH & Co. KG | E106: P&L Werk Jülich | F106: Kessel 5 | G106: 15.09.2013 | H106: Braunkohle | I106: 20.4336 | J106: 10469.71353 | K106: 32.1868138
C107: BNA1401a | D107: RWE Power AG | E107: BoA 2 | F107: Neurath F | G107: 08.07.2012 | H107: Braunkohle | I107: 932.8 | J107: 11402.51353 | K107: 32.35744895
C108: BNA1401b | D108: RWE Power AG | E108: BoA 3 | F108: Neurath G | G108: 03.08.2012 | H108: Braunkohle | I108: 932.8 | J108: 12335.31352 | K108: 32.35744895
C109: BNA1404 | D109: Lausitz Energie Kraftwerke AG | E109: Boxberg | F109: R | G109: 06.11.2012 | H109: Braunkohle | I109: 563.2 | J109: 12898.51353 | K109: 32.35744895
C110: BNA1817 | D110: Stadtwerke Düsseldorf AG | E110: GuD | F110: GuD F | G110: 22.01.2016 | H110: GuD | I110: 517.65 | J110: 13416.16352 | K110: 32.65701132
C111: BNA1819 | D111: Stadtwerke Flensburg GmbH | E111: Heizkraftwerk FL | F111: Block 12 | G111: 01.10.2016 | H111: GuD | I111: 67.86 | J111: 13484.02353 | K111: 32.65701132
C112: BNA1820 | D112: Gemeinschaftskraftwerk Bremen GmbH und Co. KG | E112: KW Mittelsbüren | F112: GuD MiBÜ | G112: 01.10.2016 | H112: GuD | I112: 386.715 | J112: 13870.73853 | K112: 32.65701132
C113: BNA0179 | D113: eins - energie in sachsen GmbH & Co. KG | E113: HKW Chemnitz Nord II | F113: Block C | G113: 15.06.1990 | H113: Braunkohle | I113: 79.904 | J113: 13950.64253 | K113: 32.70451441
C114: BNA0543 | D114: RheinEnergie AG | E114: HKW Merkenich | F114: Block 6 | G114: 16.12.2010 | H114: Braunkohle | I114: 66.264 | J114: 14016.90653 | K114: 32.70451441
C115: BNA0707 | D115: RWE Power AG | E115: Niederaußem | F115: H | G115: 16.09.1974 | H115: Braunkohle | I115: 570.24 | J115: 14587.14653 | K115: 32.88101069
C116: BNA0918b | D116: Dow Deutschland Anlagengesellschaft mbH | E116: Dow Stade | F116: Cogen Dow Stade | G116: 01.01.2015 | H116: GuD | I116: 136.59 | J116: 14723.73653 | K116: 32.887804
C117: BNA0922 | D117: CIECH Energy Deutschland GmbH | E117: GuD-Ikw Staßfurt | G117: 01.10.2015 | H117: GuD | I117: 87 | J117: 14810.73653 | K117: 32.887804
C118: BNA0708 | D118: RWE Power AG | E118: Niederaußem | F118: G | G118: 23.10.1974 | H118: Braunkohle | I118: 552.64 | J118: 15363.37652 | K118: 33.05952793
C119: BNA0256b | D119: SWE Energie GmbH | E119: HKW Erfurt-Ost | F119: GT2 | G119: 2014 | H119: GuD | I119: 28.362 | J119: 15391.73852 | K119: 33.12204134
C120: BNA0261c | D120: Erlanger Stadtwerke AG | E120: HKW Erlangen | F120: GuD 2 | G120: 10.02.2014 | H120: GuD | I120: 5.829 | J120: 15397.56752 | K120: 33.12204134
C121: BNA0392b | D121: Heizkraftwerk Halle-Trotha GmbH | E121: HKW Halle Trotha | F121: GuD | G121: 30.01.2013 | H121: GuD | I121: 48.8418 | J121: 15446.40932 | K121: 33.35980105
C122: BNA0418 | D122: enercity AG | E122: GKL | F122: GKL | G122: 05.11.1998 | H122: GuD | I122: 200.1 | J122: 15646.50932 | K122: 33.35980105
C123: BNA0548b | D123: Statkraft Markets GmbH | E123: Knapsack Gas II | G123: 01.07.2013 | H123: GuD | I123: 374.1 | J123: 16020.60932 | K123: 33.35980105
C124: BNA1337e | D124: DS Smith Paper Deutschland GmbH | E124: GuD-Anlage | F124: GuD-Anlage | G124: 28.01.2013 | H124: GuD | I124: 40.89 | J124: 16061.49932 | K124: 33.35980105
C125: BNA1523b | D125: Moritz J. Weig GmbH & Co KG | E125: Gemeinschaftskraftwerk Weig | F125: Block 2 (Kessel 6, GT 2, DT 3) | G125: 01.01.2013 | H125: GuD | I125: 23.838 | J125: 16085.33732 | K125: 33.35980105
C126: BNA0059b | D126: Volkswagen AG | E126: GuD Baunatal, VW Werksgelände | G126: 29.12.2011 | H126: GuD | I126: 67.86 | J126: 16153.19732 | K126: 33.84621023
C127: BNA0136 | D127: Braunschweiger Versorgungs-AG & Co. KG | E127: HKW-Mitte | F127: GuD | G127: 30.12.2010 | H127: GuD | I127: 64.38 | J127: 16217.57732 | K127: 34.09502723
C128: BNA0588 | D128: Stadtwerke Leipzig GmbH | E128: Heizkraftwerk Leipzig-Nord | G128: 15.02.1996 | H128: GuD | I128: 145.29 | J128: 16362.86732 | K128: 34.09502723
C129: BNA0598b | D129: InfraLeuna GmbH | E129: ILK-GuD | F129: KT1 | G129: 30.04.2010 | H129: GuD | I129: 17.4 | J129: 16380.26732 | K129: 34.09502723
C130: BNA0606 | D130: RWE Generation SE | E130: Emsland | F130: D | G130: 07.09.2010 | H130: GuD | I130: 771.69 | J130: 17151.95732 | K130: 34.09502723
C131: BNA0805 | D131: Kraftwerk Platting GmbH | E131: Kraftwerk Plattling | G131: 20.04.2010 | H131: GuD | I131: 103.095 | J131: 17255.05233 | K131: 34.09502723
C132: BNA0709 | D132: RWE Power AG | E132: Niederaußem | F132: K | G132: 30.08.2002 | H132: Braunkohle | I132: 830.72 | J132: 18085.77233 | K132: 34.17508426
C133: BNA0400 | D133: Vattenfall Hamburg Wärme GmbH | E133: GuD Tiefstack | F133: GuD Tiefstack | G133: 02.11.2009 | H133: GuD | I133: 110.49 | J133: 18196.26233 | K133: 34.34770186
C134: BNA0444 | D134: K+S AG | E134: Wintershall | F134: Wintershall | G134: 20.05.2009 | H134: GuD | I134: 60.03 | J134: 18256.29233 | K134: 34.34770186
C135: BNA1087 | D135: Heizkraftwerk Würzburg GmbH | E135: Heizkraftwerke an der Friedensbrücke | F135: GTII | G135: 01.01.2009 | H135: GuD | I135: 25.665 | J135: 18281.95733 | K135: 34.34770186
C136: BNA0115 | D136: Lausitz Energie Kraftwerke AG | E136: Lippendorf | F136: R | G136: 20.06.2000 | H136: Braunkohle | I136: 770 | J136: 19051.95733 | K136: 34.56478527
C137: BNA0124 | D137: Lausitz Energie Kraftwerke AG | E137: Boxberg | F137: Q | G137: 01.10.2000 | H137: Braunkohle | I137: 754.16 | J137: 19806.11733 | K137: 34.56478527
C138: BNA1461 | D138: CropEnergies Bioethanol GmbH Zeitz | G138: 15.01.2005 | H138: Braunkohle | I138: 15.4 | J138: 19821.51733 | K138: 34.56478527
C139: BNA0410 | D139: Trianel Gaskraftwerk Hamm GmbH & Co. KG | E139: Trianel Gaskraftwerk | F139: Block 10 | G139: 01.03.2008 | H139: GuD | I139: 354.09 | J139: 20175.60733 | K139: 34.60432453
C140: BNA0411 | D140: Trianel Gaskraftwerk Hamm GmbH & Co. KG | E140: Trianel Gaskraftwerk | F140: Block 20 | G140: 01.03.2008 | H140: GuD | I140: 356.7 | J140: 20532.30733 | K140: 34.60432453
C141: BNA0545 | D141: RheinEnergie AG | E141: HKW Niehl 2 | F141: GuD | G141: 26.03.2005 | H141: GuD | I141: 359.31 | J141: 20891.61733 | K141: 34.60432453
C142: BNA0116 | D142: EnBW Energie Baden-Württemberg AG | E142: Braunkohlekraftwerk Lippendorf | F142: LIP S | G142: 01.12.1999 | H142: Braunkohle | I142: 770 | J142: 21661.61733 | K142: 34.76316426
C143: BNA0183 | D143: Stadtwerke Cottbus mbH | E143: HKW Cottbus | F143: 1 | G143: 16.12.1999 | H143: Braunkohle | I143: 65.12 | J143: 21726.73733 | K143: 34.76316426
C144: BNA0442 | D144: Mark-E AG / Statkraft Markets | E144: Cuno Heizkraftwerk Herdecke | F144: H6 | G144: 01.01.2007 | H144: GuD | I144: 362.79 | J144: 22089.52733 | K144: 34.8649885
C145: BNA0915 | D145: Lausitz Energie Kraftwerke AG | E145: Schwarze Pumpe | F145: B | G145: 25.05.1998 | H145: Braunkohle | I145: 660 | J145: 22749.52733 | K145: 34.9639527
C146: BNA0548a | D146: Statkraft Markets GmbH | E146: Knapsack Gas I | G146: 01.01.2006 | H146: GuD | I146: 696 | J146: 23445.52733 | K146: 35.12979
C147: BNA0914 | D147: Lausitz Energie Kraftwerke AG | E147: Schwarze Pumpe | F147: A | G147: 15.12.1997 | H147: Braunkohle | I147: 660 | J147: 24105.52733 | K147: 35.16719478
C148: BNA0785 | D148: Lausitz Energie Kraftwerke AG | E148: KW Jänschwalde | F148: A | G148: 01.10.1981 | H148: Braunkohle | I148: 409.2 | J148: 24514.72733 | K148: 35.37293573
C149: BNA0786 | D149: Lausitz Energie Kraftwerke AG | E149: KW Jänschwalde | F149: B | G149: 29.11.1982 | H149: Braunkohle | I149: 409.2 | J149: 24923.92733 | K149: 35.37293573
C150: BNA0787 | D150: Lausitz Energie Kraftwerke AG | E150: KW Jänschwalde | F150: C | G150: 01.02.1984 | H150: Braunkohle | I150: 409.2 | J150: 25333.12733 | K150: 35.37293573
C151: BNA0788 | D151: Lausitz Energie Kraftwerke AG | E151: KW Jänschwalde | F151: D | G151: 06.10.1985 | H151: Braunkohle | I151: 409.2 | J151: 25742.32733 | K151: 35.37293573
C152: BNA0878 | D152: Uniper Kraftwerke GmbH | E152: Schkopau | F152: A | G152: 01.01.1996 | H152: Braunkohle | I152: 396 | J152: 26138.32733 | K152: 35.37293573
C153: BNA0879 | D153: Uniper Kraftwerke GmbH | E153: Schkopau | F153: B | G153: 01.01.1996 | H153: Braunkohle | I153: 396 | J153: 26534.32733 | K153: 35.37293573
C154: BNA0100 | D154: Stadtwerke Bielefeld GmbH | E154: GuD Kraftwerk Hillegossen | F154: GuD | G154: 02.01.2005 | H154: GuD | I154: 32.5815 | J154: 26566.90883 | K154: 35.39882832
C155: BNA0214 | D155: Stadtwerke Duisburg AG | E155: HKW III/B | F155: HKW III/B | G155: 24.10.2005 | H155: GuD | I155: 203.58 | J155: 26770.48883 | K155: 35.39882832
C156: BNA0261a | D156: Erlanger Stadtwerke AG | E156: HKW Erlangen | F156: GuD I | G156: 14.09.2005 | H156: GuD | I156: 18.792 | J156: 26789.28083 | K156: 35.39882832
C157: BNA0614b | D157: BASF SE | E157: Kraftwerk Mitte | F157: GUD A 800 GT 11, GT 12, DT 10 | G157: 12.05.2005 | H157: GuD | I157: 432.825 | J157: 27222.10583 | K157: 35.39882832
C158: BNA0685 | D158: Stadtwerke Münster GmbH | E158: Heizkraftwerk Hafen | F158: GuD | G158: 14.12.2005 | H158: GuD | I158: 90.6018 | J158: 27312.70763 | K158: 35.39882832
C159: BNA0742 | D159: N-ERGIE AG | E159: HKW Sandreuth | F159: GuD 1 | G159: 05.01.2005 | H159: GuD | I159: 65.25 | J159: 27377.95763 | K159: 35.39882832
C160: BNA0743 | D160: N-ERGIE AG | E160: HKW Sandreuth | F160: GuD 2 | G160: 05.01.2005 | H160: GuD | I160: 65.25 | J160: 27443.20763 | K160: 35.39882832
C161: BNA0861a | D161: Energie SaarLorLux AG | E161: HKW Römerbrücke | F161: GuD-Anlage | G161: 01.06.2005 | H161: GuD | I161: 65.25 | J161: 27508.45763 | K161: 35.39882832
C162: BNA1082 | D162: WSW Energie & Wasser AG | E162: HKW Barmen | F162: Block 1 | G162: 2005-12-30 | H162: GuD | I162: 76.57653 | J162: 27585.03416 | K162: 35.39882832
C163: BNA1088 | D163: Heizkraftwerk Würzburg GmbH | E163: Heizkraftwerke an der Friedensbrücke | F163: GTI | G163: 01.01.2005 | H163: GuD | I163: 38.715 | J163: 27623.74916 | K163: 35.39882832
C164: BNA1293a | D164: Martinswerk GmbH | E164: Kraftwerk | F164: K1/TG1 | G164: 01.02.1995 | H164: Braunkohle | I164: 8.8 | J164: 27632.54916 | K164: 35.58122193
C165: BNA1293b | D165: Martinswerk GmbH | E165: Kraftwerk | F165: K2/TG2 | G165: 01.02.1995 | H165: Braunkohle | I165: 8.8 | J165: 27641.34916 | K165: 35.58122193
C166: BNA0546 | D166: RheinEnergie AG | E166: HKW Merkenich | F166: GuD | G166: 27.01.2004 | H166: GuD | I166: 93.96 | J166: 27735.30916 | K166: 35.67220597
C167: BNA0684a | D167: SWM Services GmbH | E167: Süd GT 61 | F167: 2 | G167: 30.09.2004 | H167: GuD | I167: 108.663 | J167: 27843.97216 | K167: 35.67220597
C168: BNA0684b | D168: SWM Services GmbH | E168: Süd GT 62 | F168: 2 | G168: 30.09.2004 | H168: GuD | I168: 107.793 | J168: 27951.76516 | K168: 35.67220597
C169: BNA0684c | D169: SWM Services GmbH | E169: Süd DT60 | F169: 2 | G169: 30.09.2004 | H169: GuD | I169: 111.012 | J169: 28062.77716 | K169: 35.67220597
C170: BNA0123 | D170: Lausitz Energie Kraftwerke AG | E170: Boxberg | F170: P | G170: 01.07.1980 | H170: Braunkohle | I170: 409.2 | J170: 28471.97716 | K170: 35.7921009
C171: BNA1002 | D171: Mitteldeutsche Braunkohlengesellschaft mbH | E171: Wählitz | G171: 25.08.1994 | H171: Braunkohle | I171: 27.28 | J171: 28499.25716 | K171: 35.7921009
C172: BNA0499 | D172: Infraserv GmbH & Co. Höchst KG | E172: Heizkraftwerk | F172: Block A | G172: 26.11.2003 | H172: GuD | I172: 74.82 | J172: 28574.07716 | K172: 35.95002878
C173: BNA0658 | D173: Evonik Degussa GmbH | E173: Kraftwerk III | F173: Block 311 | G173: 22.11.1973 | H173: GuD | I173: 53.1831 | J173: 28627.26026 | K173: 35.95002878
C174: BNA1196b | D174: MVV Energie AG | E174: Industriekraftwerk Ludwigshafen | F174: GuD | G174: 01.03.2003 | H174: GuD | I174: 10.4052 | J174: 28637.66546 | K174: 35.95002878
C175: BNA0122 | D175: Lausitz Energie Kraftwerke AG | E175: Boxberg | F175: N | G175: 01.01.1979 | H175: Braunkohle | I175: 409.2 | J175: 29046.86546 | K175: 36.00562137
C176: BNA1400a | D176: Südzucker AG, Werk Zeitz | E176: EZ1 | F176: WSK | G176: 01.09.1993 | H176: Braunkohle | I176: 20.504 | J176: 29067.36946 | K176: 36.00562137
C177: BNA0270 | D177: Stadtwerke Flensburg GmbH | E177: Heizkraftwerk FL | F177: Block 11 | G177: 02.06.1992 | H177: Steinkohle | I177: 24.49 | J177: 29091.85946 | K177: 36.12119801
C178: BNA1334 | D178: CR3-Kaffeeveredelung M. Hermsen GmbH | E178: KWK-Anlage | F178: GT 1-3, DT | G178: 1993 und 2002 | H178: GuD | I178: 12.876 | J178: 29104.73546 | K178: 36.23240607
C179: BNA1141 | D179: Pfeifer & Langen GmbH & Co. KG | E179: P&L Werk Euskirchen | F179: Kessel 4 / 6 | G179: 01.12.1991 | H179: Braunkohle | I179: 12.76 | J179: 29117.49546 | K179: 36.44078781
C180: BNA0172a | D180: Wacker Chemie AG | E180: Burghausen 01 - GT | G180: 27.07.2001 | H180: GuD | I180: 104.4 | J180: 29221.89546 | K180: 36.51945074
C181: BNA1183 | D181: RheinEnergie AG | E181: HKW Merheim | F181: GuD | G181: 08.03.2001 | H181: GuD | I181: 13.746 | J181: 29235.64146 | K181: 36.51945074
D182: Nicht-EEG-Anlagen < 10 MW | H182: Braunkohle | I182: 19.56592 | J182: 29255.20738 | K182: 36.66253752
C183: BNA0105 | D183: envia THERM GmbH | E183: GuD Bitterfeld | G183: 04.08.2000 | H183: GuD | I183: 92.22 | J183: 29347.42738 | K183: 36.8112795
C184: BNA0199 | D184: RWE Generation SE | E184: Dormagen | F184: GuD | G184: 01.07.2000 | H184: GuD | I184: 509.82 | J184: 29857.24738 | K184: 36.8112795
C185: BNA0220 | D185: Stadtwerke Düsseldorf AG | E185: GuD | F185: AGuD | G185: 28.07.2000 | H185: GuD | I185: 87 | J185: 29944.24738 | K185: 36.8112795
C186: BNA0397 | D186: ThyssenKrupp Steel Europe AG | E186: Duisburg Hamborn 5 | F186: Block 5 | G186: 01.01.2003 | H186: GuD | I186: 195.75 | J186: 30139.99738 | K186: 36.8112795
C187: BNA0626 | D187: Kraftwerke Mainz-Wiesbaden AG | E187: Kraftwerk Mainz | F187: KW3 | G187: 23.05.2000 | H187: GuD | I187: 377.754 | J187: 30517.75138 | K187: 36.8112795
C188: BNA1450 | D188: DREWSEN SPEZIALPAPIERE GmbH & Co. KG | E188: GUD-Anlage DREWSEN | G188: 01.09.2000 | H188: GuD | I188: 11.31 | J188: 30529.06138 | K188: 36.8112795
C189: BNA0523 | D189: Städtische Werke Energie + Wärme GmbH | E189: FKK | G189: 21.12.1989 | H189: Braunkohle | I189: 29.48 | J189: 30558.54138 | K189: 36.88713626
C190: BNA0271 | D190: Stadtwerke Flensburg GmbH | E190: Heizkraftwerk FL | F190: Block 10 | G190: 23.01.1989 | H190: Steinkohle | I190: 26.07 | J190: 30584.61138 | K190: 37.07957961
C191: BNA0498 | D191: Infraserv GmbH & Co. Höchst KG | E191: Heizkraftwerk | F191: Block B | G191: 21.08.1989 | H191: Steinkohle | I191: 52.14 | J191: 30636.75138 | K191: 37.07957961
C192: BNA0256a | D192: SWE Energie GmbH | E192: HKW Erfurt-Ost | F192: GT1 | G192: 17.12.1999 | H192: GuD | I192: 66.555 | J192: 30703.30638 | K192: 37.10801294
C193: BNA0857 | D193: Opel Automobile GmbH | E193: GuD-Anlage Rüsselsheim | F193: M120 | G193: 10.09.1999 | H193: GuD | I193: 97.527 | J193: 30800.83338 | K193: 37.10801294
C194: BNA0177 | D194: eins - energie in sachsen GmbH & Co. KG | E194: HKW Chemnitz Nord II | F194: Block B | G194: 01.09.1988 | H194: Braunkohle | I194: 49.984 | J194: 30850.81738 | K194: 37.1146393
C195: BNA0292 | D195: RWE Power AG | E195: Frechen/Wachtberg | F195: Frechen/Wachtberg | G195: 01.01.1959 | H195: Braunkohle | I195: 154.88 | J195: 31005.69738 | K195: 37.1146393
C196: BNA0592 | D196: InfraLeuna GmbH | E196: GuD Leuna | G196: 01.10.1998 | H196: GuD | I196: 33.93 | J196: 31039.62738 | K196: 37.40977576
C197: BNA0615 | D197: BASF SE | E197: Kraftwerk Süd | F197: GUD C 200 GT 1, GT 2, DT 1 | G197: 14.07.1997 | H197: GuD | I197: 356.7 | J197: 31396.32738 | K197: 37.71669692
C198: BNA0688 | D198: Neubrandenburger Stadtwerke GmbH | E198: GuD-HKW Neubrandenburg | G198: 16.05.1997 | H198: GuD | I198: 65.25 | J198: 31461.57738 | K198: 37.71669692
C199: BNA0073 | D199: Vattenfall Wärme Berlin AG | E199: Mitte | F199: GuD Mitte | G199: 30.12.1996 | H199: GuD | I199: 386.28 | J199: 31847.85738 | K199: 38.02890983
C200: BNA0504 | D200: TEAG Thüringer Energie AG | E200: HKW Jena | F200: HKW Jena | G200: 26.09.1996 | H200: GuD | I200: 158.34 | J200: 32006.19738 | K200: 38.02890983
C201: BNA0848 | D201: Stadtwerke Rostock AG | E201: GuD Marienehe | G201: 13.06.1996 | H201: GuD | I201: 93.96 | J201: 32100.15738 | K201: 38.02890983
C202: BNA1279 | D202: Basell Polyolefine GmbH | E202: Gasturbine | F202: D290 | G202: 03.07.1996 | H202: GuD | I202: 45.153 | J202: 32145.31038 | K202: 38.02890983
C203: BNA1511a | D203: Papierfabrik Schoellershammer H. A. Schoeller Söhne GmbH & Co KG | E203: Kessel 4 | G203: 25.03.1983 | H203: Braunkohle | I203: 8.184 | J203: 32153.49438 | K203: 38.29775643
C204: BNA0207 | D204: DREWAG Stadtwerke Dresden GmbH | E204: HKW Dresden-Nossener Brücke | F204: HKW Dresden-Nossener Brücke (3 GT + 1 DT, Sammelschiene) | G204: 28.09.1995 | H204: GuD | I204: 226.2 | J204: 32379.69438 | K204: 38.34655252
C205: BNA0755b | D205: Kraftwerk Obernburg GmbH | E205: Obernburg | F205: 1 | G205: 01.01.1995 | H205: GuD | I205: 52.2 | J205: 32431.89438 | K205: 38.34655252
C206: BNA0272 | D206: Stadtwerke Flensburg GmbH | E206: Heizkraftwerk FL | F206: Block 9 | G206: 01.10.1985 | H206: Steinkohle | I206: 26.07 | J206: 32457.96438 | K206: 38.44261121
... 338 more rows

Sheet Kraftwerksliste
C3: EWI Merit-Order Tool 2020
C5: Kraftwerksliste | Z5: =Impressum!F5 -> Version 2020.1.1
C7: Die Kraftwerksliste basiert auf der Kraftwerksliste der Bundesnetzagentur (BNetzA, 2019b). In die Kraftwerksliste eingegangen sind alle konventionellen Kraftwerke, die am 11.11.2019 in Betrieb waren. Die in dunkelgelb eingefärben Spalten sind unverändert aus BNetzA (2019b) übernommen. Die hellgelben Spalten enthalten zusätzliche Informationen, basierend auf eigenen Annahmen, Berechnungen und weiteren Quellen. Die Annahmen zur Effizienz der Kraftwerke sind beispielsweise größtenteils aus OPSD (2018) entnommen. Die weiß hinterlegten Felder können von den Nutzer*innen angepasst werden. So können Kraftwerke aus der Merit-Order entfernt und bis zu 10 neue Kraftwerke hinzugefügt werden.
C10: Teil der Merit-Order? | D10: Kraftwerksnummer Bundesnetzagentur | E10: Unternehmen | F10: Kraftwerksname | G10: PLZ (Standort Kraftwerk) | H10: Ort (Standort Kraftwerk) | I10: Straße und Hausnummer (Standort Kraftwerk) | J10: Bundesland | K10: Blockname | L10: Aufnahme der kommerziellen Stromerzeugung | M10: Energieträger (BNetzA, 2019) | N10: Spezifizierung "Mehrere Energieträger" und "Sonstige Energieträger" - Hauptbrennstoff | O10: Spezifizierung "Mehrere Energieträger" - Zusatz- / Ersatzbrennstoffe | P10: Auswertung Energieträger (Zuordnung zu einem Hauptenergieträger bei Mehreren Energieträgern) | Q10: Angenommener Hauptenergieträger | R10: Zuordnung Kraftwerkstyp | S10: Kraftwerkstechnologie | T10: Quelle Kraftwerkstechnologie | U10: Effizienz | V10: Quelle Effizienz | W10: Netto-Nennleistung (elektrische Wirkleistung) [MW] | X10: Mittlere verfügbare Netto-Nennleistung [MW] | Y10: Brennstoffkosten (inkl. Transport) [EUR/MWHth] | Z10: Grenzkosten [EUR/MWHel]
C11: Nein | D11: (optional) | E11: (optional) | F11: (optional) | G11: (optional) | H11: (optional) | I11: (optional) | J11: (optional) | K11: (optional) | L11: (optional) | M11: (optional) | Q11: (notwendig) | R11: (notwendig) | S11: (optional) | T11: (optional) | U11: (notwendig) | V11: (optional) | W11: (notwendig) | X11: =IF(ISNUMBER((1-VLOOKUP(R11,Start!$H$33:$I$40,2,FALSE)/100)*W11),(1-VLOOKUP(R11,Start!$H$33:$I$40,2,FALSE)/100)*W11,0) -> 0 | Y11: =IF(ISNUMBER(VLOOKUP(Q11,Start!$C$9:$D$15,2,FALSE)+VLOOKUP(Q11,Start!$C$23:$D$29,2,FALSE)),VLOOKUP(Q11,Start!$C$9:$D$15,2,FALSE)+VLOOKUP(Q11,Start!$C$23:$D$29,2,FALSE),0) -> 0 | Z11: =IF(ISNUMBER((Y11/U11)+Start!$D$19*(VLOOKUP(Q11,Start!$M$33:$N$39,2,FALSE)/U11)+VLOOKUP(R11,Start!$C$33:$D$40,2,FALSE)),(Y11/U11)+Start!$D$19*(VLOOKUP(Q11,Start!$M$33:$N$39,2,FALSE)/U11)+VLOOKUP(R11,Start!$C$33:$D$40,2,FALSE),0) -> 0
C12: Nein | D12: (optional) | E12: (optional) | F12: (optional) | G12: (optional) | H12: (optional) | I12: (optional) | J12: (optional) | K12: (optional) | L12: (optional) | M12: (optional) | Q12: (notwendig) | R12: (notwendig) | S12: (optional) | T12: (optional) | U12: (notwendig) | V12: (optional) | W12: (notwendig) | X12: =IF(ISNUMBER((1-VLOOKUP(R12,Start!$H$33:$I$40,2,FALSE)/100)*W12),(1-VLOOKUP(R12,Start!$H$33:$I$40,2,FALSE)/100)*W12,0) -> 0 | Y12: =IF(ISNUMBER(VLOOKUP(Q12,Start!$C$9:$D$15,2,FALSE)+VLOOKUP(Q12,Start!$C$23:$D$29,2,FALSE)),VLOOKUP(Q12,Start!$C$9:$D$15,2,FALSE)+VLOOKUP(Q12,Start!$C$23:$D$29,2,FALSE),0) -> 0 | Z12: =IF(ISNUMBER((Y12/U12)+Start!$D$19*(VLOOKUP(Q12,Start!$M$33:$N$39,2,FALSE)/U12)+VLOOKUP(R12,Start!$C$33:$D$40,2,FALSE)),(Y12/U12)+Start!$D$19*(VLOOKUP(Q12,Start!$M$33:$N$39,2,FALSE)/U12)+VLOOKUP(R12,Start!$C$33:$D$40,2,FALSE),0) -> 0
C13: Nein | D13: (optional) | E13: (optional) | F13: (optional) | G13: (optional) | H13: (optional) | I13: (optional) | J13: (optional) | K13: (optional) | L13: (optional) | M13: (optional) | Q13: (notwendig) | R13: (notwendig) | S13: (optional) | T13: (optional) | U13: (notwendig) | V13: (optional) | W13: (notwendig) | X13: =IF(ISNUMBER((1-VLOOKUP(R13,Start!$H$33:$I$40,2,FALSE)/100)*W13),(1-VLOOKUP(R13,Start!$H$33:$I$40,2,FALSE)/100)*W13,0) -> 0 | Y13: =IF(ISNUMBER(VLOOKUP(Q13,Start!$C$9:$D$15,2,FALSE)+VLOOKUP(Q13,Start!$C$23:$D$29,2,FALSE)),VLOOKUP(Q13,Start!$C$9:$D$15,2,FALSE)+VLOOKUP(Q13,Start!$C$23:$D$29,2,FALSE),0) -> 0 | Z13: =IF(ISNUMBER((Y13/U13)+Start!$D$19*(VLOOKUP(Q13,Start!$M$33:$N$39,2,FALSE)/U13)+VLOOKUP(R13,Start!$C$33:$D$40,2,FALSE)),(Y13/U13)+Start!$D$19*(VLOOKUP(Q13,Start!$M$33:$N$39,2,FALSE)/U13)+VLOOKUP(R13,Start!$C$33:$D$40,2,FALSE),0) -> 0
C14: Nein | D14: (optional) | E14: (optional) | F14: (optional) | G14: (optional) | H14: (optional) | I14: (optional) | J14: (optional) | K14: (optional) | L14: (optional) | M14: (optional) | Q14: (notwendig) | R14: (notwendig) | S14: (optional) | T14: (optional) | U14: (notwendig) | V14: (optional) | W14: (notwendig) | X14: =IF(ISNUMBER((1-VLOOKUP(R14,Start!$H$33:$I$40,2,FALSE)/100)*W14),(1-VLOOKUP(R14,Start!$H$33:$I$40,2,FALSE)/100)*W14,0) -> 0 | Y14: =IF(ISNUMBER(VLOOKUP(Q14,Start!$C$9:$D$15,2,FALSE)+VLOOKUP(Q14,Start!$C$23:$D$29,2,FALSE)),VLOOKUP(Q14,Start!$C$9:$D$15,2,FALSE)+VLOOKUP(Q14,Start!$C$23:$D$29,2,FALSE),0) -> 0 | Z14: =IF(ISNUMBER((Y14/U14)+Start!$D$19*(VLOOKUP(Q14,Start!$M$33:$N$39,2,FALSE)/U14)+VLOOKUP(R14,Start!$C$33:$D$40,2,FALSE)),(Y14/U14)+Start!$D$19*(VLOOKUP(Q14,Start!$M$33:$N$39,2,FALSE)/U14)+VLOOKUP(R14,Start!$C$33:$D$40,2,FALSE),0) -> 0
C15: Nein | D15: (optional) | E15: (optional) | F15: (optional) | G15: (optional) | H15: (optional) | I15: (optional) | J15: (optional) | K15: (optional) | L15: (optional) | M15: (optional) | Q15: (notwendig) | R15: (notwendig) | S15: (optional) | T15: (optional) | U15: (notwendig) | V15: (optional) | W15: (notwendig) | X15: =IF(ISNUMBER((1-VLOOKUP(R15,Start!$H$33:$I$40,2,FALSE)/100)*W15),(1-VLOOKUP(R15,Start!$H$33:$I$40,2,FALSE)/100)*W15,0) -> 0 | Y15: =IF(ISNUMBER(VLOOKUP(Q15,Start!$C$9:$D$15,2,FALSE)+VLOOKUP(Q15,Start!$C$23:$D$29,2,FALSE)),VLOOKUP(Q15,Start!$C$9:$D$15,2,FALSE)+VLOOKUP(Q15,Start!$C$23:$D$29,2,FALSE),0) -> 0 | Z15: =IF(ISNUMBER((Y15/U15)+Start!$D$19*(VLOOKUP(Q15,Start!$M$33:$N$39,2,FALSE)/U15)+VLOOKUP(R15,Start!$C$33:$D$40,2,FALSE)),(Y15/U15)+Start!$D$19*(VLOOKUP(Q15,Start!$M$33:$N$39,2,FALSE)/U15)+VLOOKUP(R15,Start!$C$33:$D$40,2,FALSE),0) -> 0
C16: Nein | D16: (optional) | E16: (optional) | F16: (optional) | G16: (optional) | H16: (optional) | I16: (optional) | J16: (optional) | K16: (optional) | L16: (optional) | M16: (optional) | Q16: (notwendig) | R16: (notwendig) | S16: (optional) | T16: (optional) | U16: (notwendig) | V16: (optional) | W16: (notwendig) | X16: =IF(ISNUMBER((1-VLOOKUP(R16,Start!$H$33:$I$40,2,FALSE)/100)*W16),(1-VLOOKUP(R16,Start!$H$33:$I$40,2,FALSE)/100)*W16,0) -> 0 | Y16: =IF(ISNUMBER(VLOOKUP(Q16,Start!$C$9:$D$15,2,FALSE)+VLOOKUP(Q16,Start!$C$23:$D$29,2,FALSE)),VLOOKUP(Q16,Start!$C$9:$D$15,2,FALSE)+VLOOKUP(Q16,Start!$C$23:$D$29,2,FALSE),0) -> 0 | Z16: =IF(ISNUMBER((Y16/U16)+Start!$D$19*(VLOOKUP(Q16,Start!$M$33:$N$39,2,FALSE)/U16)+VLOOKUP(R16,Start!$C$33:$D$40,2,FALSE)),(Y16/U16)+Start!$D$19*(VLOOKUP(Q16,Start!$M$33:$N$39,2,FALSE)/U16)+VLOOKUP(R16,Start!$C$33:$D$40,2,FALSE),0) -> 0
C17: Nein | D17: (optional) | E17: (optional) | F17: (optional) | G17: (optional) | H17: (optional) | I17: (optional) | J17: (optional) | K17: (optional) | L17: (optional) | M17: (optional) | Q17: (notwendig) | R17: (notwendig) | S17: (optional) | T17: (optional) | U17: (notwendig) | V17: (optional) | W17: (notwendig) | X17: =IF(ISNUMBER((1-VLOOKUP(R17,Start!$H$33:$I$40,2,FALSE)/100)*W17),(1-VLOOKUP(R17,Start!$H$33:$I$40,2,FALSE)/100)*W17,0) -> 0 | Y17: =IF(ISNUMBER(VLOOKUP(Q17,Start!$C$9:$D$15,2,FALSE)+VLOOKUP(Q17,Start!$C$23:$D$29,2,FALSE)),VLOOKUP(Q17,Start!$C$9:$D$15,2,FALSE)+VLOOKUP(Q17,Start!$C$23:$D$29,2,FALSE),0) -> 0 | Z17: =IF(ISNUMBER((Y17/U17)+Start!$D$19*(VLOOKUP(Q17,Start!$M$33:$N$39,2,FALSE)/U17)+VLOOKUP(R17,Start!$C$33:$D$40,2,FALSE)),(Y17/U17)+Start!$D$19*(VLOOKUP(Q17,Start!$M$33:$N$39,2,FALSE)/U17)+VLOOKUP(R17,Start!$C$33:$D$40,2,FALSE),0) -> 0
C18: Nein | D18: (optional) | E18: (optional) | F18: (optional) | G18: (optional) | H18: (optional) | I18: (optional) | J18: (optional) | K18: (optional) | L18: (optional) | M18: (optional) | Q18: (notwendig) | R18: (notwendig) | S18: (optional) | T18: (optional) | U18: (notwendig) | V18: (optional) | W18: (notwendig) | X18: =IF(ISNUMBER((1-VLOOKUP(R18,Start!$H$33:$I$40,2,FALSE)/100)*W18),(1-VLOOKUP(R18,Start!$H$33:$I$40,2,FALSE)/100)*W18,0) -> 0 | Y18: =IF(ISNUMBER(VLOOKUP(Q18,Start!$C$9:$D$15,2,FALSE)+VLOOKUP(Q18,Start!$C$23:$D$29,2,FALSE)),VLOOKUP(Q18,Start!$C$9:$D$15,2,FALSE)+VLOOKUP(Q18,Start!$C$23:$D$29,2,FALSE),0) -> 0 | Z18: =IF(ISNUMBER((Y18/U18)+Start!$D$19*(VLOOKUP(Q18,Start!$M$33:$N$39,2,FALSE)/U18)+VLOOKUP(R18,Start!$C$33:$D$40,2,FALSE)),(Y18/U18)+Start!$D$19*(VLOOKUP(Q18,Start!$M$33:$N$39,2,FALSE)/U18)+VLOOKUP(R18,Start!$C$33:$D$40,2,FALSE),0) -> 0
C19: Nein | D19: (optional) | E19: (optional) | F19: (optional) | G19: (optional) | H19: (optional) | I19: (optional) | J19: (optional) | K19: (optional) | L19: (optional) | M19: (optional) | Q19: (notwendig) | R19: (notwendig) | S19: (optional) | T19: (optional) | U19: (notwendig) | V19: (optional) | W19: (notwendig) | X19: =IF(ISNUMBER((1-VLOOKUP(R19,Start!$H$33:$I$40,2,FALSE)/100)*W19),(1-VLOOKUP(R19,Start!$H$33:$I$40,2,FALSE)/100)*W19,0) -> 0 | Y19: =IF(ISNUMBER(VLOOKUP(Q19,Start!$C$9:$D$15,2,FALSE)+VLOOKUP(Q19,Start!$C$23:$D$29,2,FALSE)),VLOOKUP(Q19,Start!$C$9:$D$15,2,FALSE)+VLOOKUP(Q19,Start!$C$23:$D$29,2,FALSE),0) -> 0 | Z19: =IF(ISNUMBER((Y19/U19)+Start!$D$19*(VLOOKUP(Q19,Start!$M$33:$N$39,2,FALSE)/U19)+VLOOKUP(R19,Start!$C$33:$D$40,2,FALSE)),(Y19/U19)+Start!$D$19*(VLOOKUP(Q19,Start!$M$33:$N$39,2,FALSE)/U19)+VLOOKUP(R19,Start!$C$33:$D$40,2,FALSE),0) -> 0
C20: Nein | D20: (optional) | E20: (optional) | F20: (optional) | G20: (optional) | H20: (optional) | I20: (optional) | J20: (optional) | K20: (optional) | L20: (optional) | M20: (optional) | Q20: (notwendig) | R20: (notwendig) | S20: (optional) | T20: (optional) | U20: (notwendig) | V20: (optional) | W20: (notwendig) | X20: =IF(ISNUMBER((1-VLOOKUP(R20,Start!$H$33:$I$40,2,FALSE)/100)*W20),(1-VLOOKUP(R20,Start!$H$33:$I$40,2,FALSE)/100)*W20,0) -> 0 | Y20: =IF(ISNUMBER(VLOOKUP(Q20,Start!$C$9:$D$15,2,FALSE)+VLOOKUP(Q20,Start!$C$23:$D$29,2,FALSE)),VLOOKUP(Q20,Start!$C$9:$D$15,2,FALSE)+VLOOKUP(Q20,Start!$C$23:$D$29,2,FALSE),0) -> 0 | Z20: =IF(ISNUMBER((Y20/U20)+Start!$D$19*(VLOOKUP(Q20,Start!$M$33:$N$39,2,FALSE)/U20)+VLOOKUP(R20,Start!$C$33:$D$40,2,FALSE)),(Y20/U20)+Start!$D$19*(VLOOKUP(Q20,Start!$M$33:$N$39,2,FALSE)/U20)+VLOOKUP(R20,Start!$C$33:$D$40,2,FALSE),0) -> 0
C21: Ja | D21: BNA0012b | E21: Sappi Alfeld GmbH | F21: Werkskraftwerk Sappi Alfeld | G21: 31061 | H21: Alfeld | I21: Mühlenmarsch 1 | J21: Niedersachsen | K21: Gaskraftwerk | L21: 1947 | M21: Erdgas | P21: Erdgas | Q21: Erdgas | R21: GuD | S21: Steam turbine | T21: OPSD (2018) | U21: 0.3267 | V21: OPSD (2018) | W21: 11 | X21: =(1-VLOOKUP(R21,Start!$H$33:$I$40,2,FALSE)/100)*W21 -> 9.57 | Y21: =VLOOKUP(Q21,Start!$C$9:$D$15,2,FALSE)+VLOOKUP(Q21,Start!$C$23:$D$29,2,FALSE) -> 14.07 | Z21: =(Y21/U21)+Start!$D$19*(VLOOKUP(Q21,Start!$M$33:$N$39,2,FALSE)/U21)+VLOOKUP(R21,Start!$C$33:$D$40,2,FALSE) -> 59.86575124
C22: Ja | D22: BNA0015 | E22: EnBW Energie Baden-Württemberg AG | F22: Heizkraftwerk Altbach/Deizisau | G22: 73776 | H22: Altbach | I22: Industriestraße 11 | J22: Baden-Württemberg | K22: ALT GT E (solo) | L22: 01.01.1997 | M22: Erdgas | P22: Erdgas | Q22: Erdgas | R22: Gasturbine | S22: Gas turbine | T22: OPSD (2018) | U22: 0.3722 | V22: OPSD (2018) | W22: 65 | X22: =(1-VLOOKUP(R22,Start!$H$33:$I$40,2,FALSE)/100)*W22 -> 56.55 | Y22: =VLOOKUP(Q22,Start!$C$9:$D$15,2,FALSE)+VLOOKUP(Q22,Start!$C$23:$D$29,2,FALSE) -> 14.07 | Z22: =(Y22/U22)+Start!$D$19*(VLOOKUP(Q22,Start!$M$33:$N$39,2,FALSE)/U22)+VLOOKUP(R22,Start!$C$33:$D$40,2,FALSE) -> 52.23076553
C23: Ja | D23: BNA0016 | E23: EnBW Energie Baden-Württemberg AG | F23: Heizkraftwerk Altbach/Deizisau | G23: 73776 | H23: Altbach | I23: Industriestraße 11 | J23: Baden-Württemberg | K23: ALT GT A (Solo) | L23: 01.01.1971 | M23: Mehrere Energieträger | N23: Erdgas | O23: Mineralölprodukte | P23: Erdgas | Q23: Erdgas | R23: Gasturbine | S23: Gas turbine | T23: OPSD (2018) | U23: 0.3046 | V23: OPSD (2018) | W23: 50 | X23: =(1-VLOOKUP(R23,Start!$H$33:$I$40,2,FALSE)/100)*W23 -> 43.5 | Y23: =VLOOKUP(Q23,Start!$C$9:$D$15,2,FALSE)+VLOOKUP(Q23,Start!$C$23:$D$29,2,FALSE) -> 14.07 | Z23: =(Y23/U23)+Start!$D$19*(VLOOKUP(Q23,Start!$M$33:$N$39,2,FALSE)/U23)+VLOOKUP(R23,Start!$C$33:$D$40,2,FALSE) -> 63.60042984
C24: Ja | D24: BNA0017 | E24: EnBW Energie Baden-Württemberg AG | F24: Heizkraftwerk Altbach/Deizisau | G24: 73776 | H24: Altbach | I24: Industriestraße 11 | J24: Baden-Württemberg | K24: ALT GT B | L24: 01.01.1973 | M24: Mehrere Energieträger | N24: Erdgas | O24: Mineralölprodukte | P24: Erdgas | Q24: Erdgas | R24: Gasturbine | S24: Gas turbine | T24: OPSD (2018) | U24: 0.3098 | V24: OPSD (2018) | W24: 57 | X24: =(1-VLOOKUP(R24,Start!$H$33:$I$40,2,FALSE)/100)*W24 -> 49.59 | Y24: =VLOOKUP(Q24,Start!$C$9:$D$15,2,FALSE)+VLOOKUP(Q24,Start!$C$23:$D$29,2,FALSE) -> 14.07 | Z24: =(Y24/U24)+Start!$D$19*(VLOOKUP(Q24,Start!$M$33:$N$39,2,FALSE)/U24)+VLOOKUP(R24,Start!$C$33:$D$40,2,FALSE) -> 62.54968021
C25: Ja | D25: BNA0018 | E25: EnBW Energie Baden-Württemberg AG | F25: Heizkraftwerk Altbach/Deizisau | G25: 73776 | H25: Altbach | I25: Industriestraße 11 | J25: Baden-Württemberg | K25: ALT GT C | L25: 01.01.1975 | M25: Mehrere Energieträger | N25: Erdgas | O25: Mineralölprodukte | P25: Erdgas | Q25: Erdgas | R25: Gasturbine | S25: Gas turbine | T25: OPSD (2018) | U25: 0.315 | V25: OPSD (2018) | W25: 81 | X25: =(1-VLOOKUP(R25,Start!$H$33:$I$40,2,FALSE)/100)*W25 -> 70.47 | Y25: =VLOOKUP(Q25,Start!$C$9:$D$15,2,FALSE)+VLOOKUP(Q25,Start!$C$23:$D$29,2,FALSE) -> 14.07 | Z25: =(Y25/U25)+Start!$D$19*(VLOOKUP(Q25,Start!$M$33:$N$39,2,FALSE)/U25)+VLOOKUP(R25,Start!$C$33:$D$40,2,FALSE) -> 61.533622
C26: Ja | D26: BNA0019 | E26: EnBW Energie Baden-Württemberg AG | F26: Heizkraftwerk Altbach/Deizisau | G26: 73776 | H26: Altbach | I26: Industriestraße 11 | J26: Baden-Württemberg | K26: ALT HKW 2 (DT Solobetrieb) | L26: 01.01.1997 | M26: Steinkohle | P26: Steinkohle | Q26: Steinkohle | R26: Steinkohle | S26: Steam turbine | T26: OPSD (2018) | U26: 0.44 | V26: OPSD (2018) | W26: 336 | X26: =(1-VLOOKUP(R26,Start!$H$33:$I$40,2,FALSE)/100)*W26 -> 265.44 | Y26: =VLOOKUP(Q26,Start!$C$9:$D$15,2,FALSE)+VLOOKUP(Q26,Start!$C$23:$D$29,2,FALSE) -> 9.17 | Z26: =(Y26/U26)+Start!$D$19*(VLOOKUP(Q26,Start!$M$33:$N$39,2,FALSE)/U26)+VLOOKUP(R26,Start!$C$33:$D$40,2,FALSE) -> 41.18609954
C27: Ja | D27: BNA0025 | E27: Suiker Unie GmbH & Co. KG | F27: Kesselhaus Zuckerfabrik | G27: 17389 | H27: Anklam | I27: Bluthsluster Str. 24 | J27: Mecklenburg-Vorpommern | L27: 26.09.1993 | M27: Mehrere Energieträger | N27: Erdgas | O27: Erdgas | P27: Erdgas | Q27: Erdgas | R27: GuD | S27: Steam turbine | T27: OPSD (2018) | U27: 0.3773 | V27: OPSD (2018) | W27: 15.1 | X27: =(1-VLOOKUP(R27,Start!$H$33:$I$40,2,FALSE)/100)*W27 -> 13.137 | Y27: =VLOOKUP(Q27,Start!$C$9:$D$15,2,FALSE)+VLOOKUP(Q27,Start!$C$23:$D$29,2,FALSE) -> 14.07 | Z27: =(Y27/U27)+Start!$D$19*(VLOOKUP(Q27,Start!$M$33:$N$39,2,FALSE)/U27)+VLOOKUP(R27,Start!$C$33:$D$40,2,FALSE) -> 52.0382744
C28: Ja | D28: BNA0033 | E28: Stadtwerke Augsburg Energie GmbH | F28: Gasturbine | G28: 86167 | H28: Augsburg | I28: Beim Grenzgraben 10 | J28: Bayern | K28: GT | L28: 15.01.2004 | M28: Erdgas | P28: Erdgas | Q28: Erdgas | R28: Gasturbine | S28: Gas turbine | T28: OPSD (2018) | U28: 0.3904 | V28: OPSD (2018) | W28: 30.7 | X28: =(1-VLOOKUP(R28,Start!$H$33:$I$40,2,FALSE)/100)*W28 -> 26.709 | Y28: =VLOOKUP(Q28,Start!$C$9:$D$15,2,FALSE)+VLOOKUP(Q28,Start!$C$23:$D$29,2,FALSE) -> 14.07 | Z28: =(Y28/U28)+Start!$D$19*(VLOOKUP(Q28,Start!$M$33:$N$39,2,FALSE)/U28)+VLOOKUP(R28,Start!$C$33:$D$40,2,FALSE) -> 49.84244603
C29: Ja | D29: BNA0051 | E29: Cargill Deutschland GmbH | F29: KWK-Anlage Barby | G29: 39249 | H29: Barby | I29: Monplaisirstr. 22 | J29: Sachsen-Anhalt | K29: - | L29: 01.05.1994 | M29: Erdgas | P29: Erdgas | Q29: Erdgas | R29: GuD | S29: Steam turbine | T29: OPSD (2018) | U29: 0.3784 | V29: OPSD (2018) | W29: 17.8 | X29: =(1-VLOOKUP(R29,Start!$H$33:$I$40,2,FALSE)/100)*W29 -> 15.486 | Y29: =VLOOKUP(Q29,Start!$C$9:$D$15,2,FALSE)+VLOOKUP(Q29,Start!$C$23:$D$29,2,FALSE) -> 14.07 | Z29: =(Y29/U29)+Start!$D$19*(VLOOKUP(Q29,Start!$M$33:$N$39,2,FALSE)/U29)+VLOOKUP(R29,Start!$C$33:$D$40,2,FALSE) -> 51.89136081
C30: Ja | D30: BNA0059b | E30: Volkswagen AG | F30: GuD Baunatal, VW Werksgelände | G30: 34225 | H30: Baunatal | J30: Hessen | L30: 29.12.2011 | M30: Erdgas | P30: Erdgas | Q30: Erdgas | R30: GuD | S30: Combined cycle | T30: OPSD (2018) | U30: 0.5895 | V30: OPSD (2018) | W30: 78 | X30: =(1-VLOOKUP(R30,Start!$H$33:$I$40,2,FALSE)/100)*W30 -> 67.86 | Y30: =VLOOKUP(Q30,Start!$C$9:$D$15,2,FALSE)+VLOOKUP(Q30,Start!$C$23:$D$29,2,FALSE) -> 14.07 | Z30: =(Y30/U30)+Start!$D$19*(VLOOKUP(Q30,Start!$M$33:$N$39,2,FALSE)/U30)+VLOOKUP(R30,Start!$C$33:$D$40,2,FALSE) -> 33.84621023
C31: Ja | D31: BNA0067 | E31: STEAG GmbH | F31: Bergkamen | G31: 59192 | H31: Bergkamen | J31: Nordrhein-Westfalen | K31: A | L31: 02.07.1981 | M31: Steinkohle | P31: Steinkohle | Q31: Steinkohle | R31: Steinkohle | S31: Steam turbine | T31: OPSD (2018) | U31: 0.3775 | V31: OPSD (2018) | W31: 717 | X31: =(1-VLOOKUP(R31,Start!$H$33:$I$40,2,FALSE)/100)*W31 -> 566.43 | Y31: =VLOOKUP(Q31,Start!$C$9:$D$15,2,FALSE)+VLOOKUP(Q31,Start!$C$23:$D$29,2,FALSE) -> 9.17 | Z31: =(Y31/U31)+Start!$D$19*(VLOOKUP(Q31,Start!$M$33:$N$39,2,FALSE)/U31)+VLOOKUP(R31,Start!$C$33:$D$40,2,FALSE) -> 47.78975841
C32: Ja | D32: BNA0073 | E32: Vattenfall Wärme Berlin AG | F32: Mitte | G32: 10179 | H32: Berlin | I32: Köpenicker Straße 60 | J32: Berlin | K32: GuD Mitte | L32: 30.12.1996 | M32: Erdgas | P32: Erdgas | Q32: Erdgas | R32: GuD | S32: Combined cycle | T32: OPSD (2018) | U32: 0.522 | V32: OPSD (2018) | W32: 444 | X32: =(1-VLOOKUP(R32,Start!$H$33:$I$40,2,FALSE)/100)*W32 -> 386.28 | Y32: =VLOOKUP(Q32,Start!$C$9:$D$15,2,FALSE)+VLOOKUP(Q32,Start!$C$23:$D$29,2,FALSE) -> 14.07 | Z32: =(Y32/U32)+Start!$D$19*(VLOOKUP(Q32,Start!$M$33:$N$39,2,FALSE)/U32)+VLOOKUP(R32,Start!$C$33:$D$40,2,FALSE) -> 38.02890983
C33: Ja | D33: BNA0074 | E33: Vattenfall Wärme Berlin AG | F33: Charlottenburg | G33: 10589 | H33: Berlin | I33: Am Spreebord 5 | J33: Berlin | K33: Charlottenburg | L33: 01.01.1975 | M33: Mehrere Energieträger | N33: Erdgas | O33: Mineralöl | P33: Erdgas | Q33: Erdgas | R33: Gasturbine | S33: Gas turbine | T33: OPSD (2018) | U33: 0.38 | V33: OPSD (2018) | W33: 144 | X33: =(1-VLOOKUP(R33,Start!$H$33:$I$40,2,FALSE)/100)*W33 -> 125.28 | Y33: =VLOOKUP(Q33,Start!$C$9:$D$15,2,FALSE)+VLOOKUP(Q33,Start!$C$23:$D$29,2,FALSE) -> 14.07 | Z33: =(Y33/U33)+Start!$D$19*(VLOOKUP(Q33,Start!$M$33:$N$39,2,FALSE)/U33)+VLOOKUP(R33,Start!$C$33:$D$40,2,FALSE) -> 51.17918666
C34: Ja | D34: BNA0075 | E34: Vattenfall Wärme Berlin AG | F34: Lichterfelde | G34: 12207 | H34: Berlin | I34: Ostpreußendamm 61 | J34: Berlin | K34: Lichterfelde 1 | L34: 04.09.1972 | M34: Erdgas | P34: Erdgas | Q34: Erdgas | R34: GuD | S34: Steam turbine | T34: OPSD (2018) | U34: 0.3828 | V34: OPSD (2018) | W34: 144 | X34: =(1-VLOOKUP(R34,Start!$H$33:$I$40,2,FALSE)/100)*W34 -> 125.28 | Y34: =VLOOKUP(Q34,Start!$C$9:$D$15,2,FALSE)+VLOOKUP(Q34,Start!$C$23:$D$29,2,FALSE) -> 14.07 | Z34: =(Y34/U34)+Start!$D$19*(VLOOKUP(Q34,Start!$M$33:$N$39,2,FALSE)/U34)+VLOOKUP(R34,Start!$C$33:$D$40,2,FALSE) -> 51.31214977
C35: Ja | D35: BNA0081 | E35: Vattenfall Wärme Berlin AG | F35: Klingenberg | G35: 10317 | H35: Berlin | I35: Köpenicker Chaussee 42 - 45 | J35: Berlin | K35: Klingenberg | L35: 13.08.1981 | M35: Mehrere Energieträger | N35: Braunkohle | O35: Erdgas, Mineralöl | P35: Erdgas | Q35: Erdgas | R35: GuD | S35: Steam turbine | T35: OPSD (2018) | U35: 0.4037 | V35: OPSD (2018) | W35: 164 | X35: =(1-VLOOKUP(R35,Start!$H$33:$I$40,2,FALSE)/100)*W35 -> 142.68 | Y35: =VLOOKUP(Q35,Start!$C$9:$D$15,2,FALSE)+VLOOKUP(Q35,Start!$C$23:$D$29,2,FALSE) -> 14.07 | Z35: =(Y35/U35)+Start!$D$19*(VLOOKUP(Q35,Start!$M$33:$N$39,2,FALSE)/U35)+VLOOKUP(R35,Start!$C$33:$D$40,2,FALSE) -> 48.73331912
C36: Ja | D36: BNA0082 | E36: Vattenfall Wärme Berlin AG | F36: Reuter | G36: 13599 | H36: Berlin | I36: Otternbuchtstr. 11 | J36: Berlin | K36: Reuter C | L36: 01.01.1969 | M36: Mehrere Energieträger | N36: Steinkohle | O36: Holz | P36: Steinkohle | Q36: Steinkohle | R36: Steinkohle | S36: Steam turbine | T36: OPSD (2018) | U36: 0.3475 | V36: OPSD (2018) | W36: 124 | X36: =(1-VLOOKUP(R36,Start!$H$33:$I$40,2,FALSE)/100)*W36 -> 97.96 | Y36: =VLOOKUP(Q36,Start!$C$9:$D$15,2,FALSE)+VLOOKUP(Q36,Start!$C$23:$D$29,2,FALSE) -> 9.17 | Z36: =(Y36/U36)+Start!$D$19*(VLOOKUP(Q36,Start!$M$33:$N$39,2,FALSE)/U36)+VLOOKUP(R36,Start!$C$33:$D$40,2,FALSE) -> 51.80326273
C37: Ja | D37: BNA0083 | E37: Vattenfall Wärme Berlin AG | F37: Wilmersdorf | G37: 14199 | H37: Berlin | I37: Forckenbeckstr. 3 - 6 | J37: Berlin | K37: Wilmersdorf GT2 und GT3 | L37: 01.01.1977 | M37: Mineralölprodukte | P37: Mineralölprodukte | Q37: Öl | R37: Öl | S37: Steam turbine | T37: OPSD (2018) | U37: 0.3597 | V37: OPSD (2018) | W37: 184 | X37: =(1-VLOOKUP(R37,Start!$H$33:$I$40,2,FALSE)/100)*W37 -> 156.4 | Y37: =VLOOKUP(Q37,Start!$C$9:$D$15,2,FALSE)+VLOOKUP(Q37,Start!$C$23:$D$29,2,FALSE) -> 33.44 | Z37: =(Y37/U37)+Start!$D$19*(VLOOKUP(Q37,Start!$M$33:$N$39,2,FALSE)/U37)+VLOOKUP(R37,Start!$C$33:$D$40,2,FALSE) -> 113.3228099
C38: Ja | D38: BNA0084 | E38: Vattenfall Wärme Berlin AG | F38: Reuter | G38: 13599 | H38: Berlin | I38: Otternbuchtstr. 11 | J38: Berlin | K38: Reuter M | L38: 30.10.1998 | M38: Abfall | N38: Dampf aus Müllverbrennungsanlage | P38: Abfall | Q38: Abfall | R38: Abfall | S38: Steam turbine | T38: OPSD (2018) | U38: 0.33 | V38: OPSD (2018) | W38: 36 | X38: =(1-VLOOKUP(R38,Start!$H$33:$I$40,2,FALSE)/100)*W38 -> 30.6 | Y38: =VLOOKUP(Q38,Start!$C$9:$D$15,2,FALSE)+VLOOKUP(Q38,Start!$C$23:$D$29,2,FALSE) -> 0 | Z38: =(Y38/U38)+Start!$D$19*(VLOOKUP(Q38,Start!$M$33:$N$39,2,FALSE)/U38)+VLOOKUP(R38,Start!$C$33:$D$40,2,FALSE) -> 1
C39: Ja | D39: BNA0085a | E39: Vattenfall Wärme Berlin AG | F39: Moabit | G39: 13353 | H39: Berlin | I39: Friedrich-Krause-Ufer 10- 15 | J39: Berlin | K39: Moabit A | L39: 24.11.1989 | M39: Mehrere Energieträger | N39: Steinkohle | O39: Holz | P39: Steinkohle | Q39: Steinkohle | R39: Steinkohle | S39: Steam turbine | T39: OPSD (2018) | U39: 0.4 | V39: OPSD (2018) | W39: 89 | X39: =(1-VLOOKUP(R39,Start!$H$33:$I$40,2,FALSE)/100)*W39 -> 70.31 | Y39: =VLOOKUP(Q39,Start!$C$9:$D$15,2,FALSE)+VLOOKUP(Q39,Start!$C$23:$D$29,2,FALSE) -> 9.17 | Z39: =(Y39/U39)+Start!$D$19*(VLOOKUP(Q39,Start!$M$33:$N$39,2,FALSE)/U39)+VLOOKUP(R39,Start!$C$33:$D$40,2,FALSE) -> 45.1747095
C40: Ja | D40: BNA0085b | E40: Vattenfall Wärme Berlin AG | F40: Moabit | G40: 13353 | H40: Berlin | I40: Friedrich-Krause-Ufer 10- 15 | J40: Berlin | K40: Moabit GT 7 | L40: 30.09.1971 | M40: Mineralölprodukte | P40: Mineralölprodukte | Q40: Öl | R40: Öl | S40: Gas turbine | T40: OPSD (2018) | U40: 0.3046 | V40: OPSD (2018) | W40: 34 | X40: =(1-VLOOKUP(R40,Start!$H$33:$I$40,2,FALSE)/100)*W40 -> 28.9 | Y40: =VLOOKUP(Q40,Start!$C$9:$D$15,2,FALSE)+VLOOKUP(Q40,Start!$C$23:$D$29,2,FALSE) -> 33.44 | Z40: =(Y40/U40)+Start!$D$19*(VLOOKUP(Q40,Start!$M$33:$N$39,2,FALSE)/U40)+VLOOKUP(R40,Start!$C$33:$D$40,2,FALSE) -> 133.6412171
C41: Ja | D41: BNA0086 | E41: Vattenfall Wärme Berlin AG | F41: Reuter West | G41: 13599 | H41: Berlin | I41: Großer Spreering 5 | J41: Berlin | K41: Reuter West D | L41: 14.12.1987 | M41: Steinkohle | P41: Steinkohle | Q41: Steinkohle | R41: Steinkohle | S41: Steam turbine | T41: OPSD (2018) | U41: 0.3925 | V41: OPSD (2018) | W41: 282 | X41: =(1-VLOOKUP(R41,Start!$H$33:$I$40,2,FALSE)/100)*W41 -> 222.78 | Y41: =VLOOKUP(Q41,Start!$C$9:$D$15,2,FALSE)+VLOOKUP(Q41,Start!$C$23:$D$29,2,FALSE) -> 9.17 | Z41: =(Y41/U41)+Start!$D$19*(VLOOKUP(Q41,Start!$M$33:$N$39,2,FALSE)/U41)+VLOOKUP(R41,Start!$C$33:$D$40,2,FALSE) -> 46.01307974
C42: Ja | D42: BNA0087 | E42: Vattenfall Wärme Berlin AG | F42: Reuter West | G42: 13599 | H42: Berlin | I42: Großer Spreering 5 | J42: Berlin | K42: Reuter West E | L42: 04.08.1988 | M42: Steinkohle | P42: Steinkohle | Q42: Steinkohle | R42: Steinkohle | S42: Steam turbine | T42: OPSD (2018) | U42: 0.395 | V42: OPSD (2018) | W42: 282 | X42: =(1-VLOOKUP(R42,Start!$H$33:$I$40,2,FALSE)/100)*W42 -> 222.78 | Y42: =VLOOKUP(Q42,Start!$C$9:$D$15,2,FALSE)+VLOOKUP(Q42,Start!$C$23:$D$29,2,FALSE) -> 9.17 | Z42: =(Y42/U42)+Start!$D$19*(VLOOKUP(Q42,Start!$M$33:$N$39,2,FALSE)/U42)+VLOOKUP(R42,Start!$C$33:$D$40,2,FALSE) -> 45.73008557
C43: Ja | D43: BNA0088a | E43: Solvay Chemicals GmbH | F43: Industriekraftwerk Bernburg (IKB) | G43: 6406 | H43: Bernburg | J43: Sachsen-Anhalt | L43: 30.12.1994 | M43: Erdgas | P43: Erdgas | Q43: Erdgas | R43: GuD | S43: Combined cycle | T43: OPSD (2018) | U43: 0.513 | V43: OPSD (2018) | W43: 140.5 | X43: =(1-VLOOKUP(R43,Start!$H$33:$I$40,2,FALSE)/100)*W43 -> 122.235 | Y43: =VLOOKUP(Q43,Start!$C$9:$D$15,2,FALSE)+VLOOKUP(Q43,Start!$C$23:$D$29,2,FALSE) -> 14.07 | Z43: =(Y43/U43)+Start!$D$19*(VLOOKUP(Q43,Start!$M$33:$N$39,2,FALSE)/U43)+VLOOKUP(R43,Start!$C$33:$D$40,2,FALSE) -> 38.6697679
C44: Ja | D44: BNA0088b | E44: Solvay Chemicals GmbH | F44: Dampfturbinenanlage der EBS-Kessel | G44: 6406 | H44: Bernburg | J44: Sachsen-Anhalt | L44: 16.10.2009 | M44: Abfall | P44: Abfall | Q44: Abfall | R44: Abfall | S44: Combined cycle | T44: OPSD (2018) | U44: 0.33 | V44: OPSD (2018) | W44: 35 | X44: =(1-VLOOKUP(R44,Start!$H$33:$I$40,2,FALSE)/100)*W44 -> 29.75 | Y44: =VLOOKUP(Q44,Start!$C$9:$D$15,2,FALSE)+VLOOKUP(Q44,Start!$C$23:$D$29,2,FALSE) -> 0 | Z44: =(Y44/U44)+Start!$D$19*(VLOOKUP(Q44,Start!$M$33:$N$39,2,FALSE)/U44)+VLOOKUP(R44,Start!$C$33:$D$40,2,FALSE) -> 1
C45: Ja | D45: BNA0097 | E45: MVA Bielefeld-Herford GmbH | F45: MVA Bielefeld | G45: 33609 | H45: Bielefeld | I45: Schelpmilser Weg 30 | J45: Nordrhein-Westfalen | K45: Linien 1 - 3 | L45: 01.07.1981 | M45: Abfall | N45: Abfall, biologisch abbaubarer Anteil von Abfällen aus Haushalten und Industrie | P45: Abfall | Q45: Abfall | R45: Abfall | S45: Steam turbine | T45: OPSD (2018) | U45: 0.33 | V45: OPSD (2018) | W45: 34 | X45: =(1-VLOOKUP(R45,Start!$H$33:$I$40,2,FALSE)/100)*W45 -> 28.9 | Y45: =VLOOKUP(Q45,Start!$C$9:$D$15,2,FALSE)+VLOOKUP(Q45,Start!$C$23:$D$29,2,FALSE) -> 0 | Z45: =(Y45/U45)+Start!$D$19*(VLOOKUP(Q45,Start!$M$33:$N$39,2,FALSE)/U45)+VLOOKUP(R45,Start!$C$33:$D$40,2,FALSE) -> 1
C46: Ja | D46: BNA0100 | E46: Stadtwerke Bielefeld GmbH | F46: GuD Kraftwerk Hillegossen | G46: 33697 | H46: Bielefeld | J46: Nordrhein-Westfalen | K46: GuD | L46: 02.01.2005 | M46: Erdgas | P46: Erdgas | Q46: Erdgas | R46: GuD | S46: Combined cycle | T46: OPSD (2018) | U46: 0.5625 | V46: OPSD (2018) | W46: 37.45 | X46: =(1-VLOOKUP(R46,Start!$H$33:$I$40,2,FALSE)/100)*W46 -> 32.5815 | Y46: =VLOOKUP(Q46,Start!$C$9:$D$15,2,FALSE)+VLOOKUP(Q46,Start!$C$23:$D$29,2,FALSE) -> 14.07 | Z46: =(Y46/U46)+Start!$D$19*(VLOOKUP(Q46,Start!$M$33:$N$39,2,FALSE)/U46)+VLOOKUP(R46,Start!$C$33:$D$40,2,FALSE) -> 35.39882832
C47: Ja | D47: BNA0105 | E47: envia THERM GmbH | F47: GuD Bitterfeld | G47: 6749 | H47: Bitterfeld | J47: Sachsen-Anhalt | L47: 04.08.2000 | M47: Erdgas | P47: Erdgas | Q47: Erdgas | R47: GuD | S47: Combined cycle | T47: OPSD (2018) | U47: 0.54 | V47: OPSD (2018) | W47: 106 | X47: =(1-VLOOKUP(R47,Start!$H$33:$I$40,2,FALSE)/100)*W47 -> 92.22 | Y47: =VLOOKUP(Q47,Start!$C$9:$D$15,2,FALSE)+VLOOKUP(Q47,Start!$C$23:$D$29,2,FALSE) -> 14.07 | Z47: =(Y47/U47)+Start!$D$19*(VLOOKUP(Q47,Start!$M$33:$N$39,2,FALSE)/U47)+VLOOKUP(R47,Start!$C$33:$D$40,2,FALSE) -> 36.8112795
C48: Ja | D48: BNA0111 | E48: Stadtwerke Bochum Holding GmbH | F48: HKW Hiltrop | G48: 44805 | H48: Bochum | J48: Nordrhein-Westfalen | L48: 01.12.2013 | M48: Erdgas | P48: Erdgas | Q48: Erdgas | R48: GuD | S48: Steam turbine | T48: OPSD (2018) | U48: 0.3993 | V48: OPSD (2018) | W48: 44 | X48: =(1-VLOOKUP(R48,Start!$H$33:$I$40,2,FALSE)/100)*W48 -> 38.28 | Y48: =VLOOKUP(Q48,Start!$C$9:$D$15,2,FALSE)+VLOOKUP(Q48,Start!$C$23:$D$29,2,FALSE) -> 14.07 | Z48: =(Y48/U48)+Start!$D$19*(VLOOKUP(Q48,Start!$M$33:$N$39,2,FALSE)/U48)+VLOOKUP(R48,Start!$C$33:$D$40,2,FALSE) -> 49.25379647
C49: Ja | D49: BNA0115 | E49: Lausitz Energie Kraftwerke AG | F49: Lippendorf | G49: 4007 | H49: Böhlen | I49: Werkstraße | J49: Sachsen | K49: R | L49: 20.06.2000 | M49: Braunkohle | P49: Braunkohle | Q49: Braunkohle | R49: Braunkohle | S49: Steam turbine | T49: OPSD (2018) | U49: 0.4 | V49: OPSD (2018) | W49: 875 | X49: =(1-VLOOKUP(R49,Start!$H$33:$I$40,2,FALSE)/100)*W49 -> 770 | Y49: =VLOOKUP(Q49,Start!$C$9:$D$15,2,FALSE)+VLOOKUP(Q49,Start!$C$23:$D$29,2,FALSE) -> 3.1 | Z49: =(Y49/U49)+Start!$D$19*(VLOOKUP(Q49,Start!$M$33:$N$39,2,FALSE)/U49)+VLOOKUP(R49,Start!$C$33:$D$40,2,FALSE) -> 34.56478527
C50: Ja | D50: BNA0116 | E50: EnBW Energie Baden-Württemberg AG | F50: Braunkohlekraftwerk Lippendorf | G50: 4564 | H50: Böhlen | I50: Werkstraße | J50: Sachsen | K50: LIP S | L50: 01.12.1999 | M50: Braunkohle | P50: Braunkohle | Q50: Braunkohle | R50: Braunkohle | S50: Steam turbine | T50: OPSD (2018) | U50: 0.3976 | V50: OPSD (2018) | W50: 875 | X50: =(1-VLOOKUP(R50,Start!$H$33:$I$40,2,FALSE)/100)*W50 -> 770 | Y50: =VLOOKUP(Q50,Start!$C$9:$D$15,2,FALSE)+VLOOKUP(Q50,Start!$C$23:$D$29,2,FALSE) -> 3.1 | Z50: =(Y50/U50)+Start!$D$19*(VLOOKUP(Q50,Start!$M$33:$N$39,2,FALSE)/U50)+VLOOKUP(R50,Start!$C$33:$D$40,2,FALSE) -> 34.76316426
C51: Ja | D51: BNA0117a | E51: Energie- und Wasserversorgung Bonn/Rhein-Sieg GmbH | F51: Heizkraftwerk Karlstraße | G51: 53115 | H51: Bonn | J51: Nordrhein-Westfalen | K51: Heizkraftwerk Karlstraße | L51: 01.07.1990 | M51: Mehrere Energieträger | N51: Dampf aus Müllverbrennungsanlage | P51: Abfall | Q51: Abfall | R51: Abfall | S51: Steam turbine | T51: OPSD (2018) | U51: 0.33 | V51: OPSD (2018) | W51: 12 | X51: =(1-VLOOKUP(R51,Start!$H$33:$I$40,2,FALSE)/100)*W51 -> 10.2 | Y51: =VLOOKUP(Q51,Start!$C$9:$D$15,2,FALSE)+VLOOKUP(Q51,Start!$C$23:$D$29,2,FALSE) -> 0 | Z51: =(Y51/U51)+Start!$D$19*(VLOOKUP(Q51,Start!$M$33:$N$39,2,FALSE)/U51)+VLOOKUP(R51,Start!$C$33:$D$40,2,FALSE) -> 1
C52: Ja | D52: BNA0117b | E52: Energie- und Wasserversorgung Bonn/Rhein-Sieg GmbH | F52: Heizkraftwerk Karlstraße | G52: 53115 | H52: Bonn | J52: Nordrhein-Westfalen | K52: Heizkraftwerk Karlstraße | L52: 01.11.2013 | M52: Mehrere Energieträger | N52: Erdgas | O52: Dampf aus Müllverbrennungsanlage | P52: Erdgas | Q52: Erdgas | R52: GuD | S52: Steam turbine | T52: OPSD (2018) | U52: 0.3993 | V52: OPSD (2018) | W52: 95 | X52: =(1-VLOOKUP(R52,Start!$H$33:$I$40,2,FALSE)/100)*W52 -> 82.65 | Y52: =VLOOKUP(Q52,Start!$C$9:$D$15,2,FALSE)+VLOOKUP(Q52,Start!$C$23:$D$29,2,FALSE) -> 14.07 | Z52: =(Y52/U52)+Start!$D$19*(VLOOKUP(Q52,Start!$M$33:$N$39,2,FALSE)/U52)+VLOOKUP(R52,Start!$C$33:$D$40,2,FALSE) -> 49.25379647
C53: Ja | D53: BNA0122 | E53: Lausitz Energie Kraftwerke AG | F53: Boxberg | G53: 2943 | H53: Boxberg | I53: Am Kraftwerk 1 | J53: Sachsen | K53: N | L53: 01.01.1979 | M53: Braunkohle | P53: Braunkohle | Q53: Braunkohle | R53: Braunkohle | S53: Steam turbine | T53: OPSD (2018) | U53: 0.3832 | V53: OPSD (2018) | W53: 465 | X53: =(1-VLOOKUP(R53,Start!$H$33:$I$40,2,FALSE)/100)*W53 -> 409.2 | Y53: =VLOOKUP(Q53,Start!$C$9:$D$15,2,FALSE)+VLOOKUP(Q53,Start!$C$23:$D$29,2,FALSE) -> 3.1 | Z53: =(Y53/U53)+Start!$D$19*(VLOOKUP(Q53,Start!$M$33:$N$39,2,FALSE)/U53)+VLOOKUP(R53,Start!$C$33:$D$40,2,FALSE) -> 36.00562137
C54: Ja | D54: BNA0123 | E54: Lausitz Energie Kraftwerke AG | F54: Boxberg | G54: 2943 | H54: Boxberg | I54: Am Kraftwerk 1 | J54: Sachsen | K54: P | L54: 01.07.1980 | M54: Braunkohle | P54: Braunkohle | Q54: Braunkohle | R54: Braunkohle | S54: Steam turbine | T54: OPSD (2018) | U54: 0.3856 | V54: OPSD (2018) | W54: 465 | X54: =(1-VLOOKUP(R54,Start!$H$33:$I$40,2,FALSE)/100)*W54 -> 409.2 | Y54: =VLOOKUP(Q54,Start!$C$9:$D$15,2,FALSE)+VLOOKUP(Q54,Start!$C$23:$D$29,2,FALSE) -> 3.1 | Z54: =(Y54/U54)+Start!$D$19*(VLOOKUP(Q54,Start!$M$33:$N$39,2,FALSE)/U54)+VLOOKUP(R54,Start!$C$33:$D$40,2,FALSE) -> 35.7921009
C55: Ja | D55: BNA0124 | E55: Lausitz Energie Kraftwerke AG | F55: Boxberg | G55: 2943 | H55: Boxberg | I55: Am Kraftwerk 1 | J55: Sachsen | K55: Q | L55: 01.10.2000 | M55: Braunkohle | P55: Braunkohle | Q55: Braunkohle | R55: Braunkohle | S55: Steam turbine | T55: OPSD (2018) | U55: 0.4 | V55: OPSD (2018) | W55: 857 | X55: =(1-VLOOKUP(R55,Start!$H$33:$I$40,2,FALSE)/100)*W55 -> 754.16 | Y55: =VLOOKUP(Q55,Start!$C$9:$D$15,2,FALSE)+VLOOKUP(Q55,Start!$C$23:$D$29,2,FALSE) -> 3.1 | Z55: =(Y55/U55)+Start!$D$19*(VLOOKUP(Q55,Start!$M$33:$N$39,2,FALSE)/U55)+VLOOKUP(R55,Start!$C$33:$D$40,2,FALSE) -> 34.56478527
C56: Ja | D56: BNA0129 | E56: StWB Stadtwerke Brandenburg an der Havel GmbH & Co. KG | F56: HKW | G56: 14772 | H56: Brandenburg | J56: Brandenburg | L56: 1997 | M56: Erdgas | N56: Erdgas | P56: Erdgas | Q56: Erdgas | R56: GuD | S56: Steam turbine | T56: OPSD (2018) | U56: 0.3817 | V56: OPSD (2018) | W56: 36 | X56: =(1-VLOOKUP(R56,Start!$H$33:$I$40,2,FALSE)/100)*W56 -> 31.32 | Y56: =VLOOKUP(Q56,Start!$C$9:$D$15,2,FALSE)+VLOOKUP(Q56,Start!$C$23:$D$29,2,FALSE) -> 14.07 | Z56: =(Y56/U56)+Start!$D$19*(VLOOKUP(Q56,Start!$M$33:$N$39,2,FALSE)/U56)+VLOOKUP(R56,Start!$C$33:$D$40,2,FALSE) -> 51.45570063
C57: Ja | D57: BNA0130 | E57: Uniper Kraftwerke GmbH | F57: Kirchmöser | G57: 14774 | H57: Brandenburg | J57: Brandenburg | L57: 01.01.1994 | M57: Erdgas | P57: Erdgas | Q57: Erdgas | R57: GuD | S57: Combined cycle | T57: OPSD (2018) | U57: 0.513 | V57: OPSD (2018) | W57: 160 | X57: =(1-VLOOKUP(R57,Start!$H$33:$I$40,2,FALSE)/100)*W57 -> 139.2 | Y57: =VLOOKUP(Q57,Start!$C$9:$D$15,2,FALSE)+VLOOKUP(Q57,Start!$C$23:$D$29,2,FALSE) -> 14.07 | Z57: =(Y57/U57)+Start!$D$19*(VLOOKUP(Q57,Start!$M$33:$N$39,2,FALSE)/U57)+VLOOKUP(R57,Start!$C$33:$D$40,2,FALSE) -> 38.6697679
C58: Ja | D58: BNA0135 | E58: Braunschweiger Versorgungs-AG & Co. KG | F58: HKW-Mitte | G58: 38106 | H58: Braunschweig | J58: Niedersachsen | K58: Block 12 | L58: 15.07.1971 | M58: Mehrere Energieträger | N58: Erdgas | O58: Heizöl S | P58: Erdgas | Q58: Erdgas | R58: GuD | S58: Combined cycle | T58: OPSD (2018) | U58: 0.4095 | V58: OPSD (2018) | W58: 20 | X58: =(1-VLOOKUP(R58,Start!$H$33:$I$40,2,FALSE)/100)*W58 -> 17.4 | Y58: =VLOOKUP(Q58,Start!$C$9:$D$15,2,FALSE)+VLOOKUP(Q58,Start!$C$23:$D$29,2,FALSE) -> 14.07 | Z58: =(Y58/U58)+Start!$D$19*(VLOOKUP(Q58,Start!$M$33:$N$39,2,FALSE)/U58)+VLOOKUP(R58,Start!$C$33:$D$40,2,FALSE) -> 48.06432462
C59: Ja | D59: BNA0136 | E59: Braunschweiger Versorgungs-AG & Co. KG | F59: HKW-Mitte | G59: 38106 | H59: Braunschweig | J59: Niedersachsen | K59: GuD | L59: 30.12.2010 | M59: Mehrere Energieträger | N59: Erdgas | O59: Heizöl L | P59: Erdgas | Q59: Erdgas | R59: GuD | S59: Combined cycle | T59: OPSD (2018) | U59: 0.585 | V59: OPSD (2018) | W59: 74 | X59: =(1-VLOOKUP(R59,Start!$H$33:$I$40,2,FALSE)/100)*W59 -> 64.38 | Y59: =VLOOKUP(Q59,Start!$C$9:$D$15,2,FALSE)+VLOOKUP(Q59,Start!$C$23:$D$29,2,FALSE) -> 14.07 | Z59: =(Y59/U59)+Start!$D$19*(VLOOKUP(Q59,Start!$M$33:$N$39,2,FALSE)/U59)+VLOOKUP(R59,Start!$C$33:$D$40,2,FALSE) -> 34.09502723
C60: Ja | D60: BNA0137 | E60: Braunschweiger Versorgungs-AG & Co. KG | F60: HKW-Nord | G60: 38112 | H60: Braunschweig | J60: Niedersachsen | K60: GT | L60: 10.05.1965 | M60: Mehrere Energieträger | N60: Erdgas | O60: Heizöl L | P60: Erdgas | Q60: Erdgas | R60: Gasturbine | S60: Gas turbine | T60: OPSD (2018) | U60: 0.289 | V60: OPSD (2018) | W60: 25 | X60: =(1-VLOOKUP(R60,Start!$H$33:$I$40,2,FALSE)/100)*W60 -> 21.75 | Y60: =VLOOKUP(Q60,Start!$C$9:$D$15,2,FALSE)+VLOOKUP(Q60,Start!$C$23:$D$29,2,FALSE) -> 14.07 | Z60: =(Y60/U60)+Start!$D$19*(VLOOKUP(Q60,Start!$M$33:$N$39,2,FALSE)/U60)+VLOOKUP(R60,Start!$C$33:$D$40,2,FALSE) -> 66.97955339
C61: Ja | D61: BNA0138 | E61: Braunschweiger Versorgungs-AG & Co. KG | F61: HKW-Mitte | G61: 38106 | H61: Braunschweig | J61: Niedersachsen | K61: Block 1 | L61: 10.07.1984 | M61: Mehrere Energieträger | N61: Steinkohle | O61: Heizöl S | P61: Steinkohle | Q61: Steinkohle | R61: Steinkohle | S61: Combined cycle | T61: OPSD (2018) | U61: 0.468 | V61: OPSD (2018) | W61: 43.3 | X61: =(1-VLOOKUP(R61,Start!$H$33:$I$40,2,FALSE)/100)*W61 -> 34.207 | Y61: =VLOOKUP(Q61,Start!$C$9:$D$15,2,FALSE)+VLOOKUP(Q61,Start!$C$23:$D$29,2,FALSE) -> 9.17 | Z61: =(Y61/U61)+Start!$D$19*(VLOOKUP(Q61,Start!$M$33:$N$39,2,FALSE)/U61)+VLOOKUP(R61,Start!$C$33:$D$40,2,FALSE) -> 38.79975171
C62: Ja | D62: BNA0139 | E62: swb Entsorgung GmbH & Co. KG | F62: KW Hafen | G62: 28237 | H62: Bremen | I62: Otavistr. 7-9 | J62: Bremen | K62: MKK | L62: 1905-07-01 | M62: Abfall | P62: Abfall | Q62: Abfall | R62: Abfall | S62: Steam turbine | T62: OPSD (2018) | U62: 0.33 | V62: OPSD (2018) | W62: 33 | X62: =(1-VLOOKUP(R62,Start!$H$33:$I$40,2,FALSE)/100)*W62 -> 28.05 | Y62: =VLOOKUP(Q62,Start!$C$9:$D$15,2,FALSE)+VLOOKUP(Q62,Start!$C$23:$D$29,2,FALSE) -> 0 | Z62: =(Y62/U62)+Start!$D$19*(VLOOKUP(Q62,Start!$M$33:$N$39,2,FALSE)/U62)+VLOOKUP(R62,Start!$C$33:$D$40,2,FALSE) -> 1
C63: Ja | D63: BNA0141 | E63: swb Erzeugung AG & Co. KG | F63: KW Mittelsbüren | G63: 28237 | H63: Bremen | I63: Auf den Delben 35 | J63: Bremen | K63: GT 3 | L63: 01.01.1975 | M63: Mineralölprodukte | N63: Öl | P63: Mineralölprodukte | Q63: Öl | R63: Öl | S63: Gas turbine | T63: OPSD (2018) | U63: 0.315 | V63: OPSD (2018) | W63: 86 | X63: =(1-VLOOKUP(R63,Start!$H$33:$I$40,2,FALSE)/100)*W63 -> 73.1 | Y63: =VLOOKUP(Q63,Start!$C$9:$D$15,2,FALSE)+VLOOKUP(Q63,Start!$C$23:$D$29,2,FALSE) -> 33.44 | Z63: =(Y63/U63)+Start!$D$19*(VLOOKUP(Q63,Start!$M$33:$N$39,2,FALSE)/U63)+VLOOKUP(R63,Start!$C$33:$D$40,2,FALSE) -> 129.2619515
C64: Ja | D64: BNA0142 | E64: ArcelorMittal Bremen GmbH | F64: KW Mittelsbüren | G64: 28237 | H64: Bremen | I64: Auf den Delben 35 | J64: Bremen | K64: Block 4 | L64: 1975 | M64: andere Gase | N64: Gichtgas | O64: Erdgas | P64: Sonstige Energieträger (nicht erneuerbar) | Q64: Erdgas | R64: GuD | S64: Steam turbine | T64: OPSD (2018) | U64: 0.352 | V64: Annahme basierend auf DIW (2014) | W64: 160 | X64: =(1-VLOOKUP(R64,Start!$H$33:$I$40,2,FALSE)/100)*W64 -> 139.2 | Y64: =VLOOKUP(Q64,Start!$C$9:$D$15,2,FALSE)+VLOOKUP(Q64,Start!$C$23:$D$29,2,FALSE) -> 14.07 | Z64: =(Y64/U64)+Start!$D$19*(VLOOKUP(Q64,Start!$M$33:$N$39,2,FALSE)/U64)+VLOOKUP(R64,Start!$C$33:$D$40,2,FALSE) -> 55.67071287
C65: Ja | D65: BNA0144 | E65: swb Erzeugung AG & Co. KG | F65: KW Hastedt | G65: 28207 | H65: Bremen | I65: Hastedter Osterdeich 255 | J65: Bremen | K65: Block 15 | L65: 01.03.2014 | M65: Steinkohle | P65: Steinkohle | Q65: Steinkohle | R65: Steinkohle | S65: Steam turbine | T65: OPSD (2018) | U65: 0.46 | V65: OPSD (2018) | W65: 119 | X65: =(1-VLOOKUP(R65,Start!$H$33:$I$40,2,FALSE)/100)*W65 -> 94.01 | Y65: =VLOOKUP(Q65,Start!$C$9:$D$15,2,FALSE)+VLOOKUP(Q65,Start!$C$23:$D$29,2,FALSE) -> 9.17 | Z65: =(Y65/U65)+Start!$D$19*(VLOOKUP(Q65,Start!$M$33:$N$39,2,FALSE)/U65)+VLOOKUP(R65,Start!$C$33:$D$40,2,FALSE) -> 39.4519213
C66: Ja | D66: BNA0146 | E66: swb Erzeugung AG & Co. KG | F66: KW Hafen | G66: 28237 | H66: Bremen | I66: Otavistr. 7-9 | J66: Bremen | K66: Block 6 | L66: 01.12.1979 | M66: Steinkohle | P66: Steinkohle | Q66: Steinkohle | R66: Steinkohle | S66: Steam turbine | T66: OPSD (2018) | U66: 0.3725 | V66: OPSD (2018) | W66: 303 | X66: =(1-VLOOKUP(R66,Start!$H$33:$I$40,2,FALSE)/100)*W66 -> 239.37 | Y66: =VLOOKUP(Q66,Start!$C$9:$D$15,2,FALSE)+VLOOKUP(Q66,Start!$C$23:$D$29,2,FALSE) -> 9.17 | Z66: =(Y66/U66)+Start!$D$19*(VLOOKUP(Q66,Start!$M$33:$N$39,2,FALSE)/U66)+VLOOKUP(R66,Start!$C$33:$D$40,2,FALSE) -> 48.41378201
C67: Ja | D67: BNA0147 | E67: ENGIE Deutschland AG | F67: Farge | G67: 28777 | H67: Bremen | I67: Wilhelmshavener Str. 6 | J67: Bremen | K67: Farge | L67: 01.01.1969 | M67: Mehrere Energieträger | N67: Steinkohle | O67: Klärschlamm, HSL, HEL | P67: Steinkohle | Q67: Steinkohle | R67: Steinkohle | S67: Steam turbine | T67: OPSD (2018) | U67: 0.4425 | V67: OPSD (2018) | W67: 350 | X67: =(1-VLOOKUP(R67,Start!$H$33:$I$40,2,FALSE)/100)*W67 -> 276.5 | Y67: =VLOOKUP(Q67,Start!$C$9:$D$15,2,FALSE)+VLOOKUP(Q67,Start!$C$23:$D$29,2,FALSE) -> 9.17 | Z67: =(Y67/U67)+Start!$D$19*(VLOOKUP(Q67,Start!$M$33:$N$39,2,FALSE)/U67)+VLOOKUP(R67,Start!$C$33:$D$40,2,FALSE) -> 40.96075435
C68: Ja | D68: BNA0156b | E68: Egger Holzwerkstoffe Brilon GmbH & Co. KG | F68: Egger Kraftwerk Brilon | G68: 59929 | H68: Brilon | I68: Im Kissen 19 | J68: Nordrhein-Westfalen | K68: Gasturbinen - KWK - Anlage | L68: 01.05.1996 | M68: Erdgas | P68: Erdgas | Q68: Erdgas | R68: Gasturbine | S68: Gas turbine | T68: OPSD (2018) | U68: 0.3696 | V68: OPSD (2018) | W68: 13.5 | X68: =(1-VLOOKUP(R68,Start!$H$33:$I$40,2,FALSE)/100)*W68 -> 11.745 | Y68: =VLOOKUP(Q68,Start!$C$9:$D$15,2,FALSE)+VLOOKUP(Q68,Start!$C$23:$D$29,2,FALSE) -> 14.07 | Z68: =(Y68/U68)+Start!$D$19*(VLOOKUP(Q68,Start!$M$33:$N$39,2,FALSE)/U68)+VLOOKUP(R68,Start!$C$33:$D$40,2,FALSE) -> 52.59115511
C69: Ja | D69: BNA0157 | E69: Preussen Elektra GmbH | F69: Brokdorf | G69: 25576 | H69: Brokdorf | J69: Schleswig-Holstein | K69: KBR | L69: 22.12.1986 | M69: Kernenergie | P69: Kernenergie | Q69: Kernenergie | R69: Kernenergie | S69: Steam turbine | T69: OPSD (2018) | U69: 0.33 | V69: OPSD (2018) | W69: 1410 | X69: =(1-VLOOKUP(R69,Start!$H$33:$I$40,2,FALSE)/100)*W69 -> 1311.3 | Y69: =VLOOKUP(Q69,Start!$C$9:$D$15,2,FALSE)+VLOOKUP(Q69,Start!$C$23:$D$29,2,FALSE) -> 5.5 | Z69: =(Y69/U69)+Start!$D$19*(VLOOKUP(Q69,Start!$M$33:$N$39,2,FALSE)/U69)+VLOOKUP(R69,Start!$C$33:$D$40,2,FALSE) -> 17.86666667
C70: Ja | D70: BNA0172a | E70: Wacker Chemie AG | F70: Burghausen 01 - GT | G70: 84489 | H70: Burghausen | I70: Johannes-Hess Straße 24 | J70: Bayern | L70: 27.07.2001 | M70: Erdgas | P70: Erdgas | Q70: Erdgas | R70: GuD | S70: Combined cycle | T70: OPSD (2018) | U70: 0.5445 | V70: OPSD (2018) | W70: 120 | X70: =(1-VLOOKUP(R70,Start!$H$33:$I$40,2,FALSE)/100)*W70 -> 104.4 | Y70: =VLOOKUP(Q70,Start!$C$9:$D$15,2,FALSE)+VLOOKUP(Q70,Start!$C$23:$D$29,2,FALSE) -> 14.07 | Z70: =(Y70/U70)+Start!$D$19*(VLOOKUP(Q70,Start!$M$33:$N$39,2,FALSE)/U70)+VLOOKUP(R70,Start!$C$33:$D$40,2,FALSE) -> 36.51945074
C71: Ja | D71: BNA0172b | E71: Wacker Chemie AG | F71: Burghausen 01 - DT | G71: 84489 | H71: Burghausen | I71: Johannes-Hess Straße 24 | J71: Bayern | L71: 14.05.1979 | M71: Erdgas | N71: Heizöl/EL | P71: Erdgas | Q71: Erdgas | R71: GuD | S71: Steam turbine | T71: OPSD (2018) | U71: 0.3619 | V71: OPSD (2018) | W71: 50 | X71: =(1-VLOOKUP(R71,Start!$H$33:$I$40,2,FALSE)/100)*W71 -> 43.5 | Y71: =VLOOKUP(Q71,Start!$C$9:$D$15,2,FALSE)+VLOOKUP(Q71,Start!$C$23:$D$29,2,FALSE) -> 14.07 | Z71: =(Y71/U71)+Start!$D$19*(VLOOKUP(Q71,Start!$M$33:$N$39,2,FALSE)/U71)+VLOOKUP(R71,Start!$C$33:$D$40,2,FALSE) -> 54.18883927
C72: Ja | D72: BNA0174 | E72: InfraServ GmbH & Co. Gendorf KG | F72: Industriepark Werk Gendorf | G72: 84508 | H72: Burgkirchen | J72: Bayern | L72: 19.07.2002 | M72: Erdgas | P72: Erdgas | Q72: Erdgas | R72: GuD | S72: Steam turbine | T72: OPSD (2018) | U72: 0.3872 | V72: OPSD (2018) | W72: 73.1 | X72: =(1-VLOOKUP(R72,Start!$H$33:$I$40,2,FALSE)/100)*W72 -> 63.597 | Y72: =VLOOKUP(Q72,Start!$C$9:$D$15,2,FALSE)+VLOOKUP(Q72,Start!$C$23:$D$29,2,FALSE) -> 14.07 | Z72: =(Y72/U72)+Start!$D$19*(VLOOKUP(Q72,Start!$M$33:$N$39,2,FALSE)/U72)+VLOOKUP(R72,Start!$C$33:$D$40,2,FALSE) -> 50.74610261
C73: Ja | D73: BNA0177 | E73: eins - energie in sachsen GmbH & Co. KG | F73: HKW Chemnitz Nord II | G73: 9115 | H73: Chemnitz | J73: Sachsen | K73: Block B | L73: 01.09.1988 | M73: Mehrere Energieträger | N73: Rohbraunkohle | O73: Ersatzbrennstoff, Erdgas (Zünd- und Stützgas) | P73: Braunkohle | Q73: Braunkohle | R73: Braunkohle | S73: Steam turbine | T73: OPSD (2018) | U73: 0.3712 | V73: OPSD (2018) | W73: 56.8 | X73: =(1-VLOOKUP(R73,Start!$H$33:$I$40,2,FALSE)/100)*W73 -> 49.984 | Y73: =VLOOKUP(Q73,Start!$C$9:$D$15,2,FALSE)+VLOOKUP(Q73,Start!$C$23:$D$29,2,FALSE) -> 3.1 | Z73: =(Y73/U73)+Start!$D$19*(VLOOKUP(Q73,Start!$M$33:$N$39,2,FALSE)/U73)+VLOOKUP(R73,Start!$C$33:$D$40,2,FALSE) -> 37.1146393
C74: Ja | D74: BNA0179 | E74: eins - energie in sachsen GmbH & Co. KG | F74: HKW Chemnitz Nord II | G74: 9116 | H74: Chemnitz | J74: Sachsen | K74: Block C | L74: 15.06.1990 | M74: Mehrere Energieträger | N74: Rohbraunkohle | O74: Ersatzbrennstoff, Erdgas (beide Stütz-/Zusatzenergieträger) | P74: Braunkohle | Q74: Braunkohle | R74: Braunkohle | S74: Steam turbine | T74: OPSD (2018) | U74: 0.424 | V74: OPSD (2018) | W74: 90.8 | X74: =(1-VLOOKUP(R74,Start!$H$33:$I$40,2,FALSE)/100)*W74 -> 79.904 | Y74: =VLOOKUP(Q74,Start!$C$9:$D$15,2,FALSE)+VLOOKUP(Q74,Start!$C$23:$D$29,2,FALSE) -> 3.1 | Z74: =(Y74/U74)+Start!$D$19*(VLOOKUP(Q74,Start!$M$33:$N$39,2,FALSE)/U74)+VLOOKUP(R74,Start!$C$33:$D$40,2,FALSE) -> 32.70451441
C75: Ja | D75: BNA0183 | E75: Stadtwerke Cottbus mbH | F75: HKW Cottbus | G75: 3052 | H75: Cottbus | J75: Brandenburg | K75: 1 | L75: 16.12.1999 | M75: Mehrere Energieträger | N75: Wirbelschichtbraunkohle | O75: Erdgas, Heizöl | P75: Braunkohle | Q75: Braunkohle | R75: Braunkohle | S75: Steam turbine | T75: OPSD (2018) | U75: 0.3976 | V75: OPSD (2018) | W75: 74 | X75: =(1-VLOOKUP(R75,Start!$H$33:$I$40,2,FALSE)/100)*W75 -> 65.12 | Y75: =VLOOKUP(Q75,Start!$C$9:$D$15,2,FALSE)+VLOOKUP(Q75,Start!$C$23:$D$29,2,FALSE) -> 3.1 | Z75: =(Y75/U75)+Start!$D$19*(VLOOKUP(Q75,Start!$M$33:$N$39,2,FALSE)/U75)+VLOOKUP(R75,Start!$C$33:$D$40,2,FALSE) -> 34.76316426
C76: Ja | D76: BNA0194 | E76: Fernwärmeversorgungs-GmbH Dessau | F76: Kraftwerk Dessau | G76: 6842 | H76: Dessau-Roßlau | J76: Sachsen-Anhalt | L76: 01.01.1996 | M76: Erdgas | N76: Braunkohle, Erdgas | O76: HEL | P76: Braunkohle | Q76: Erdgas | R76: GuD | S76: Steam turbine | T76: eigene Annahme | U76: 0.396 | V76: Annahme basierend auf DIW (2014) | W76: 39 | X76: =(1-VLOOKUP(R76,Start!$H$33:$I$40,2,FALSE)/100)*W76 -> 33.93 | Y76: =VLOOKUP(Q76,Start!$C$9:$D$15,2,FALSE)+VLOOKUP(Q76,Start!$C$23:$D$29,2,FALSE) -> 14.07 | Z76: =(Y76/U76)+Start!$D$19*(VLOOKUP(Q76,Start!$M$33:$N$39,2,FALSE)/U76)+VLOOKUP(R76,Start!$C$33:$D$40,2,FALSE) -> 49.65174477
C77: Ja | D77: BNA0196 | E77: Mitteldeutsche Braunkohlengesellschaft mbH | F77: Deuben | G77: 6682 | H77: Teuchern | J77: Sachsen-Anhalt | L77: 09.10.1936 | M77: Braunkohle | P77: Braunkohle | Q77: Braunkohle | R77: Braunkohle | S77: Steam turbine | T77: OPSD (2018) | U77: 0.2464 | V77: OPSD (2018) | W77: 67 | X77: =(1-VLOOKUP(R77,Start!$H$33:$I$40,2,FALSE)/100)*W77 -> 58.96 | Y77: =VLOOKUP(Q77,Start!$C$9:$D$15,2,FALSE)+VLOOKUP(Q77,Start!$C$23:$D$29,2,FALSE) -> 3.1 | Z77: =(Y77/U77)+Start!$D$19*(VLOOKUP(Q77,Start!$M$33:$N$39,2,FALSE)/U77)+VLOOKUP(R77,Start!$C$33:$D$40,2,FALSE) -> 55.05192414
C78: Ja | D78: BNA0199 | E78: RWE Generation SE | F78: Dormagen | G78: 41539 | H78: Dormagen | J78: Nordrhein-Westfalen | K78: GuD | L78: 01.07.2000 | M78: Erdgas | N78: Erdgas | O78: Öl | P78: Erdgas | Q78: Erdgas | R78: GuD | S78: Combined cycle | T78: OPSD (2018) | U78: 0.54 | V78: OPSD (2018) | W78: 586 | X78: =(1-VLOOKUP(R78,Start!$H$33:$I$40,2,FALSE)/100)*W78 -> 509.82 | Y78: =VLOOKUP(Q78,Start!$C$9:$D$15,2,FALSE)+VLOOKUP(Q78,Start!$C$23:$D$29,2,FALSE) -> 14.07 | Z78: =(Y78/U78)+Start!$D$19*(VLOOKUP(Q78,Start!$M$33:$N$39,2,FALSE)/U78)+VLOOKUP(R78,Start!$C$33:$D$40,2,FALSE) -> 36.8112795
C79: Ja | D79: BNA0202 | E79: RWE Generation SE | F79: Dortmund | G79: 44143 | H79: Dortmund | J79: Nordrhein-Westfalen | K79: KDO | L79: 22.03.2004 | M79: Erdgas | P79: Erdgas | Q79: Erdgas | R79: GuD | S79: Steam turbine | T79: OPSD (2018) | U79: 0.3894 | V79: OPSD (2018) | W79: 26 | X79: =(1-VLOOKUP(R79,Start!$H$33:$I$40,2,FALSE)/100)*W79 -> 22.62 | Y79: =VLOOKUP(Q79,Start!$C$9:$D$15,2,FALSE)+VLOOKUP(Q79,Start!$C$23:$D$29,2,FALSE) -> 14.07 | Z79: =(Y79/U79)+Start!$D$19*(VLOOKUP(Q79,Start!$M$33:$N$39,2,FALSE)/U79)+VLOOKUP(R79,Start!$C$33:$D$40,2,FALSE) -> 50.46787604
C80: Ja | D80: BNA0207 | E80: DREWAG Stadtwerke Dresden GmbH | F80: HKW Dresden-Nossener Brücke | G80: 1169 | H80: Dresden | I80: Oederaner Str. 21 - 25 | J80: Sachsen | K80: HKW Dresden-Nossener Brücke (3 GT + 1 DT, Sammelschiene) | L80: 28.09.1995 | M80: Mehrere Energieträger | N80: Erdgas | O80: HEL | P80: Erdgas | Q80: Erdgas | R80: GuD | S80: Combined cycle | T80: OPSD (2018) | U80: 0.5175 | V80: OPSD (2018) | W80: 260 | X80: =(1-VLOOKUP(R80,Start!$H$33:$I$40,2,FALSE)/100)*W80 -> 226.2 | Y80: =VLOOKUP(Q80,Start!$C$9:$D$15,2,FALSE)+VLOOKUP(Q80,Start!$C$23:$D$29,2,FALSE) -> 14.07 | Z80: =(Y80/U80)+Start!$D$19*(VLOOKUP(Q80,Start!$M$33:$N$39,2,FALSE)/U80)+VLOOKUP(R80,Start!$C$33:$D$40,2,FALSE) -> 38.34655252
C81: Ja | D81: BNA0213 | E81: Stadtwerke Duisburg AG | F81: HKW III/A | G81: 47249 | H81: Duisburg | I81: Wanheimer Straße 439-454 | J81: Nordrhein-Westfalen | K81: HKW III/A | L81: 01.01.2002 | M81: Mehrere Energieträger | N81: Erdgas | O81: Heizöl | P81: Erdgas | Q81: Erdgas | R81: GuD | S81: Steam turbine | T81: OPSD (2018) | U81: 0.3872 | V81: OPSD (2018) | W81: 40 | X81: =(1-VLOOKUP(R81,Start!$H$33:$I$40,2,FALSE)/100)*W81 -> 34.8 | Y81: =VLOOKUP(Q81,Start!$C$9:$D$15,2,FALSE)+VLOOKUP(Q81,Start!$C$23:$D$29,2,FALSE) -> 14.07 | Z81: =(Y81/U81)+Start!$D$19*(VLOOKUP(Q81,Start!$M$33:$N$39,2,FALSE)/U81)+VLOOKUP(R81,Start!$C$33:$D$40,2,FALSE) -> 50.74610261
C82: Ja | D82: BNA0214 | E82: Stadtwerke Duisburg AG | F82: HKW III/B | G82: 47249 | H82: Duisburg | I82: Wanheimer Straße 439-454 | J82: Nordrhein-Westfalen | K82: HKW III/B | L82: 24.10.2005 | M82: Mehrere Energieträger | N82: Erdgas | O82: Heizöl | P82: Erdgas | Q82: Erdgas | R82: GuD | S82: Combined cycle | T82: OPSD (2018) | U82: 0.5625 | V82: OPSD (2018) | W82: 234 | X82: =(1-VLOOKUP(R82,Start!$H$33:$I$40,2,FALSE)/100)*W82 -> 203.58 | Y82: =VLOOKUP(Q82,Start!$C$9:$D$15,2,FALSE)+VLOOKUP(Q82,Start!$C$23:$D$29,2,FALSE) -> 14.07 | Z82: =(Y82/U82)+Start!$D$19*(VLOOKUP(Q82,Start!$M$33:$N$39,2,FALSE)/U82)+VLOOKUP(R82,Start!$C$33:$D$40,2,FALSE) -> 35.39882832
C83: Ja | D83: BNA0216a | E83: Steag GmbH | F83: KW Walsum | G83: 47180 | H83: Duisburg | I83: Dr. Wilhelm-Roelen-Str.129 | J83: Nordrhein-Westfalen | K83: Walsum 9 | L83: 01.06.1988 | M83: Steinkohle | P83: Steinkohle | Q83: Steinkohle | R83: Steinkohle | S83: Steam turbine | T83: OPSD (2018) | U83: 0.395 | V83: OPSD (2018) | W83: 370 | X83: =(1-VLOOKUP(R83,Start!$H$33:$I$40,2,FALSE)/100)*W83 -> 292.3 | Y83: =VLOOKUP(Q83,Start!$C$9:$D$15,2,FALSE)+VLOOKUP(Q83,Start!$C$23:$D$29,2,FALSE) -> 9.17 | Z83: =(Y83/U83)+Start!$D$19*(VLOOKUP(Q83,Start!$M$33:$N$39,2,FALSE)/U83)+VLOOKUP(R83,Start!$C$33:$D$40,2,FALSE) -> 45.73008557
C84: Ja | D84: BNA0216b | E84: STEAG-EVN Walsum 10 Kraftwerksgesellsellschaft mbH | F84: KW Walsum | G84: 47180 | H84: Duisburg | I84: Dr. Wilhelm-Roelen-Str.129 | J84: Nordrhein-Westfalen | K84: Walsum 10 | L84: 20.12.2013 | M84: Steinkohle | P84: Steinkohle | Q84: Steinkohle | R84: Steinkohle | S84: Steam turbine | T84: OPSD (2018) | U84: 0.4575 | V84: OPSD (2018) | W84: 725 | X84: =(1-VLOOKUP(R84,Start!$H$33:$I$40,2,FALSE)/100)*W84 -> 572.75 | Y84: =VLOOKUP(Q84,Start!$C$9:$D$15,2,FALSE)+VLOOKUP(Q84,Start!$C$23:$D$29,2,FALSE) -> 9.17 | Z84: =(Y84/U84)+Start!$D$19*(VLOOKUP(Q84,Start!$M$33:$N$39,2,FALSE)/U84)+VLOOKUP(R84,Start!$C$33:$D$40,2,FALSE) -> 39.66040175
C85: Ja | D85: BNA0217 | E85: ThyssenKrupp Steel Europe AG | F85: Duisburg Ruhrort 2 | G85: 47166 | H85: Duisburg - Ruhrort | J85: Nordrhein-Westfalen | K85: Block 2 | L85: 01.01.1955 | M85: Sonstige Energieträger | N85: Kuppelprdukte der Stahl- und Kokserzeugung | P85: Sonstige Energieträger (nicht erneuerbar) | Q85: Erdgas | R85: GuD | S85: Steam turbine | T85: OPSD (2018) | U85: 0.33 | V85: Annahme basierend auf DIW (2014) | W85: 60 | X85: =(1-VLOOKUP(R85,Start!$H$33:$I$40,2,FALSE)/100)*W85 -> 52.2 | Y85: =VLOOKUP(Q85,Start!$C$9:$D$15,2,FALSE)+VLOOKUP(Q85,Start!$C$23:$D$29,2,FALSE) -> 14.07 | Z85: =(Y85/U85)+Start!$D$19*(VLOOKUP(Q85,Start!$M$33:$N$39,2,FALSE)/U85)+VLOOKUP(R85,Start!$C$33:$D$40,2,FALSE) -> 59.28209373
C86: Ja | D86: BNA0218 | E86: ThyssenKrupp Steel Europe AG | F86: Duisburg Ruhrort 3 | G86: 47166 | H86: Duisburg - Ruhrort | J86: Nordrhein-Westfalen | K86: Block 3 | L86: 01.01.1963 | M86: Sonstige Energieträger | N86: Kuppelprdukte der Stahl- und Kokserzeugung | P86: Sonstige Energieträger (nicht erneuerbar) | Q86: Erdgas | R86: GuD | S86: Steam turbine | T86: OPSD (2018) | U86: 0.341 | V86: Annahme basierend auf DIW (2014) | W86: 95 | X86: =(1-VLOOKUP(R86,Start!$H$33:$I$40,2,FALSE)/100)*W86 -> 82.65 | Y86: =VLOOKUP(Q86,Start!$C$9:$D$15,2,FALSE)+VLOOKUP(Q86,Start!$C$23:$D$29,2,FALSE) -> 14.07 | Z86: =(Y86/U86)+Start!$D$19*(VLOOKUP(Q86,Start!$M$33:$N$39,2,FALSE)/U86)+VLOOKUP(R86,Start!$C$33:$D$40,2,FALSE) -> 57.41815522
C87: Ja | D87: BNA0219 | E87: ThyssenKrupp Steel Europe AG | F87: Duisburg Ruhrort 4 | G87: 47166 | H87: Duisburg - Ruhrort | J87: Nordrhein-Westfalen | K87: Block 4 | L87: 01.01.1968 | M87: Sonstige Energieträger | N87: Kuppelprdukte der Stahl- und Kokserzeugung | P87: Sonstige Energieträger (nicht erneuerbar) | Q87: Erdgas | R87: GuD | S87: Steam turbine | T87: OPSD (2018) | U87: 0.341 | V87: Annahme basierend auf DIW (2014) | W87: 170 | X87: =(1-VLOOKUP(R87,Start!$H$33:$I$40,2,FALSE)/100)*W87 -> 147.9 | Y87: =VLOOKUP(Q87,Start!$C$9:$D$15,2,FALSE)+VLOOKUP(Q87,Start!$C$23:$D$29,2,FALSE) -> 14.07 | Z87: =(Y87/U87)+Start!$D$19*(VLOOKUP(Q87,Start!$M$33:$N$39,2,FALSE)/U87)+VLOOKUP(R87,Start!$C$33:$D$40,2,FALSE) -> 57.41815522
C88: Ja | D88: BNA0220 | E88: Stadtwerke Düsseldorf AG | F88: GuD | G88: 40221 | H88: Düsseldorf | I88: Auf der Lausward 75 | J88: Nordrhein-Westfalen | K88: AGuD | L88: 28.07.2000 | M88: Erdgas | P88: Erdgas | Q88: Erdgas | R88: GuD | S88: Combined cycle | T88: OPSD (2018) | U88: 0.54 | V88: OPSD (2018) | W88: 100 | X88: =(1-VLOOKUP(R88,Start!$H$33:$I$40,2,FALSE)/100)*W88 -> 87 | Y88: =VLOOKUP(Q88,Start!$C$9:$D$15,2,FALSE)+VLOOKUP(Q88,Start!$C$23:$D$29,2,FALSE) -> 14.07 | Z88: =(Y88/U88)+Start!$D$19*(VLOOKUP(Q88,Start!$M$33:$N$39,2,FALSE)/U88)+VLOOKUP(R88,Start!$C$33:$D$40,2,FALSE) -> 36.8112795
C89: Ja | D89: BNA0221a | E89: Stadtwerke Düsseldorf AG | F89: GT | G89: 40221 | H89: Düsseldorf | I89: Auf der Lausward 75 | J89: Nordrhein-Westfalen | K89: Block E GTE2 | L89: 21.02.1975 | M89: Erdgas | P89: Erdgas | Q89: Erdgas | R89: Gasturbine | S89: Gas turbine | T89: OPSD (2018) | U89: 0.315 | V89: OPSD (2018) | W89: 64.7 | X89: =(1-VLOOKUP(R89,Start!$H$33:$I$40,2,FALSE)/100)*W89 -> 56.289 | Y89: =VLOOKUP(Q89,Start!$C$9:$D$15,2,FALSE)+VLOOKUP(Q89,Start!$C$23:$D$29,2,FALSE) -> 14.07 | Z89: =(Y89/U89)+Start!$D$19*(VLOOKUP(Q89,Start!$M$33:$N$39,2,FALSE)/U89)+VLOOKUP(R89,Start!$C$33:$D$40,2,FALSE) -> 61.533622
C90: Ja | D90: BNA0221b | E90: Stadtwerke Düsseldorf AG | F90: GT | G90: 40221 | H90: Düsseldorf | I90: Auf der Lausward 75 | J90: Nordrhein-Westfalen | K90: Block E GTE1 | L90: 19.11.1974 | M90: Erdgas | P90: Erdgas | Q90: Erdgas | R90: Gasturbine | S90: Gas turbine | T90: OPSD (2018) | U90: 0.3124 | V90: OPSD (2018) | W90: 66.7 | X90: =(1-VLOOKUP(R90,Start!$H$33:$I$40,2,FALSE)/100)*W90 -> 58.029 | Y90: =VLOOKUP(Q90,Start!$C$9:$D$15,2,FALSE)+VLOOKUP(Q90,Start!$C$23:$D$29,2,FALSE) -> 14.07 | Z90: =(Y90/U90)+Start!$D$19*(VLOOKUP(Q90,Start!$M$33:$N$39,2,FALSE)/U90)+VLOOKUP(R90,Start!$C$33:$D$40,2,FALSE) -> 62.03742295
C91: Ja | D91: BNA0222 | E91: Stadtwerke Düsseldorf AG | F91: GT | G91: 40233 | H91: Düsseldorf | I91: Behrenstraße 85 | J91: Nordrhein-Westfalen | K91: GTKW | L91: 03.08.1972 | M91: Mineralölprodukte | P91: Mineralölprodukte | Q91: Öl | R91: Öl | S91: Gas turbine | T91: OPSD (2018) | U91: 0.3072 | V91: OPSD (2018) | W91: 86.2 | X91: =(1-VLOOKUP(R91,Start!$H$33:$I$40,2,FALSE)/100)*W91 -> 73.27 | Y91: =VLOOKUP(Q91,Start!$C$9:$D$15,2,FALSE)+VLOOKUP(Q91,Start!$C$23:$D$29,2,FALSE) -> 33.44 | Z91: =(Y91/U91)+Start!$D$19*(VLOOKUP(Q91,Start!$M$33:$N$39,2,FALSE)/U91)+VLOOKUP(R91,Start!$C$33:$D$40,2,FALSE) -> 132.5186026
C92: Ja | D92: BNA0223b | E92: Stadtwerke Düsseldorf AG | F92: DT | G92: 40233 | H92: Düsseldorf | I92: Behrenstraße 85 | J92: Nordrhein-Westfalen | K92: Flingern T1 | L92: 17.04.2000 | M92: Abfall | P92: Abfall | Q92: Abfall | R92: Abfall | S92: Steam turbine | T92: OPSD (2018) | U92: 0.33 | V92: OPSD (2018) | W92: 53.7 | X92: =(1-VLOOKUP(R92,Start!$H$33:$I$40,2,FALSE)/100)*W92 -> 45.645 | Y92: =VLOOKUP(Q92,Start!$C$9:$D$15,2,FALSE)+VLOOKUP(Q92,Start!$C$23:$D$29,2,FALSE) -> 0 | Z92: =(Y92/U92)+Start!$D$19*(VLOOKUP(Q92,Start!$M$33:$N$39,2,FALSE)/U92)+VLOOKUP(R92,Start!$C$33:$D$40,2,FALSE) -> 1
C93: Ja | D93: BNA0232c | E93: Sappi Ehingen GmbH | F93: Werkskraftwerk Sappi Ehingen | G93: 89584 | H93: Ehingen | I93: Kessel 6 - Turbine 4 | J93: Baden-Württemberg | L93: 07.07.1977 | M93: Erdgas | P93: Erdgas | Q93: Erdgas | R93: GuD | S93: Steam turbine | T93: OPSD (2018) | U93: 0.3597 | V93: OPSD (2018) | W93: 4 | X93: =(1-VLOOKUP(R93,Start!$H$33:$I$40,2,FALSE)/100)*W93 -> 3.48 | Y93: =VLOOKUP(Q93,Start!$C$9:$D$15,2,FALSE)+VLOOKUP(Q93,Start!$C$23:$D$29,2,FALSE) -> 14.07 | Z93: =(Y93/U93)+Start!$D$19*(VLOOKUP(Q93,Start!$M$33:$N$39,2,FALSE)/U93)+VLOOKUP(R93,Start!$C$33:$D$40,2,FALSE) -> 54.51109516
C94: Ja | D94: BNA0233 | E94: Stora Enso Sachsen GmbH | F94: Kombikraftwerk | G94: 4838 | H94: Eilenburg | I94: Am Schanzberg 1 | J94: Sachsen | L94: 01.09.1993 | M94: Mehrere Energieträger | N94: Erdgas | O94: Biogas, Papierfaserschlamm | P94: Erdgas | Q94: Erdgas | R94: GuD | S94: Steam turbine | T94: OPSD (2018) | U94: 0.3773 | V94: OPSD (2018) | W94: 46.6 | X94: =(1-VLOOKUP(R94,Start!$H$33:$I$40,2,FALSE)/100)*W94 -> 40.542 | Y94: =VLOOKUP(Q94,Start!$C$9:$D$15,2,FALSE)+VLOOKUP(Q94,Start!$C$23:$D$29,2,FALSE) -> 14.07 | Z94: =(Y94/U94)+Start!$D$19*(VLOOKUP(Q94,Start!$M$33:$N$39,2,FALSE)/U94)+VLOOKUP(R94,Start!$C$33:$D$40,2,FALSE) -> 52.0382744
C95: Ja | D95: BNA0237 | E95: Progroup Power 1 GmbH | F95: EBS-Heizkraftwerk | G95: 15890 | H95: Eisenhüttenstadt | J95: Brandenburg | L95: 10.02.2011 | M95: Mehrere Energieträger | N95: EBS / Abfall | O95: aufbereiteter Haushalts | P95: Sonstige Energieträger (nicht erneuerbar) | Q95: Abfall | R95: Abfall | S95: Steam turbine | T95: OPSD (2018) | U95: 0.33 | V95: eigene Annahme | W95: 23.5 | X95: =(1-VLOOKUP(R95,Start!$H$33:$I$40,2,FALSE)/100)*W95 -> 19.975 | Y95: =VLOOKUP(Q95,Start!$C$9:$D$15,2,FALSE)+VLOOKUP(Q95,Start!$C$23:$D$29,2,FALSE) -> 0 | Z95: =(Y95/U95)+Start!$D$19*(VLOOKUP(Q95,Start!$M$33:$N$39,2,FALSE)/U95)+VLOOKUP(R95,Start!$C$33:$D$40,2,FALSE) -> 1
C96: Ja | D96: BNA0238a | E96: ArcelorMittal Eisenhüttenstadt GmbH | F96: IKW | G96: 15890 | H96: Eisenhüttenstadt | I96: Werkstraße 1 | J96: Brandenburg | L96: 01.01.1954 | M96: Mehrere Energieträger | N96: Gichtgas, Konvertergas | O96: Erdgas (falls nicht genügend Gicht- bzw. Konvertergas zur Verfügung steht) | P96: Sonstige Energieträger (nicht erneuerbar) | Q96: Erdgas | R96: GuD | S96: Steam turbine | T96: OPSD (2018) | U96: 0.33 | V96: Annahme basierend auf DIW (2014) | W96: 45 | X96: =(1-VLOOKUP(R96,Start!$H$33:$I$40,2,FALSE)/100)*W96 -> 39.15 | Y96: =VLOOKUP(Q96,Start!$C$9:$D$15,2,FALSE)+VLOOKUP(Q96,Start!$C$23:$D$29,2,FALSE) -> 14.07 | Z96: =(Y96/U96)+Start!$D$19*(VLOOKUP(Q96,Start!$M$33:$N$39,2,FALSE)/U96)+VLOOKUP(R96,Start!$C$33:$D$40,2,FALSE) -> 59.28209373
C97: Ja | D97: BNA0238b | E97: ArcelorMittal Eisenhüttenstadt GmbH | F97: IKW | G97: 15890 | H97: Eisenhüttenstadt | I97: Werkstraße 1 | J97: Brandenburg | K97: Block 7 | L97: 2013 | M97: Mehrere Energieträger | N97: Gichtgas, Konvertergas | O97: Erdgas (als Ersatz) | P97: Sonstige Energieträger (nicht erneuerbar) | Q97: Erdgas | R97: GuD | S97: Steam turbine | T97: OPSD (2018) | U97: 0.396 | V97: Annahme basierend auf DIW (2014) | W97: 56 | X97: =(1-VLOOKUP(R97,Start!$H$33:$I$40,2,FALSE)/100)*W97 -> 48.72 | Y97: =VLOOKUP(Q97,Start!$C$9:$D$15,2,FALSE)+VLOOKUP(Q97,Start!$C$23:$D$29,2,FALSE) -> 14.07 | Z97: =(Y97/U97)+Start!$D$19*(VLOOKUP(Q97,Start!$M$33:$N$39,2,FALSE)/U97)+VLOOKUP(R97,Start!$C$33:$D$40,2,FALSE) -> 49.65174477
C98: Ja | D98: BNA0239 | E98: Uniper Kraftwerke GmbH | F98: Huntorf | G98: 26931 | H98: Elsfleth | J98: Niedersachsen | L98: 01.01.1978 | M98: Erdgas | N98: Druckluftspeicher | P98: Erdgas | Q98: Erdgas | R98: Gasturbine | S98: Gas turbine | T98: OPSD (2018) | U98: 0.3956 | V98: OPSD (2018) | W98: 321 | X98: =(1-VLOOKUP(R98,Start!$H$33:$I$40,2,FALSE)/100)*W98 -> 279.27 | Y98: =VLOOKUP(Q98,Start!$C$9:$D$15,2,FALSE)+VLOOKUP(Q98,Start!$C$23:$D$29,2,FALSE) -> 14.07 | Z98: =(Y98/U98)+Start!$D$19*(VLOOKUP(Q98,Start!$M$33:$N$39,2,FALSE)/U98)+VLOOKUP(R98,Start!$C$33:$D$40,2,FALSE) -> 49.20043208
C99: Ja | D99: BNA0243 | E99: Palm Power GmbH & Co. KG | F99: HKW Eltmann | G99: 97483 | H99: Eltmann | I99: Industriestraße 23 | J99: Bayern | L99: 28.12.2007 | M99: Erdgas | P99: Erdgas | Q99: Erdgas | R99: GuD | S99: Steam turbine | T99: OPSD (2018) | U99: 0.3927 | V99: OPSD (2018) | W99: 57 | X99: =(1-VLOOKUP(R99,Start!$H$33:$I$40,2,FALSE)/100)*W99 -> 49.59 | Y99: =VLOOKUP(Q99,Start!$C$9:$D$15,2,FALSE)+VLOOKUP(Q99,Start!$C$23:$D$29,2,FALSE) -> 14.07 | Z99: =(Y99/U99)+Start!$D$19*(VLOOKUP(Q99,Start!$M$33:$N$39,2,FALSE)/U99)+VLOOKUP(R99,Start!$C$33:$D$40,2,FALSE) -> 50.05638128
C100: Ja | D100: BNA0251 | E100: Preussen Elektra GmbH | F100: Grohnde | G100: 31857 | H100: Emmerthal | J100: Niedersachsen | K100: KWG | L100: 01.02.1985 | M100: Kernenergie | P100: Kernenergie | Q100: Kernenergie | R100: Kernenergie | S100: Steam turbine | T100: OPSD (2018) | U100: 0.33 | V100: OPSD (2018) | W100: 1360 | X100: =(1-VLOOKUP(R100,Start!$H$33:$I$40,2,FALSE)/100)*W100 -> 1264.8 | Y100: =VLOOKUP(Q100,Start!$C$9:$D$15,2,FALSE)+VLOOKUP(Q100,Start!$C$23:$D$29,2,FALSE) -> 5.5 | Z100: =(Y100/U100)+Start!$D$19*(VLOOKUP(Q100,Start!$M$33:$N$39,2,FALSE)/U100)+VLOOKUP(R100,Start!$C$33:$D$40,2,FALSE) -> 17.86666667
C101: Ja | D101: BNA0256a | E101: SWE Energie GmbH | F101: HKW Erfurt-Ost | G101: 99087 | H101: Erfurt | J101: Thüringen | K101: GT1 | L101: 17.12.1999 | M101: Erdgas | P101: Erdgas | Q101: Erdgas | R101: GuD | S101: Combined cycle | T101: OPSD (2018) | U101: 0.5355 | V101: OPSD (2018) | W101: 76.5 | X101: =(1-VLOOKUP(R101,Start!$H$33:$I$40,2,FALSE)/100)*W101 -> 66.555 | Y101: =VLOOKUP(Q101,Start!$C$9:$D$15,2,FALSE)+VLOOKUP(Q101,Start!$C$23:$D$29,2,FALSE) -> 14.07 | Z101: =(Y101/U101)+Start!$D$19*(VLOOKUP(Q101,Start!$M$33:$N$39,2,FALSE)/U101)+VLOOKUP(R101,Start!$C$33:$D$40,2,FALSE) -> 37.10801294
C102: Ja | D102: BNA0256b | E102: SWE Energie GmbH | F102: HKW Erfurt-Ost | G102: 99087 | H102: Erfurt | J102: Thüringen | K102: GT2 | L102: 2014 | M102: Erdgas | P102: Erdgas | Q102: Erdgas | R102: GuD | S102: Combined cycle | T102: OPSD (2018) | U102: 0.603 | V102: OPSD (2018) | W102: 32.6 | X102: =(1-VLOOKUP(R102,Start!$H$33:$I$40,2,FALSE)/100)*W102 -> 28.362 | Y102: =VLOOKUP(Q102,Start!$C$9:$D$15,2,FALSE)+VLOOKUP(Q102,Start!$C$23:$D$29,2,FALSE) -> 14.07 | Z102: =(Y102/U102)+Start!$D$19*(VLOOKUP(Q102,Start!$M$33:$N$39,2,FALSE)/U102)+VLOOKUP(R102,Start!$C$33:$D$40,2,FALSE) -> 33.12204134
C103: Ja | D103: BNA0261a | E103: Erlanger Stadtwerke AG | F103: HKW Erlangen | G103: 91052 | H103: Erlangen | I103: Äußere Bruckerstr. 33 | J103: Bayern | K103: GuD I | L103: 14.09.2005 | M103: Erdgas | P103: Erdgas | Q103: Erdgas | R103: GuD | S103: Combined cycle | T103: OPSD (2018) | U103: 0.5625 | V103: OPSD (2018) | W103: 21.6 | X103: =(1-VLOOKUP(R103,Start!$H$33:$I$40,2,FALSE)/100)*W103 -> 18.792 | Y103: =VLOOKUP(Q103,Start!$C$9:$D$15,2,FALSE)+VLOOKUP(Q103,Start!$C$23:$D$29,2,FALSE) -> 14.07 | Z103: =(Y103/U103)+Start!$D$19*(VLOOKUP(Q103,Start!$M$33:$N$39,2,FALSE)/U103)+VLOOKUP(R103,Start!$C$33:$D$40,2,FALSE) -> 35.39882832
C104: Ja | D104: BNA0261b | E104: Erlanger Stadtwerke AG | F104: HKW Erlangen | G104: 91052 | H104: Erlangen | I104: Äußere Bruckerstr. 33 | J104: Bayern | K104: K6 DT2 | L104: 04.03.1982 | M104: Mehrere Energieträger | N104: Steinkohle, Heizöl | P104: Steinkohle | Q104: Steinkohle | R104: Steinkohle | S104: Steam turbine | T104: OPSD (2018) | U104: 0.38 | V104: OPSD (2018) | W104: 17.4 | X104: =(1-VLOOKUP(R104,Start!$H$33:$I$40,2,FALSE)/100)*W104 -> 13.746 | Y104: =VLOOKUP(Q104,Start!$C$9:$D$15,2,FALSE)+VLOOKUP(Q104,Start!$C$23:$D$29,2,FALSE) -> 9.17 | Z104: =(Y104/U104)+Start!$D$19*(VLOOKUP(Q104,Start!$M$33:$N$39,2,FALSE)/U104)+VLOOKUP(R104,Start!$C$33:$D$40,2,FALSE) -> 47.48390473
C105: Ja | D105: BNA0261c | E105: Erlanger Stadtwerke AG | F105: HKW Erlangen | G105: 91052 | H105: Erlangen | I105: Äußere Bruckerstr. 33 | J105: Bayern | K105: GuD 2 | L105: 10.02.2014 | M105: Erdgas | P105: Erdgas | Q105: Erdgas | R105: GuD | S105: Combined cycle | T105: OPSD (2018) | U105: 0.603 | V105: OPSD (2018) | W105: 6.7 | X105: =(1-VLOOKUP(R105,Start!$H$33:$I$40,2,FALSE)/100)*W105 -> 5.829 | Y105: =VLOOKUP(Q105,Start!$C$9:$D$15,2,FALSE)+VLOOKUP(Q105,Start!$C$23:$D$29,2,FALSE) -> 14.07 | Z105: =(Y105/U105)+Start!$D$19*(VLOOKUP(Q105,Start!$M$33:$N$39,2,FALSE)/U105)+VLOOKUP(R105,Start!$C$33:$D$40,2,FALSE) -> 33.12204134
C106: Ja | D106: BNA0263 | E106: Preussen Elektra GmbH | F106: Isar 2 | G106: 84051 | H106: Essenbach | J106: Bayern | K106: KKI 2 | L106: 09.04.1988 | M106: Kernenergie | P106: Kernenergie | Q106: Kernenergie | R106: Kernenergie | S106: Steam turbine | T106: OPSD (2018) | U106: 0.33 | V106: OPSD (2018) | W106: 1410 | X106: =(1-VLOOKUP(R106,Start!$H$33:$I$40,2,FALSE)/100)*W106 -> 1311.3 | Y106: =VLOOKUP(Q106,Start!$C$9:$D$15,2,FALSE)+VLOOKUP(Q106,Start!$C$23:$D$29,2,FALSE) -> 5.5 | Z106: =(Y106/U106)+Start!$D$19*(VLOOKUP(Q106,Start!$M$33:$N$39,2,FALSE)/U106)+VLOOKUP(R106,Start!$C$33:$D$40,2,FALSE) -> 17.86666667
C107: Ja | D107: BNA0270 | E107: Stadtwerke Flensburg GmbH | F107: Heizkraftwerk FL | G107: 24939 | H107: Flensburg | I107: Batteriestr. 48 | J107: Schleswig-Holstein | K107: Block 11 | L107: 02.06.1992 | M107: Mehrere Energieträger | N107: Steinkohle | O107: EBS / Biomasse | P107: Steinkohle | Q107: Steinkohle | R107: Steinkohle | S107: Combined cycle | T107: OPSD (2018) | U107: 0.504 | V107: OPSD (2018) | W107: 31 | X107: =(1-VLOOKUP(R107,Start!$H$33:$I$40,2,FALSE)/100)*W107 -> 24.49 | Y107: =VLOOKUP(Q107,Start!$C$9:$D$15,2,FALSE)+VLOOKUP(Q107,Start!$C$23:$D$29,2,FALSE) -> 9.17 | Z107: =(Y107/U107)+Start!$D$19*(VLOOKUP(Q107,Start!$M$33:$N$39,2,FALSE)/U107)+VLOOKUP(R107,Start!$C$33:$D$40,2,FALSE) -> 36.12119801
C108: Ja | D108: BNA0271 | E108: Stadtwerke Flensburg GmbH | F108: Heizkraftwerk FL | G108: 24939 | H108: Flensburg | I108: Batteriestr. 48 | J108: Schleswig-Holstein | K108: Block 10 | L108: 23.01.1989 | M108: Mehrere Energieträger | N108: Steinkohle | O108: EBS / Biomasse | P108: Steinkohle | Q108: Steinkohle | R108: Steinkohle | S108: Combined cycle | T108: OPSD (2018) | U108: 0.4905 | V108: OPSD (2018) | W108: 33 | X108: =(1-VLOOKUP(R108,Start!$H$33:$I$40,2,FALSE)/100)*W108 -> 26.07 | Y108: =VLOOKUP(Q108,Start!$C$9:$D$15,2,FALSE)+VLOOKUP(Q108,Start!$C$23:$D$29,2,FALSE) -> 9.17 | Z108: =(Y108/U108)+Start!$D$19*(VLOOKUP(Q108,Start!$M$33:$N$39,2,FALSE)/U108)+VLOOKUP(R108,Start!$C$33:$D$40,2,FALSE) -> 37.07957961
C109: Ja | D109: BNA0272 | E109: Stadtwerke Flensburg GmbH | F109: Heizkraftwerk FL | G109: 24939 | H109: Flensburg | I109: Batteriestr. 48 | J109: Schleswig-Holstein | K109: Block 9 | L109: 01.10.1985 | M109: Mehrere Energieträger | N109: Steinkohle | O109: EBS / Biomasse | P109: Steinkohle | Q109: Steinkohle | R109: Steinkohle | S109: Combined cycle | T109: OPSD (2018) | U109: 0.4725 | V109: OPSD (2018) | W109: 33 | X109: =(1-VLOOKUP(R109,Start!$H$33:$I$40,2,FALSE)/100)*W109 -> 26.07 | Y109: =VLOOKUP(Q109,Start!$C$9:$D$15,2,FALSE)+VLOOKUP(Q109,Start!$C$23:$D$29,2,FALSE) -> 9.17 | Z109: =(Y109/U109)+Start!$D$19*(VLOOKUP(Q109,Start!$M$33:$N$39,2,FALSE)/U109)+VLOOKUP(R109,Start!$C$33:$D$40,2,FALSE) -> 38.44261121
C110: Ja | D110: BNA0284 | E110: Stadtwerke Frankfurt (Oder) GmbH | F110: Heizkraftwerk FFO | G110: 15236 | H110: Frankfurt Oder | J110: Brandenburg | K110: Block1-GuD-EK | L110: 30.09.1997 | M110: Erdgas | N110: Braunkohlestaub | O110: Erdgas | P110: Braunkohle | Q110: Erdgas | R110: GuD | S110: Combustion Engine | T110: https://www.stadtwerke-ffo.de/presse/artikel/?tx_ttnews%5Btt_news%5D=105&cHash=bc667efe855ba8a3998d92434b06a8b9 | U110: 0.47 | V110: https://powerplants.mandieselturbo.com/docs/librariesprovider7/brochures/v3544g-four-stroke-gas-engine.pdf?sfvrsn=12 | W110: 48 | X110: =(1-VLOOKUP(R110,Start!$H$33:$I$40,2,FALSE)/100)*W110 -> 41.76 | Y110: =VLOOKUP(Q110,Start!$C$9:$D$15,2,FALSE)+VLOOKUP(Q110,Start!$C$23:$D$29,2,FALSE) -> 14.07 | Z110: =(Y110/U110)+Start!$D$19*(VLOOKUP(Q110,Start!$M$33:$N$39,2,FALSE)/U110)+VLOOKUP(R110,Start!$C$33:$D$40,2,FALSE) -> 42.07040623
C111: Ja | D111: BNA0285 | E111: Mainova AG | F111: HKW Niederrad | G111: 60528 | H111: Frankfurt am Main | I111: Lyoner Straße 8 | J111: Hessen | K111: Block 1 | L111: 01.01.2004 | M111: Erdgas | P111: Erdgas | Q111: Erdgas | R111: GuD | S111: Steam turbine | T111: OPSD (2018) | U111: 0.3894 | V111: OPSD (2018) | W111: 70 | X111: =(1-VLOOKUP(R111,Start!$H$33:$I$40,2,FALSE)/100)*W111 -> 60.9 | Y111: =VLOOKUP(Q111,Start!$C$9:$D$15,2,FALSE)+VLOOKUP(Q111,Start!$C$23:$D$29,2,FALSE) -> 14.07 | Z111: =(Y111/U111)+Start!$D$19*(VLOOKUP(Q111,Start!$M$33:$N$39,2,FALSE)/U111)+VLOOKUP(R111,Start!$C$33:$D$40,2,FALSE) -> 50.46787604
C112: Ja | D112: BNA0286 | E112: Mainova AG | F112: HKW West | G112: 60627 | H112: Frankfurt am Main | I112: Gutleutstraße 231 | J112: Hessen | K112: Block 4 | L112: 01.01.1994 | M112: Erdgas | P112: Erdgas | Q112: Erdgas | R112: GuD | S112: Steam turbine | T112: OPSD (2018) | U112: 0.3784 | V112: OPSD (2018) | W112: 99 | X112: =(1-VLOOKUP(R112,Start!$H$33:$I$40,2,FALSE)/100)*W112 -> 86.13 | Y112: =VLOOKUP(Q112,Start!$C$9:$D$15,2,FALSE)+VLOOKUP(Q112,Start!$C$23:$D$29,2,FALSE) -> 14.07 | Z112: =(Y112/U112)+Start!$D$19*(VLOOKUP(Q112,Start!$M$33:$N$39,2,FALSE)/U112)+VLOOKUP(R112,Start!$C$33:$D$40,2,FALSE) -> 51.89136081
C113: Ja | D113: BNA0287a | E113: Mainova AG | F113: MHKW Frankfurt | G113: 60440 | H113: Frankfurt am Main | I113: Heddernheimer Landstraße 158 | J113: Hessen | K113: T 3 (nur alleiniger Betrieb, kein gemeinsamer Betrieb mit T 7 möglich) | L113: 01.01.1969 | M113: Mehrere Energieträger | N113: Abfall | O113: Mineralölprodukte | P113: Abfall | Q113: Abfall | R113: Abfall | S113: Steam turbine | T113: OPSD (2018) | U113: 0.33 | V113: OPSD (2018) | W113: 26 | X113: =(1-VLOOKUP(R113,Start!$H$33:$I$40,2,FALSE)/100)*W113 -> 22.1 | Y113: =VLOOKUP(Q113,Start!$C$9:$D$15,2,FALSE)+VLOOKUP(Q113,Start!$C$23:$D$29,2,FALSE) -> 0 | Z113: =(Y113/U113)+Start!$D$19*(VLOOKUP(Q113,Start!$M$33:$N$39,2,FALSE)/U113)+VLOOKUP(R113,Start!$C$33:$D$40,2,FALSE) -> 1
C114: Ja | D114: BNA0287b | E114: Mainova AG | F114: MHKW Frankfurt | G114: 60439 | H114: Frankfurt am Main | I114: Heddernheimer Landstraße 157 | J114: Hessen | K114: T 7 (nur alleiniger Betrieb, kein gemeinsamer Betrieb mit T 3 möglich) | L114: 01.01.2006 | M114: Mehrere Energieträger | N114: Abfall | O114: Mineralölprodukte | P114: Abfall | Q114: Abfall | R114: Abfall | S114: Steam turbine | T114: OPSD (2018) | U114: 0.33 | V114: OPSD (2018) | W114: 46.5 | X114: =(1-VLOOKUP(R114,Start!$H$33:$I$40,2,FALSE)/100)*W114 -> 39.525 | Y114: =VLOOKUP(Q114,Start!$C$9:$D$15,2,FALSE)+VLOOKUP(Q114,Start!$C$23:$D$29,2,FALSE) -> 0 | Z114: =(Y114/U114)+Start!$D$19*(VLOOKUP(Q114,Start!$M$33:$N$39,2,FALSE)/U114)+VLOOKUP(R114,Start!$C$33:$D$40,2,FALSE) -> 1
C115: Ja | D115: BNA0289b | E115: Mainova AG | F115: HKW West | G115: 60627 | H115: Frankfurt am Main | I115: Gutleutstraße 231 | J115: Hessen | K115: Block 2 | L115: 01.01.1988 | M115: Mehrere Energieträger | N115: Steinkohle | O115: Mineralölprodukte | P115: Steinkohle | Q115: Steinkohle | R115: Steinkohle | S115: Steam turbine | T115: OPSD (2018) | U115: 0.395 | V115: OPSD (2018) | W115: 61.5 | X115: =(1-VLOOKUP(R115,Start!$H$33:$I$40,2,FALSE)/100)*W115 -> 48.585 | Y115: =VLOOKUP(Q115,Start!$C$9:$D$15,2,FALSE)+VLOOKUP(Q115,Start!$C$23:$D$29,2,FALSE) -> 9.17 | Z115: =(Y115/U115)+Start!$D$19*(VLOOKUP(Q115,Start!$M$33:$N$39,2,FALSE)/U115)+VLOOKUP(R115,Start!$C$33:$D$40,2,FALSE) -> 45.73008557
C116: Ja | D116: BNA0290 | E116: Mainova AG | F116: HKW West | G116: 60627 | H116: Frankfurt am Main | I116: Gutleutstraße 231 | J116: Hessen | K116: Block 3 | L116: 01.01.1989 | M116: Mehrere Energieträger | N116: Steinkohle | O116: Mineralölprodukte | P116: Steinkohle | Q116: Steinkohle | R116: Steinkohle | S116: Steam turbine | T116: OPSD (2018) | U116: 0.3975 | V116: OPSD (2018) | W116: 61.5 | X116: =(1-VLOOKUP(R116,Start!$H$33:$I$40,2,FALSE)/100)*W116 -> 48.585 | Y116: =VLOOKUP(Q116,Start!$C$9:$D$15,2,FALSE)+VLOOKUP(Q116,Start!$C$23:$D$29,2,FALSE) -> 9.17 | Z116: =(Y116/U116)+Start!$D$19*(VLOOKUP(Q116,Start!$M$33:$N$39,2,FALSE)/U116)+VLOOKUP(R116,Start!$C$33:$D$40,2,FALSE) -> 45.45065107
C117: Ja | D117: BNA0292 | E117: RWE Power AG | F117: Frechen/Wachtberg | G117: 50226 | H117: Frechen | J117: Nordrhein-Westfalen | K117: Frechen/Wachtberg | L117: 01.01.1959 | M117: Mehrere Energieträger | N117: Braunkohle | O117: Klärschlamm | P117: Braunkohle | Q117: Braunkohle | R117: Braunkohle | S117: Steam turbine | T117: OPSD (2018) | U117: 0.3712 | V117: OPSD (2018) | W117: 176 | X117: =(1-VLOOKUP(R117,Start!$H$33:$I$40,2,FALSE)/100)*W117 -> 154.88 | Y117: =VLOOKUP(Q117,Start!$C$9:$D$15,2,FALSE)+VLOOKUP(Q117,Start!$C$23:$D$29,2,FALSE) -> 3.1 | Z117: =(Y117/U117)+Start!$D$19*(VLOOKUP(Q117,Start!$M$33:$N$39,2,FALSE)/U117)+VLOOKUP(R117,Start!$C$33:$D$40,2,FALSE) -> 37.1146393
C118: Ja | D118: BNA0318 | E118: RhönEnergie Fulda GmbH | F118: Kraftwerk Fulda | G118: 36043 | H118: Fulda | J118: Hessen | L118: 01.01.2011 | M118: Mineralölprodukte | P118: Mineralölprodukte | Q118: Öl | R118: Öl | S118: Steam turbine | T118: OPSD (2018) | U118: 0.3971 | V118: OPSD (2018) | W118: 24.81 | X118: =(1-VLOOKUP(R118,Start!$H$33:$I$40,2,FALSE)/100)*W118 -> 21.0885 | Y118: =VLOOKUP(Q118,Start!$C$9:$D$15,2,FALSE)+VLOOKUP(Q118,Start!$C$23:$D$29,2,FALSE) -> 33.44 | Z118: =(Y118/U118)+Start!$D$19*(VLOOKUP(Q118,Start!$M$33:$N$39,2,FALSE)/U118)+VLOOKUP(R118,Start!$C$33:$D$40,2,FALSE) -> 102.7439303
C119: Ja | D119: BNA0331 | E119: Uniper Kraftwerke GmbH | F119: Scholven | G119: 45896 | H119: Gelsenkirchen | J119: Nordrhein-Westfalen | K119: C | L119: 01.01.1969 | M119: Steinkohle | P119: Steinkohle | Q119: Steinkohle | R119: Steinkohle | S119: Steam turbine | T119: OPSD (2018) | U119: 0.3475 | V119: OPSD (2018) | W119: 345 | X119: =(1-VLOOKUP(R119,Start!$H$33:$I$40,2,FALSE)/100)*W119 -> 272.55 | Y119: =VLOOKUP(Q119,Start!$C$9:$D$15,2,FALSE)+VLOOKUP(Q119,Start!$C$23:$D$29,2,FALSE) -> 9.17 | Z119: =(Y119/U119)+Start!$D$19*(VLOOKUP(Q119,Start!$M$33:$N$39,2,FALSE)/U119)+VLOOKUP(R119,Start!$C$33:$D$40,2,FALSE) -> 51.80326273
C120: Ja | D120: BNA0332 | E120: Uniper Kraftwerke GmbH | F120: Scholven | G120: 45896 | H120: Gelsenkirchen | J120: Nordrhein-Westfalen | K120: B | L120: 01.01.1968 | M120: Steinkohle | P120: Steinkohle | Q120: Steinkohle | R120: Steinkohle | S120: Steam turbine | T120: OPSD (2018) | U120: 0.345 | V120: OPSD (2018) | W120: 345 | X120: =(1-VLOOKUP(R120,Start!$H$33:$I$40,2,FALSE)/100)*W120 -> 272.55 | Y120: =VLOOKUP(Q120,Start!$C$9:$D$15,2,FALSE)+VLOOKUP(Q120,Start!$C$23:$D$29,2,FALSE) -> 9.17 | Z120: =(Y120/U120)+Start!$D$19*(VLOOKUP(Q120,Start!$M$33:$N$39,2,FALSE)/U120)+VLOOKUP(R120,Start!$C$33:$D$40,2,FALSE) -> 52.1692284
C121: Ja | D121: BNA0336 | E121: Uniper Kraftwerke GmbH | F121: FWK Buer | G121: 45896 | H121: Gelsenkirchen | J121: Nordrhein-Westfalen | L121: 01.01.1985 | M121: Steinkohle | P121: Steinkohle | Q121: Steinkohle | R121: Steinkohle | S121: Steam turbine | T121: OPSD (2018) | U121: 0.3875 | V121: OPSD (2018) | W121: 70 | X121: =(1-VLOOKUP(R121,Start!$H$33:$I$40,2,FALSE)/100)*W121 -> 55.3 | Y121: =VLOOKUP(Q121,Start!$C$9:$D$15,2,FALSE)+VLOOKUP(Q121,Start!$C$23:$D$29,2,FALSE) -> 9.17 | Z121: =(Y121/U121)+Start!$D$19*(VLOOKUP(Q121,Start!$M$33:$N$39,2,FALSE)/U121)+VLOOKUP(R121,Start!$C$33:$D$40,2,FALSE) -> 46.59002271
C122: Ja | D122: BNA0354 | E122: Georg-August-Universität Göttingen Stiftung Öffentlichen Rechts | F122: HKW Göttingen | G122: 37075 | H122: Göttingen | I122: Rudolf-Diesel-Straße 1 | J122: Niedersachsen | L122: 01.01.1998 | M122: Mehrere Energieträger | N122: Erdgas | O122: Heizöl | P122: Erdgas | Q122: Erdgas | R122: GuD | S122: Steam turbine | T122: OPSD (2018) | U122: 0.3828 | V122: OPSD (2018) | W122: 18.8 | X122: =(1-VLOOKUP(R122,Start!$H$33:$I$40,2,FALSE)/100)*W122 -> 16.356 | Y122: =VLOOKUP(Q122,Start!$C$9:$D$15,2,FALSE)+VLOOKUP(Q122,Start!$C$23:$D$29,2,FALSE) -> 14.07 | Z122: =(Y122/U122)+Start!$D$19*(VLOOKUP(Q122,Start!$M$33:$N$39,2,FALSE)/U122)+VLOOKUP(R122,Start!$C$33:$D$40,2,FALSE) -> 51.31214977
C123: Ja | D123: BNA0360 | E123: Stadtwerke Greifswald GmbH | F123: HKW "Helmshäger Berg" | G123: 17489 | H123: Greifswald | J123: Mecklenburg-Vorpommern | K123: Gasturbine | L123: 01.01.1996 | M123: Erdgas | N123: Erdgas | O123: HEL | P123: Erdgas | Q123: Erdgas | R123: Gasturbine | S123: Gas turbine | T123: OPSD (2018) | U123: 0.3696 | V123: OPSD (2018) | W123: 14.7 | X123: =(1-VLOOKUP(R123,Start!$H$33:$I$40,2,FALSE)/100)*W123 -> 12.789 | Y123: =VLOOKUP(Q123,Start!$C$9:$D$15,2,FALSE)+VLOOKUP(Q123,Start!$C$23:$D$29,2,FALSE) -> 14.07 | Z123: =(Y123/U123)+Start!$D$19*(VLOOKUP(Q123,Start!$M$33:$N$39,2,FALSE)/U123)+VLOOKUP(R123,Start!$C$33:$D$40,2,FALSE) -> 52.59115511
C124: Ja | D124: BNA0361 | E124: KGW - Kraftwerk Grenzach-Wyhlen GmbH | F124: Kraftwerk Grenzach-Wyhlen | G124: 79639 | H124: Grenzach-Wyhlen | J124: Baden-Württemberg | L124: 20.12.2017 | M124: Erdgas | P124: Erdgas | Q124: Erdgas | R124: GuD | S124: Steam turbine | T124: OPSD (2018) | U124: 0.4037 | V124: OPSD (2018) | W124: 30 | X124: =(1-VLOOKUP(R124,Start!$H$33:$I$40,2,FALSE)/100)*W124 -> 26.1 | Y124: =VLOOKUP(Q124,Start!$C$9:$D$15,2,FALSE)+VLOOKUP(Q124,Start!$C$23:$D$29,2,FALSE) -> 14.07 | Z124: =(Y124/U124)+Start!$D$19*(VLOOKUP(Q124,Start!$M$33:$N$39,2,FALSE)/U124)+VLOOKUP(R124,Start!$C$33:$D$40,2,FALSE) -> 48.73331912
C125: Ja | D125: BNA0369 | E125: envia THERM GmbH | F125: Spitzenlastkraftwerk Sermuth | G125: 4668 | H125: Großbothen | J125: Sachsen | L125: 16.10.1995 | M125: Mineralölprodukte | P125: Mineralölprodukte | Q125: Öl | R125: Öl | S125: Steam turbine | T125: OPSD (2018) | U125: 0.3795 | V125: OPSD (2018) | W125: 17 | X125: =(1-VLOOKUP(R125,Start!$H$33:$I$40,2,FALSE)/100)*W125 -> 14.45 | Y125: =VLOOKUP(Q125,Start!$C$9:$D$15,2,FALSE)+VLOOKUP(Q125,Start!$C$23:$D$29,2,FALSE) -> 33.44 | Z125: =(Y125/U125)+Start!$D$19*(VLOOKUP(Q125,Start!$M$33:$N$39,2,FALSE)/U125)+VLOOKUP(R125,Start!$C$33:$D$40,2,FALSE) -> 107.4624894
C126: Ja | D126: BNA0373 | E126: envia THERM GmbH | F126: Spitzenlastkraftwerk Großkayna | G126: 6242 | H126: Großkayna | J126: Sachsen-Anhalt | L126: 03.01.1994 | M126: Mineralölprodukte | P126: Mineralölprodukte | Q126: Öl | R126: Öl | S126: Gas turbine | T126: OPSD (2018) | U126: 0.3644 | V126: OPSD (2018) | W126: 120 | X126: =(1-VLOOKUP(R126,Start!$H$33:$I$40,2,FALSE)/100)*W126 -> 102 | Y126: =VLOOKUP(Q126,Start!$C$9:$D$15,2,FALSE)+VLOOKUP(Q126,Start!$C$23:$D$29,2,FALSE) -> 33.44 | Z126: =(Y126/U126)+Start!$D$19*(VLOOKUP(Q126,Start!$M$33:$N$39,2,FALSE)/U126)+VLOOKUP(R126,Start!$C$33:$D$40,2,FALSE) -> 111.8740799
C127: Ja | D127: BNA0377 | E127: Uniper Kraftwerke GmbH | F127: Staudinger | G127: 63538 | H127: Großkrotzenburg | J127: Hessen | K127: 5 | L127: 01.01.1992 | M127: Steinkohle | P127: Steinkohle | Q127: Steinkohle | R127: Steinkohle | S127: Steam turbine | T127: OPSD (2018) | U127: 0.405 | V127: OPSD (2018) | W127: 510 | X127: =(1-VLOOKUP(R127,Start!$H$33:$I$40,2,FALSE)/100)*W127 -> 402.9 | Y127: =VLOOKUP(Q127,Start!$C$9:$D$15,2,FALSE)+VLOOKUP(Q127,Start!$C$23:$D$29,2,FALSE) -> 9.17 | Z127: =(Y127/U127)+Start!$D$19*(VLOOKUP(Q127,Start!$M$33:$N$39,2,FALSE)/U127)+VLOOKUP(R127,Start!$C$33:$D$40,2,FALSE) -> 44.63304642
C128: Ja | D128: BNA0380 | E128: EEW Energy from Waste Großräschen GmbH | F128: EEW Großräschen | G128: 1983 | H128: Großräschen | J128: Brandenburg | L128: 01.12.2007 | M128: Abfall | N128: Abfall, biologisch abbaubarer Anteil von Abfällen aus Haushalten und Industrie | P128: Abfall | Q128: Abfall | R128: Abfall | S128: Steam turbine | T128: OPSD (2018) | U128: 0.33 | V128: OPSD (2018) | W128: 23.3 | X128: =(1-VLOOKUP(R128,Start!$H$33:$I$40,2,FALSE)/100)*W128 -> 19.805 | Y128: =VLOOKUP(Q128,Start!$C$9:$D$15,2,FALSE)+VLOOKUP(Q128,Start!$C$23:$D$29,2,FALSE) -> 0 | Z128: =(Y128/U128)+Start!$D$19*(VLOOKUP(Q128,Start!$M$33:$N$39,2,FALSE)/U128)+VLOOKUP(R128,Start!$C$33:$D$40,2,FALSE) -> 1
C129: Ja | D129: BNA0382 | E129: RWE Power AG | F129: Kernkraft Gundremmingen | G129: 89355 | H129: Gundremmingen | J129: Bayern | K129: C | L129: 02.11.1984 | M129: Kernenergie | P129: Kernenergie | Q129: Kernenergie | R129: Kernenergie | S129: Steam turbine | T129: OPSD (2018) | U129: 0.33 | V129: OPSD (2018) | W129: 1288 | X129: =(1-VLOOKUP(R129,Start!$H$33:$I$40,2,FALSE)/100)*W129 -> 1197.84 | Y129: =VLOOKUP(Q129,Start!$C$9:$D$15,2,FALSE)+VLOOKUP(Q129,Start!$C$23:$D$29,2,FALSE) -> 5.5 | Z129: =(Y129/U129)+Start!$D$19*(VLOOKUP(Q129,Start!$M$33:$N$39,2,FALSE)/U129)+VLOOKUP(R129,Start!$C$33:$D$40,2,FALSE) -> 17.86666667
C130: Ja | D130: BNA0386 | E130: Mohn Media Mohndruck GmbH | F130: Energiezentrum Mohn Media | G130: 33334 | H130: Gütersloh | I130: Carl Bertelsmann Straße 161 | J130: Nordrhein-Westfalen | L130: 28.03.1994 | M130: Erdgas | P130: Erdgas | Q130: Erdgas | R130: GuD | S130: Steam turbine | T130: OPSD (2018) | U130: 0.3784 | V130: OPSD (2018) | W130: 25 | X130: =(1-VLOOKUP(R130,Start!$H$33:$I$40,2,FALSE)/100)*W130 -> 21.75 | Y130: =VLOOKUP(Q130,Start!$C$9:$D$15,2,FALSE)+VLOOKUP(Q130,Start!$C$23:$D$29,2,FALSE) -> 14.07 | Z130: =(Y130/U130)+Start!$D$19*(VLOOKUP(Q130,Start!$M$33:$N$39,2,FALSE)/U130)+VLOOKUP(R130,Start!$C$33:$D$40,2,FALSE) -> 51.89136081
C131: Ja | D131: BNA0392a | E131: EVH GmbH | F131: HKW Halle Trotha | G131: 6130 | H131: Halle | I131: Dieselstraße 141 | J131: Sachsen-Anhalt | K131: Block A und B | L131: 27.08.2005 | M131: Erdgas | P131: Erdgas | Q131: Erdgas | R131: GuD | S131: Steam turbine | T131: OPSD (2018) | U131: 0.3905 | V131: OPSD (2018) | W131: 97 | X131: =(1-VLOOKUP(R131,Start!$H$33:$I$40,2,FALSE)/100)*W131 -> 84.39 | Y131: =VLOOKUP(Q131,Start!$C$9:$D$15,2,FALSE)+VLOOKUP(Q131,Start!$C$23:$D$29,2,FALSE) -> 14.07 | Z131: =(Y131/U131)+Start!$D$19*(VLOOKUP(Q131,Start!$M$33:$N$39,2,FALSE)/U131)+VLOOKUP(R131,Start!$C$33:$D$40,2,FALSE) -> 50.32993836
C132: Ja | D132: BNA0392b | E132: Heizkraftwerk Halle-Trotha GmbH | F132: HKW Halle Trotha | G132: 6130 | H132: Halle | I132: Brachwitzer Straße 23 | J132: Sachsen-Anhalt | K132: GuD | L132: 30.01.2013 | M132: Erdgas | P132: Erdgas | Q132: Erdgas | R132: GuD | S132: Combined cycle | T132: OPSD (2018) | U132: 0.5985 | V132: OPSD (2018) | W132: 56.14 | X132: =(1-VLOOKUP(R132,Start!$H$33:$I$40,2,FALSE)/100)*W132 -> 48.8418 | Y132: =VLOOKUP(Q132,Start!$C$9:$D$15,2,FALSE)+VLOOKUP(Q132,Start!$C$23:$D$29,2,FALSE) -> 14.07 | Z132: =(Y132/U132)+Start!$D$19*(VLOOKUP(Q132,Start!$M$33:$N$39,2,FALSE)/U132)+VLOOKUP(R132,Start!$C$33:$D$40,2,FALSE) -> 33.35980105
C133: Ja | D133: BNA0395 | E133: ThyssenKrupp Steel Europe AG | F133: Duisburg Hamborn 3 | G133: 47166 | H133: Hamborn | J133: Nordrhein-Westfalen | K133: Block 3 | L133: 01.01.1958 | M133: Sonstige Energieträger | N133: Kuppelprdukte der Stahl- und Kokserzeugung | P133: Sonstige Energieträger (nicht erneuerbar) | Q133: Erdgas | R133: GuD | S133: Steam turbine | T133: OPSD (2018) | U133: 0.33 | V133: Annahme basierend auf DIW (2014) | W133: 59 | X133: =(1-VLOOKUP(R133,Start!$H$33:$I$40,2,FALSE)/100)*W133 -> 51.33 | Y133: =VLOOKUP(Q133,Start!$C$9:$D$15,2,FALSE)+VLOOKUP(Q133,Start!$C$23:$D$29,2,FALSE) -> 14.07 | Z133: =(Y133/U133)+Start!$D$19*(VLOOKUP(Q133,Start!$M$33:$N$39,2,FALSE)/U133)+VLOOKUP(R133,Start!$C$33:$D$40,2,FALSE) -> 59.28209373
C134: Ja | D134: BNA0396 | E134: ThyssenKrupp Steel Europe AG | F134: Duisburg Hamborn 4 | G134: 47166 | H134: Hamborn | J134: Nordrhein-Westfalen | K134: Block 4 | L134: 01.01.1976 | M134: Sonstige Energieträger | N134: Kuppelprdukte der Stahl- und Kokserzeugung | P134: Sonstige Energieträger (nicht erneuerbar) | Q134: Erdgas | R134: GuD | S134: Steam turbine | T134: OPSD (2018) | U134: 0.352 | V134: Annahme basierend auf DIW (2014) | W134: 101 | X134: =(1-VLOOKUP(R134,Start!$H$33:$I$40,2,FALSE)/100)*W134 -> 87.87 | Y134: =VLOOKUP(Q134,Start!$C$9:$D$15,2,FALSE)+VLOOKUP(Q134,Start!$C$23:$D$29,2,FALSE) -> 14.07 | Z134: =(Y134/U134)+Start!$D$19*(VLOOKUP(Q134,Start!$M$33:$N$39,2,FALSE)/U134)+VLOOKUP(R134,Start!$C$33:$D$40,2,FALSE) -> 55.67071287
C135: Ja | D135: BNA0397 | E135: ThyssenKrupp Steel Europe AG | F135: Duisburg Hamborn 5 | G135: 47166 | H135: Hamborn | J135: Nordrhein-Westfalen | K135: Block 5 | L135: 01.01.2003 | M135: Sonstige Energieträger | N135: Kuppelprdukte der Stahl- und Kokserzeugung | P135: Sonstige Energieträger (nicht erneuerbar) | Q135: Erdgas | R135: GuD | S135: Combined cycle | T135: OPSD (2018) | U135: 0.54 | V135: Annahme basierend auf DIW (2014) | W135: 225 | X135: =(1-VLOOKUP(R135,Start!$H$33:$I$40,2,FALSE)/100)*W135 -> 195.75 | Y135: =VLOOKUP(Q135,Start!$C$9:$D$15,2,FALSE)+VLOOKUP(Q135,Start!$C$23:$D$29,2,FALSE) -> 14.07 | Z135: =(Y135/U135)+Start!$D$19*(VLOOKUP(Q135,Start!$M$33:$N$39,2,FALSE)/U135)+VLOOKUP(R135,Start!$C$33:$D$40,2,FALSE) -> 36.8112795
C136: Ja | D136: BNA0398 | E136: MVR Müllverwertung Rugenberger Damm GmbH & Co. KG | F136: MVR Müllverwertung Rugenberger Damm GmbH & Co. KG | G136: 21129 | H136: Hamburg | I136: Rugenberger Damm 1 | J136: Hamburg | L136: 12.08.1999 | M136: Abfall | P136: Abfall | Q136: Abfall | R136: Abfall | S136: Steam turbine | T136: OPSD (2018) | U136: 0.33 | V136: OPSD (2018) | W136: 24 | X136: =(1-VLOOKUP(R136,Start!$H$33:$I$40,2,FALSE)/100)*W136 -> 20.4 | Y136: =VLOOKUP(Q136,Start!$C$9:$D$15,2,FALSE)+VLOOKUP(Q136,Start!$C$23:$D$29,2,FALSE) -> 0 | Z136: =(Y136/U136)+Start!$D$19*(VLOOKUP(Q136,Start!$M$33:$N$39,2,FALSE)/U136)+VLOOKUP(R136,Start!$C$33:$D$40,2,FALSE) -> 1
C137: Ja | D137: BNA0400 | E137: Vattenfall Hamburg Wärme GmbH | F137: GuD Tiefstack | G137: 22113 | H137: Hamburg | I137: Andreas-Meyer-Straße 8 | J137: Hamburg | K137: GuD Tiefstack | L137: 02.11.2009 | M137: Erdgas | P137: Erdgas | Q137: Erdgas | R137: GuD | S137: Combined cycle | T137: OPSD (2018) | U137: 0.5805 | V137: OPSD (2018) | W137: 127 | X137: =(1-VLOOKUP(R137,Start!$H$33:$I$40,2,FALSE)/100)*W137 -> 110.49 | Y137: =VLOOKUP(Q137,Start!$C$9:$D$15,2,FALSE)+VLOOKUP(Q137,Start!$C$23:$D$29,2,FALSE) -> 14.07 | Z137: =(Y137/U137)+Start!$D$19*(VLOOKUP(Q137,Start!$M$33:$N$39,2,FALSE)/U137)+VLOOKUP(R137,Start!$C$33:$D$40,2,FALSE) -> 34.34770186
C138: Ja | D138: BNA0401 | E138: ADM Hamburg Aktiengesellschaft | F138: Heizkraftwerk | G138: 21107 | H138: Hamburg | I138: Nippoldstr. 117 | J138: Hamburg | K138: HKW | L138: 01.07.1993 | M138: Erdgas | N138: Erdgas | O138: Biogas | P138: Erdgas | Q138: Erdgas | R138: GuD | S138: Steam turbine | T138: OPSD (2018) | U138: 0.3773 | V138: OPSD (2018) | W138: 22.5 | X138: =(1-VLOOKUP(R138,Start!$H$33:$I$40,2,FALSE)/100)*W138 -> 19.575 | Y138: =VLOOKUP(Q138,Start!$C$9:$D$15,2,FALSE)+VLOOKUP(Q138,Start!$C$23:$D$29,2,FALSE) -> 14.07 | Z138: =(Y138/U138)+Start!$D$19*(VLOOKUP(Q138,Start!$M$33:$N$39,2,FALSE)/U138)+VLOOKUP(R138,Start!$C$33:$D$40,2,FALSE) -> 52.0382744
C139: Ja | D139: BNA0402 | E139: Vattenfall Hamburg Wärme GmbH | F139: Tiefstack | G139: 22113 | H139: Hamburg | I139: Andreas-Meyer-Straße 8 | J139: Hamburg | K139: Tiefstack | L139: 01.03.1993 | M139: Steinkohle | P139: Steinkohle | Q139: Steinkohle | R139: Steinkohle | S139: Steam turbine | T139: OPSD (2018) | U139: 0.4075 | V139: OPSD (2018) | W139: 194 | X139: =(1-VLOOKUP(R139,Start!$H$33:$I$40,2,FALSE)/100)*W139 -> 153.26 | Y139: =VLOOKUP(Q139,Start!$C$9:$D$15,2,FALSE)+VLOOKUP(Q139,Start!$C$23:$D$29,2,FALSE) -> 9.17 | Z139: =(Y139/U139)+Start!$D$19*(VLOOKUP(Q139,Start!$M$33:$N$39,2,FALSE)/U139)+VLOOKUP(R139,Start!$C$33:$D$40,2,FALSE) -> 44.36719951
C140: Ja | D140: BNA0403 | E140: Vattenfall Wärme Berlin AG | F140: Wedel | G140: 22880 | H140: Wedel | I140: Tinsdaler Weg 146 | J140: Schleswig-Holstein | K140: Wedel 2 | L140: 23.07.1962 | M140: Steinkohle | P140: Steinkohle | Q140: Steinkohle | R140: Steinkohle | S140: Steam turbine | T140: OPSD (2018) | U140: 0.4075 | V140: OPSD (2018) | W140: 123 | X140: =(1-VLOOKUP(R140,Start!$H$33:$I$40,2,FALSE)/100)*W140 -> 97.17 | Y140: =VLOOKUP(Q140,Start!$C$9:$D$15,2,FALSE)+VLOOKUP(Q140,Start!$C$23:$D$29,2,FALSE) -> 9.17 | Z140: =(Y140/U140)+Start!$D$19*(VLOOKUP(Q140,Start!$M$33:$N$39,2,FALSE)/U140)+VLOOKUP(R140,Start!$C$33:$D$40,2,FALSE) -> 44.36719951
C141: Ja | D141: BNA0404 | E141: Vattenfall Wärme Berlin AG | F141: Wedel | G141: 22880 | H141: Wedel | I141: Tinsdaler Weg 146 | J141: Schleswig-Holstein | K141: Wedel 1 | L141: 01.01.1961 | M141: Steinkohle | P141: Steinkohle | Q141: Steinkohle | R141: Steinkohle | S141: Steam turbine | T141: OPSD (2018) | U141: 0.4075 | V141: OPSD (2018) | W141: 137 | X141: =(1-VLOOKUP(R141,Start!$H$33:$I$40,2,FALSE)/100)*W141 -> 108.23 | Y141: =VLOOKUP(Q141,Start!$C$9:$D$15,2,FALSE)+VLOOKUP(Q141,Start!$C$23:$D$29,2,FALSE) -> 9.17 | Z141: =(Y141/U141)+Start!$D$19*(VLOOKUP(Q141,Start!$M$33:$N$39,2,FALSE)/U141)+VLOOKUP(R141,Start!$C$33:$D$40,2,FALSE) -> 44.36719951
C142: Ja | D142: BNA0407 | E142: Enertec Hameln GmbH | F142: Enertec Hameln | G142: 31789 | H142: Hameln | J142: Niedersachsen | K142: Linien 1,3,4 | L142: 07.10.1913 | M142: Abfall | N142: Abfall, biologisch abbaubarer Anteil von Abfällen aus Haushalten und Industrie | P142: Abfall | Q142: Abfall | R142: Abfall | S142: Steam turbine | T142: OPSD (2018) | U142: 0.33 | V142: OPSD (2018) | W142: 13.2 | X142: =(1-VLOOKUP(R142,Start!$H$33:$I$40,2,FALSE)/100)*W142 -> 11.22 | Y142: =VLOOKUP(Q142,Start!$C$9:$D$15,2,FALSE)+VLOOKUP(Q142,Start!$C$23:$D$29,2,FALSE) -> 0 | Z142: =(Y142/U142)+Start!$D$19*(VLOOKUP(Q142,Start!$M$33:$N$39,2,FALSE)/U142)+VLOOKUP(R142,Start!$C$33:$D$40,2,FALSE) -> 1
C143: Ja | D143: BNA0410 | E143: Trianel Gaskraftwerk Hamm GmbH & Co. KG | F143: Trianel Gaskraftwerk | G143: 59071 | H143: Hamm | I143: Trianelstraße 1 | J143: Nordrhein-Westfalen | K143: Block 10 | L143: 01.03.2008 | M143: Erdgas | P143: Erdgas | Q143: Erdgas | R143: GuD | S143: Combined cycle | T143: OPSD (2018) | U143: 0.576 | V143: OPSD (2018) | W143: 407 | X143: =(1-VLOOKUP(R143,Start!$H$33:$I$40,2,FALSE)/100)*W143 -> 354.09 | Y143: =VLOOKUP(Q143,Start!$C$9:$D$15,2,FALSE)+VLOOKUP(Q143,Start!$C$23:$D$29,2,FALSE) -> 14.07 | Z143: =(Y143/U143)+Start!$D$19*(VLOOKUP(Q143,Start!$M$33:$N$39,2,FALSE)/U143)+VLOOKUP(R143,Start!$C$33:$D$40,2,FALSE) -> 34.60432453
C144: Ja | D144: BNA0411 | E144: Trianel Gaskraftwerk Hamm GmbH & Co. KG | F144: Trianel Gaskraftwerk | G144: 59071 | H144: Hamm | I144: Trianelstraße 1 | J144: Nordrhein-Westfalen | K144: Block 20 | L144: 01.03.2008 | M144: Erdgas | P144: Erdgas | Q144: Erdgas | R144: GuD | S144: Combined cycle | T144: OPSD (2018) | U144: 0.576 | V144: OPSD (2018) | W144: 410 | X144: =(1-VLOOKUP(R144,Start!$H$33:$I$40,2,FALSE)/100)*W144 -> 356.7 | Y144: =VLOOKUP(Q144,Start!$C$9:$D$15,2,FALSE)+VLOOKUP(Q144,Start!$C$23:$D$29,2,FALSE) -> 14.07 | Z144: =(Y144/U144)+Start!$D$19*(VLOOKUP(Q144,Start!$M$33:$N$39,2,FALSE)/U144)+VLOOKUP(R144,Start!$C$33:$D$40,2,FALSE) -> 34.60432453
C145: Ja | D145: BNA0413c | E145: RWE Generation SE | F145: Westfalen | G145: 59071 | H145: Hamm-Uentrop | J145: Nordrhein-Westfalen | K145: E | L145: 02.07.2014 | M145: Steinkohle | P145: Steinkohle | Q145: Steinkohle | R145: Steinkohle | S145: Steam turbine | T145: OPSD (2018) | U145: 0.46 | V145: OPSD (2018) | W145: 763.7 | X145: =(1-VLOOKUP(R145,Start!$H$33:$I$40,2,FALSE)/100)*W145 -> 603.323 | Y145: =VLOOKUP(Q145,Start!$C$9:$D$15,2,FALSE)+VLOOKUP(Q145,Start!$C$23:$D$29,2,FALSE) -> 9.17 | Z145: =(Y145/U145)+Start!$D$19*(VLOOKUP(Q145,Start!$M$33:$N$39,2,FALSE)/U145)+VLOOKUP(R145,Start!$C$33:$D$40,2,FALSE) -> 39.4519213
C146: Ja | D146: BNA0417 | E146: EEW Energy from Waste Hannover GmbH | F146: EEW Energy from Waste Hannover GmbH | G146: 30659 | H146: Hannover | J146: Niedersachsen | K146: Hannover | L146: 01.06.2005 | M146: Abfall | N146: Abfall, biol. abbaubarer Anteil von Abfällen aus Haushalten und Industrie | P146: Abfall | Q146: Abfall | R146: Abfall | S146: Steam turbine | T146: OPSD (2018) | U146: 0.33 | V146: OPSD (2018) | W146: 22.5 | X146: =(1-VLOOKUP(R146,Start!$H$33:$I$40,2,FALSE)/100)*W146 -> 19.125 | Y146: =VLOOKUP(Q146,Start!$C$9:$D$15,2,FALSE)+VLOOKUP(Q146,Start!$C$23:$D$29,2,FALSE) -> 0 | Z146: =(Y146/U146)+Start!$D$19*(VLOOKUP(Q146,Start!$M$33:$N$39,2,FALSE)/U146)+VLOOKUP(R146,Start!$C$33:$D$40,2,FALSE) -> 1
C147: Ja | D147: BNA0418 | E147: enercity AG | F147: GKL | G147: 30169 | H147: Hannover | J147: Niedersachsen | K147: GKL | L147: 05.11.1998 | M147: Erdgas | P147: Erdgas | Q147: Erdgas | R147: GuD | S147: Combined cycle | T147: OPSD (2018) | U147: 0.5985 | V147: OPSD (2018) | W147: 230 | X147: =(1-VLOOKUP(R147,Start!$H$33:$I$40,2,FALSE)/100)*W147 -> 200.1 | Y147: =VLOOKUP(Q147,Start!$C$9:$D$15,2,FALSE)+VLOOKUP(Q147,Start!$C$23:$D$29,2,FALSE) -> 14.07 | Z147: =(Y147/U147)+Start!$D$19*(VLOOKUP(Q147,Start!$M$33:$N$39,2,FALSE)/U147)+VLOOKUP(R147,Start!$C$33:$D$40,2,FALSE) -> 33.35980105
C148: Ja | D148: BNA0420 | E148: enercity AG | F148: GKH | G148: 30419 | H148: Hannover | J148: Niedersachsen | K148: Block1 | L148: 26.01.1989 | M148: Steinkohle | P148: Steinkohle | Q148: Steinkohle | R148: Steinkohle | S148: Steam turbine | T148: OPSD (2018) | U148: 0.3975 | V148: OPSD (2018) | W148: 136 | X148: =(1-VLOOKUP(R148,Start!$H$33:$I$40,2,FALSE)/100)*W148 -> 107.44 | Y148: =VLOOKUP(Q148,Start!$C$9:$D$15,2,FALSE)+VLOOKUP(Q148,Start!$C$23:$D$29,2,FALSE) -> 9.17 | Z148: =(Y148/U148)+Start!$D$19*(VLOOKUP(Q148,Start!$M$33:$N$39,2,FALSE)/U148)+VLOOKUP(R148,Start!$C$33:$D$40,2,FALSE) -> 45.45065107
C149: Ja | D149: BNA0421 | E149: enercity AG | F149: GKH | G149: 30419 | H149: Hannover | J149: Niedersachsen | K149: Block2 | L149: 21.06.1989 | M149: Steinkohle | P149: Steinkohle | Q149: Steinkohle | R149: Steinkohle | S149: Steam turbine | T149: OPSD (2018) | U149: 0.3975 | V149: OPSD (2018) | W149: 136 | X149: =(1-VLOOKUP(R149,Start!$H$33:$I$40,2,FALSE)/100)*W149 -> 107.44 | Y149: =VLOOKUP(Q149,Start!$C$9:$D$15,2,FALSE)+VLOOKUP(Q149,Start!$C$23:$D$29,2,FALSE) -> 9.17 | Z149: =(Y149/U149)+Start!$D$19*(VLOOKUP(Q149,Start!$M$33:$N$39,2,FALSE)/U149)+VLOOKUP(R149,Start!$C$33:$D$40,2,FALSE) -> 45.45065107
C150: Ja | D150: BNA0427 | E150: Peissenberger Kraftwerksgesellschaft mbH | F150: Kraftwerk Hausham | G150: 83734 | H150: Hausham | J150: Bayern | K150: GT 1 | L150: 01.11.1982 | M150: Mineralölprodukte | P150: Mineralölprodukte | Q150: Öl | R150: Öl | S150: Gas turbine | T150: OPSD (2018) | U150: 0.3332 | V150: OPSD (2018) | W150: 23.38 | X150: =(1-VLOOKUP(R150,Start!$H$33:$I$40,2,FALSE)/100)*W150 -> 19.873 | Y150: =VLOOKUP(Q150,Start!$C$9:$D$15,2,FALSE)+VLOOKUP(Q150,Start!$C$23:$D$29,2,FALSE) -> 33.44 | Z150: =(Y150/U150)+Start!$D$19*(VLOOKUP(Q150,Start!$M$33:$N$39,2,FALSE)/U150)+VLOOKUP(R150,Start!$C$33:$D$40,2,FALSE) -> 122.2560466
C151: Ja | D151: BNA0428 | E151: Peissenberger Kraftwerksgesellschaft mbH | F151: Kraftwerk Hausham | G151: 83734 | H151: Hausham | J151: Bayern | K151: GT 2 | L151: 01.11.1982 | M151: Mineralölprodukte | P151: Mineralölprodukte | Q151: Öl | R151: Öl | S151: Gas turbine | T151: OPSD (2018) | U151: 0.3332 | V151: OPSD (2018) | W151: 23.38 | X151: =(1-VLOOKUP(R151,Start!$H$33:$I$40,2,FALSE)/100)*W151 -> 19.873 | Y151: =VLOOKUP(Q151,Start!$C$9:$D$15,2,FALSE)+VLOOKUP(Q151,Start!$C$23:$D$29,2,FALSE) -> 33.44 | Z151: =(Y151/U151)+Start!$D$19*(VLOOKUP(Q151,Start!$M$33:$N$39,2,FALSE)/U151)+VLOOKUP(R151,Start!$C$33:$D$40,2,FALSE) -> 122.2560466
C152: Ja | D152: BNA0429 | E152: Peissenberger Kraftwerksgesellschaft mbH | F152: Kraftwerk Hausham | G152: 83734 | H152: Hausham | J152: Bayern | K152: GT 3 | L152: 01.11.1982 | M152: Mineralölprodukte | P152: Mineralölprodukte | Q152: Öl | R152: Öl | S152: Gas turbine | T152: OPSD (2018) | U152: 0.3332 | V152: OPSD (2018) | W152: 23.38 | X152: =(1-VLOOKUP(R152,Start!$H$33:$I$40,2,FALSE)/100)*W152 -> 19.873 | Y152: =VLOOKUP(Q152,Start!$C$9:$D$15,2,FALSE)+VLOOKUP(Q152,Start!$C$23:$D$29,2,FALSE) -> 33.44 | Z152: =(Y152/U152)+Start!$D$19*(VLOOKUP(Q152,Start!$M$33:$N$39,2,FALSE)/U152)+VLOOKUP(R152,Start!$C$33:$D$40,2,FALSE) -> 122.2560466
C153: Ja | D153: BNA0430 | E153: Peissenberger Kraftwerksgesellschaft mbH | F153: Kraftwerk Hausham | G153: 83734 | H153: Hausham | J153: Bayern | K153: GT 4 | L153: 01.11.1982 | M153: Mineralölprodukte | P153: Mineralölprodukte | Q153: Öl | R153: Öl | S153: Gas turbine | T153: OPSD (2018) | U153: 0.3332 | V153: OPSD (2018) | W153: 23.38 | X153: =(1-VLOOKUP(R153,Start!$H$33:$I$40,2,FALSE)/100)*W153 -> 19.873 | Y153: =VLOOKUP(Q153,Start!$C$9:$D$15,2,FALSE)+VLOOKUP(Q153,Start!$C$23:$D$29,2,FALSE) -> 33.44 | Z153: =(Y153/U153)+Start!$D$19*(VLOOKUP(Q153,Start!$M$33:$N$39,2,FALSE)/U153)+VLOOKUP(R153,Start!$C$33:$D$40,2,FALSE) -> 122.2560466
C154: Ja | D154: BNA0434 | E154: EnBW Energie Baden-Württemberg AG | F154: Heizkraftwerk Heilbronn | G154: 74076 | H154: Heilbronn | I154: Lichtenbergerstraße 23 | J154: Baden-Württemberg | K154: HLB 7 | L154: 01.12.1985 | M154: Steinkohle | P154: Steinkohle | Q154: Steinkohle | R154: Steinkohle | S154: Steam turbine | T154: OPSD (2018) | U154: 0.4475 | V154: OPSD (2018) | W154: 778 | X154: =(1-VLOOKUP(R154,Start!$H$33:$I$40,2,FALSE)/100)*W154 -> 614.62 | Y154: =VLOOKUP(Q154,Start!$C$9:$D$15,2,FALSE)+VLOOKUP(Q154,Start!$C$23:$D$29,2,FALSE) -> 9.17 | Z154: =(Y154/U154)+Start!$D$19*(VLOOKUP(Q154,Start!$M$33:$N$39,2,FALSE)/U154)+VLOOKUP(R154,Start!$C$33:$D$40,2,FALSE) -> 40.51761743
C155: Ja | D155: BNA0438 | E155: EEW Energy from Waste Helmstedt GmbH | F155: TRV Buschhaus | G155: 38350 | H155: Helmstedt | J155: Niedersachsen | K155: Linie 1-3 | L155: 31.03.1999 | M155: Abfall | N155: Abfall, biol. abbaubarer Anteil von Abfällen aus Haushalten und Industrie | P155: Abfall | Q155: Abfall | R155: Abfall | S155: Steam turbine | T155: OPSD (2018) | U155: 0.33 | V155: OPSD (2018) | W155: 37.5 | X155: =(1-VLOOKUP(R155,Start!$H$33:$I$40,2,FALSE)/100)*W155 -> 31.875 | Y155: =VLOOKUP(Q155,Start!$C$9:$D$15,2,FALSE)+VLOOKUP(Q155,Start!$C$23:$D$29,2,FALSE) -> 0 | Z155: =(Y155/U155)+Start!$D$19*(VLOOKUP(Q155,Start!$M$33:$N$39,2,FALSE)/U155)+VLOOKUP(R155,Start!$C$33:$D$40,2,FALSE) -> 1
C156: Ja | D156: BNA0442 | E156: Mark-E AG / Statkraft Markets | F156: Cuno Heizkraftwerk Herdecke | G156: 58313 | H156: Herdecke | J156: Nordrhein-Westfalen | K156: H6 | L156: 01.01.2007 | M156: Erdgas | P156: Erdgas | Q156: Erdgas | R156: GuD | S156: Combined cycle | T156: OPSD (2018) | U156: 0.5715 | V156: OPSD (2018) | W156: 417 | X156: =(1-VLOOKUP(R156,Start!$H$33:$I$40,2,FALSE)/100)*W156 -> 362.79 | Y156: =VLOOKUP(Q156,Start!$C$9:$D$15,2,FALSE)+VLOOKUP(Q156,Start!$C$23:$D$29,2,FALSE) -> 14.07 | Z156: =(Y156/U156)+Start!$D$19*(VLOOKUP(Q156,Start!$M$33:$N$39,2,FALSE)/U156)+VLOOKUP(R156,Start!$C$33:$D$40,2,FALSE) -> 34.8649885
C157: Ja | D157: BNA0444 | E157: K+S AG | F157: Wintershall | G157: 36266 | H157: Heringen | J157: Hessen | K157: Wintershall | L157: 20.05.2009 | M157: Erdgas | N157: Erdgas | O157: Dampf von extern aus Abfall | P157: Erdgas | Q157: Erdgas | R157: GuD | S157: Combined cycle | T157: OPSD (2018) | U157: 0.5805 | V157: OPSD (2018) | W157: 69 | X157: =(1-VLOOKUP(R157,Start!$H$33:$I$40,2,FALSE)/100)*W157 -> 60.03 | Y157: =VLOOKUP(Q157,Start!$C$9:$D$15,2,FALSE)+VLOOKUP(Q157,Start!$C$23:$D$29,2,FALSE) -> 14.07 | Z157: =(Y157/U157)+Start!$D$19*(VLOOKUP(Q157,Start!$M$33:$N$39,2,FALSE)/U157)+VLOOKUP(R157,Start!$C$33:$D$40,2,FALSE) -> 34.34770186
C158: Ja | D158: BNA0450 | E158: Steag GmbH | F158: KW Herne | G158: 44655 | H158: Herne | I158: Hertener Str. 16 | J158: Nordrhein-Westfalen | K158: Herne 4 | L158: 25.07.1989 | M158: Steinkohle | P158: Steinkohle | Q158: Steinkohle | R158: Steinkohle | S158: Steam turbine | T158: OPSD (2018) | U158: 0.4575 | V158: OPSD (2018) | W158: 449 | X158: =(1-VLOOKUP(R158,Start!$H$33:$I$40,2,FALSE)/100)*W158 -> 354.71 | Y158: =VLOOKUP(Q158,Start!$C$9:$D$15,2,FALSE)+VLOOKUP(Q158,Start!$C$23:$D$29,2,FALSE) -> 9.17 | Z158: =(Y158/U158)+Start!$D$19*(VLOOKUP(Q158,Start!$M$33:$N$39,2,FALSE)/U158)+VLOOKUP(R158,Start!$C$33:$D$40,2,FALSE) -> 39.66040175
C159: Ja | D159: BNA0464 | E159: Kraftwerk Mehrum GmbH | F159: KWM | G159: 31249 | H159: Hohenhameln OT Mehrum | J159: Niedersachsen | K159: Block3 | L159: 01.06.1979 | M159: Steinkohle | P159: Steinkohle | Q159: Steinkohle | R159: Steinkohle | S159: Steam turbine | T159: OPSD (2018) | U159: 0.4325 | V159: OPSD (2018) | W159: 690 | X159: =(1-VLOOKUP(R159,Start!$H$33:$I$40,2,FALSE)/100)*W159 -> 545.1 | Y159: =VLOOKUP(Q159,Start!$C$9:$D$15,2,FALSE)+VLOOKUP(Q159,Start!$C$23:$D$29,2,FALSE) -> 9.17 | Z159: =(Y159/U159)+Start!$D$19*(VLOOKUP(Q159,Start!$M$33:$N$39,2,FALSE)/U159)+VLOOKUP(R159,Start!$C$33:$D$40,2,FALSE) -> 41.87776601
C160: Ja | D160: BNA0485 | E160: Hüttenwerke Krupp Mannesmann GmbH | F160: Huckingen | G160: 47259 | H160: Duisburg-Huckingen | J160: Nordrhein-Westfalen | K160: A | L160: 17.01.1976 | M160: Mehrere Energieträger | N160: Erd-/Gicht-/Hochofengas | P160: Sonstige Energieträger (nicht erneuerbar) | Q160: Erdgas | R160: GuD | S160: Combined cycle | T160: OPSD (2018) | U160: 0.45 | V160: Annahme basierend auf DIW (2014) | W160: 303 | X160: =(1-VLOOKUP(R160,Start!$H$33:$I$40,2,FALSE)/100)*W160 -> 263.61 | Y160: =VLOOKUP(Q160,Start!$C$9:$D$15,2,FALSE)+VLOOKUP(Q160,Start!$C$23:$D$29,2,FALSE) -> 14.07 | Z160: =(Y160/U160)+Start!$D$19*(VLOOKUP(Q160,Start!$M$33:$N$39,2,FALSE)/U160)+VLOOKUP(R160,Start!$C$33:$D$40,2,FALSE) -> 43.8735354
C161: Ja | D161: BNA0486 | E161: Hüttenwerke Krupp Mannesmann GmbH | F161: Huckingen | G161: 47259 | H161: Duisburg-Huckingen | J161: Nordrhein-Westfalen | K161: B | L161: 27.03.1977 | M161: Mehrere Energieträger | N161: Erd-/Gicht-/Hochofengas | P161: Sonstige Energieträger (nicht erneuerbar) | Q161: Erdgas | R161: GuD | S161: Combined cycle | T161: OPSD (2018) | U161: 0.45 | V161: Annahme basierend auf DIW (2014) | W161: 303 | X161: =(1-VLOOKUP(R161,Start!$H$33:$I$40,2,FALSE)/100)*W161 -> 263.61 | Y161: =VLOOKUP(Q161,Start!$C$9:$D$15,2,FALSE)+VLOOKUP(Q161,Start!$C$23:$D$29,2,FALSE) -> 14.07 | Z161: =(Y161/U161)+Start!$D$19*(VLOOKUP(Q161,Start!$M$33:$N$39,2,FALSE)/U161)+VLOOKUP(R161,Start!$C$33:$D$40,2,FALSE) -> 43.8735354
C162: Ja | D162: BNA0491 | E162: RWE Power AG | F162: Ville/Berrenrath | G162: 50354 | H162: Hürth | J162: Nordrhein-Westfalen | K162: Ville/Berrenrath | L162: 01.01.1917 | M162: Mehrere Energieträger | N162: Braunkohle | O162: Altholz / SBS | P162: Braunkohle | Q162: Braunkohle | R162: Braunkohle | S162: Steam turbine | T162: OPSD (2018) | U162: 0.2008 | V162: OPSD (2018) | W162: 98 | X162: =(1-VLOOKUP(R162,Start!$H$33:$I$40,2,FALSE)/100)*W162 -> 86.24 | Y162: =VLOOKUP(Q162,Start!$C$9:$D$15,2,FALSE)+VLOOKUP(Q162,Start!$C$23:$D$29,2,FALSE) -> 3.1 | Z162: =(Y162/U162)+Start!$D$19*(VLOOKUP(Q162,Start!$M$33:$N$39,2,FALSE)/U162)+VLOOKUP(R162,Start!$C$33:$D$40,2,FALSE) -> 67.16769974
C163: Ja | D163: BNA0493 | E163: RWE Generation SE | F163: Ibbenbüren | G163: 49479 | H163: Ibbenbüren | J163: Nordrhein-Westfalen | K163: B | L163: 19.06.1985 | M163: Mehrere Energieträger | N163: Steinkohle | O163: Klärschlamm / Tiermehl | P163: Steinkohle | Q163: Steinkohle | R163: Steinkohle | S163: Steam turbine | T163: OPSD (2018) | U163: 0.4475 | V163: OPSD (2018) | W163: 794 | X163: =(1-VLOOKUP(R163,Start!$H$33:$I$40,2,FALSE)/100)*W163 -> 627.26 | Y163: =VLOOKUP(Q163,Start!$C$9:$D$15,2,FALSE)+VLOOKUP(Q163,Start!$C$23:$D$29,2,FALSE) -> 9.17 | Z163: =(Y163/U163)+Start!$D$19*(VLOOKUP(Q163,Start!$M$33:$N$39,2,FALSE)/U163)+VLOOKUP(R163,Start!$C$33:$D$40,2,FALSE) -> 40.51761743
C164: Ja | D164: BNA0497 | E164: Infraserv GmbH & Co. Höchst KG | F164: ADS-Anlage | G164: 65926 | H164: Industriepark Höchst | J164: Hessen | L164: 01.11.2012 | M164: Erdgas | P164: Erdgas | Q164: Erdgas | R164: Gasturbine | S164: Gas turbine | T164: OPSD (2018) | U164: 0.4112 | V164: OPSD (2018) | W164: 96.5 | X164: =(1-VLOOKUP(R164,Start!$H$33:$I$40,2,FALSE)/100)*W164 -> 83.955 | Y164: =VLOOKUP(Q164,Start!$C$9:$D$15,2,FALSE)+VLOOKUP(Q164,Start!$C$23:$D$29,2,FALSE) -> 14.07 | Z164: =(Y164/U164)+Start!$D$19*(VLOOKUP(Q164,Start!$M$33:$N$39,2,FALSE)/U164)+VLOOKUP(R164,Start!$C$33:$D$40,2,FALSE) -> 47.37181646
C165: Ja | D165: BNA0498 | E165: Infraserv GmbH & Co. Höchst KG | F165: Heizkraftwerk | G165: 65926 | H165: Industriepark Höchst | J165: Hessen | K165: Block B | L165: 21.08.1989 | M165: Mehrere Energieträger | N165: Steinkohle | O165: Erdgas, Heizöl EL | P165: Steinkohle | Q165: Steinkohle | R165: Steinkohle | S165: Combined cycle | T165: OPSD (2018) | U165: 0.4905 | V165: OPSD (2018) | W165: 66 | X165: =(1-VLOOKUP(R165,Start!$H$33:$I$40,2,FALSE)/100)*W165 -> 52.14 | Y165: =VLOOKUP(Q165,Start!$C$9:$D$15,2,FALSE)+VLOOKUP(Q165,Start!$C$23:$D$29,2,FALSE) -> 9.17 | Z165: =(Y165/U165)+Start!$D$19*(VLOOKUP(Q165,Start!$M$33:$N$39,2,FALSE)/U165)+VLOOKUP(R165,Start!$C$33:$D$40,2,FALSE) -> 37.07957961
C166: Ja | D166: BNA0499 | E166: Infraserv GmbH & Co. Höchst KG | F166: Heizkraftwerk | G166: 65926 | H166: Industriepark Höchst | J166: Hessen | K166: Block A | L166: 26.11.2003 | M166: Erdgas | P166: Erdgas | Q166: Erdgas | R166: GuD | S166: Combined cycle | T166: OPSD (2018) | U166: 0.5535 | V166: OPSD (2018) | W166: 86 | X166: =(1-VLOOKUP(R166,Start!$H$33:$I$40,2,FALSE)/100)*W166 -> 74.82 | Y166: =VLOOKUP(Q166,Start!$C$9:$D$15,2,FALSE)+VLOOKUP(Q166,Start!$C$23:$D$29,2,FALSE) -> 14.07 | Z166: =(Y166/U166)+Start!$D$19*(VLOOKUP(Q166,Start!$M$33:$N$39,2,FALSE)/U166)+VLOOKUP(R166,Start!$C$33:$D$40,2,FALSE) -> 35.95002878
C167: Ja | D167: BNA0504 | E167: TEAG Thüringer Energie AG | F167: HKW Jena | G167: 7749 | H167: Jena | J167: Thüringen | K167: HKW Jena | L167: 26.09.1996 | M167: Mehrere Energieträger | N167: Erdgas | O167: HEL | P167: Erdgas | Q167: Erdgas | R167: GuD | S167: Combined cycle | T167: OPSD (2018) | U167: 0.522 | V167: OPSD (2018) | W167: 182 | X167: =(1-VLOOKUP(R167,Start!$H$33:$I$40,2,FALSE)/100)*W167 -> 158.34 | Y167: =VLOOKUP(Q167,Start!$C$9:$D$15,2,FALSE)+VLOOKUP(Q167,Start!$C$23:$D$29,2,FALSE) -> 14.07 | Z167: =(Y167/U167)+Start!$D$19*(VLOOKUP(Q167,Start!$M$33:$N$39,2,FALSE)/U167)+VLOOKUP(R167,Start!$C$33:$D$40,2,FALSE) -> 38.02890983
C168: Ja | D168: BNA0510a | E168: SWK Stadtwerke Kaiserslautern, Versorgungs-AG | F168: HKW Karcherstr. | G168: 67655 | H168: Kaiserslautern | J168: Rheinland-Pfalz | K168: 10 | L168: 18.09.1989 | M168: Mehrere Energieträger | N168: Erdgas | O168: HEL | P168: Erdgas | Q168: Erdgas | R168: GuD | S168: Steam turbine | T168: OPSD (2018) | U168: 0.3729 | V168: OPSD (2018) | W168: 11.6 | X168: =(1-VLOOKUP(R168,Start!$H$33:$I$40,2,FALSE)/100)*W168 -> 10.092 | Y168: =VLOOKUP(Q168,Start!$C$9:$D$15,2,FALSE)+VLOOKUP(Q168,Start!$C$23:$D$29,2,FALSE) -> 14.07 | Z168: =(Y168/U168)+Start!$D$19*(VLOOKUP(Q168,Start!$M$33:$N$39,2,FALSE)/U168)+VLOOKUP(R168,Start!$C$33:$D$40,2,FALSE) -> 52.63459622
C169: Ja | D169: BNA0510b | E169: SWK Stadtwerke Kaiserslautern, Versorgungs-AG | F169: HKW Karcherstr. | G169: 67655 | H169: Kaiserslautern | J169: Rheinland-Pfalz | K169: 20 | L169: 26.11.1996 | M169: Steinkohle | P169: Steinkohle | Q169: Steinkohle | R169: Steinkohle | S169: Steam turbine | T169: OPSD (2018) | U169: 0.415 | V169: OPSD (2018) | W169: 13.4 | X169: =(1-VLOOKUP(R169,Start!$H$33:$I$40,2,FALSE)/100)*W169 -> 10.586 | Y169: =VLOOKUP(Q169,Start!$C$9:$D$15,2,FALSE)+VLOOKUP(Q169,Start!$C$23:$D$29,2,FALSE) -> 9.17 | Z169: =(Y169/U169)+Start!$D$19*(VLOOKUP(Q169,Start!$M$33:$N$39,2,FALSE)/U169)+VLOOKUP(R169,Start!$C$33:$D$40,2,FALSE) -> 43.58887662
C170: Ja | D170: BNA0515 | E170: Stadtwerke Karlsruhe GmbH | F170: Heizkraftwerk West | G170: 76189 | H170: Karlsruhe | J170: Baden-Württemberg | K170: T3 | L170: 01.01.1984 | M170: Mehrere Energieträger | N170: Erdgas | O170: Heizöl EL | P170: Erdgas | Q170: Erdgas | R170: GuD | S170: Steam turbine | T170: OPSD (2018) | U170: 0.3674 | V170: OPSD (2018) | W170: 37 | X170: =(1-VLOOKUP(R170,Start!$H$33:$I$40,2,FALSE)/100)*W170 -> 32.19 | Y170: =VLOOKUP(Q170,Start!$C$9:$D$15,2,FALSE)+VLOOKUP(Q170,Start!$C$23:$D$29,2,FALSE) -> 14.07 | Z170: =(Y170/U170)+Start!$D$19*(VLOOKUP(Q170,Start!$M$33:$N$39,2,FALSE)/U170)+VLOOKUP(R170,Start!$C$33:$D$40,2,FALSE) -> 53.40008419
C171: Ja | D171: BNA0516 | E171: MiRO Mineraloelraffinerie Oberrhein GmbH & Co. KG | F171: MiRO | G171: 76187 | H171: Karlsruhe | J171: Baden-Württemberg | K171: Kesselhaus Werk 1 | L171: 17.06.1995 | M171: Mehrere Energieträger | N171: Mineralölprodukte | O171: Erdgas | P171: Mineralölprodukte | Q171: Öl | R171: Öl | S171: Steam turbine | T171: OPSD (2018) | U171: 0.3795 | V171: OPSD (2018) | W171: 45 | X171: =(1-VLOOKUP(R171,Start!$H$33:$I$40,2,FALSE)/100)*W171 -> 38.25 | Y171: =VLOOKUP(Q171,Start!$C$9:$D$15,2,FALSE)+VLOOKUP(Q171,Start!$C$23:$D$29,2,FALSE) -> 33.44 | Z171: =(Y171/U171)+Start!$D$19*(VLOOKUP(Q171,Start!$M$33:$N$39,2,FALSE)/U171)+VLOOKUP(R171,Start!$C$33:$D$40,2,FALSE) -> 107.4624894
C172: Ja | D172: BNA0517 | E172: MiRO Mineraloelraffinerie Oberrhein GmbH & Co. KG | F172: MiRO | G172: 76187 | H172: Karlsruhe | J172: Baden-Württemberg | K172: Kesselhaus Werk 2 | L172: 17.06.1995 | M172: Mehrere Energieträger | N172: Mineralölprodukte | O172: Erdgas | P172: Mineralölprodukte | Q172: Öl | R172: Öl | S172: Steam turbine | T172: OPSD (2018) | U172: 0.3795 | V172: OPSD (2018) | W172: 25 | X172: =(1-VLOOKUP(R172,Start!$H$33:$I$40,2,FALSE)/100)*W172 -> 21.25 | Y172: =VLOOKUP(Q172,Start!$C$9:$D$15,2,FALSE)+VLOOKUP(Q172,Start!$C$23:$D$29,2,FALSE) -> 33.44 | Z172: =(Y172/U172)+Start!$D$19*(VLOOKUP(Q172,Start!$M$33:$N$39,2,FALSE)/U172)+VLOOKUP(R172,Start!$C$33:$D$40,2,FALSE) -> 107.4624894
C173: Ja | D173: BNA0518a | E173: EnBW Energie Baden-Württemberg AG | F173: Rheinhafen-Dampfkraftwerk | G173: 76189 | H173: Karlsruhe | I173: Fettweisstraße 42 | J173: Baden-Württemberg | K173: RDK 7 | L173: 21.06.1985 | M173: Steinkohle | P173: Steinkohle | Q173: Steinkohle | R173: Steinkohle | S173: Steam turbine | T173: OPSD (2018) | U173: 0.4375 | V173: OPSD (2018) | W173: 517 | X173: =(1-VLOOKUP(R173,Start!$H$33:$I$40,2,FALSE)/100)*W173 -> 408.43 | Y173: =VLOOKUP(Q173,Start!$C$9:$D$15,2,FALSE)+VLOOKUP(Q173,Start!$C$23:$D$29,2,FALSE) -> 9.17 | Z173: =(Y173/U173)+Start!$D$19*(VLOOKUP(Q173,Start!$M$33:$N$39,2,FALSE)/U173)+VLOOKUP(R173,Start!$C$33:$D$40,2,FALSE) -> 41.41402011
C174: Ja | D174: BNA0518b | E174: EnBW Energie Baden-Württemberg AG | F174: Rheinhafen-Dampfkraftwerk | G174: 76189 | H174: Karlsruhe | I174: Fettweisstraße 42 | J174: Baden-Württemberg | K174: RDK 8 | L174: 01.07.2014 | M174: Steinkohle | P174: Steinkohle | Q174: Steinkohle | R174: Steinkohle | S174: Steam turbine | T174: OPSD (2018) | U174: 0.46 | V174: OPSD (2018) | W174: 834 | X174: =(1-VLOOKUP(R174,Start!$H$33:$I$40,2,FALSE)/100)*W174 -> 658.86 | Y174: =VLOOKUP(Q174,Start!$C$9:$D$15,2,FALSE)+VLOOKUP(Q174,Start!$C$23:$D$29,2,FALSE) -> 9.17 | Z174: =(Y174/U174)+Start!$D$19*(VLOOKUP(Q174,Start!$M$33:$N$39,2,FALSE)/U174)+VLOOKUP(R174,Start!$C$33:$D$40,2,FALSE) -> 39.4519213
C175: Ja | D175: BNA0519 | E175: RWE Generation SE | F175: Karnap | G175: 45329 | H175: Essen | J175: Nordrhein-Westfalen | K175: B | L175: 16.03.1987 | M175: Abfall | P175: Abfall | Q175: Abfall | R175: Abfall | S175: Steam turbine | T175: OPSD (2018) | U175: 0.33 | V175: OPSD (2018) | W175: 38 | X175: =(1-VLOOKUP(R175,Start!$H$33:$I$40,2,FALSE)/100)*W175 -> 32.3 | Y175: =VLOOKUP(Q175,Start!$C$9:$D$15,2,FALSE)+VLOOKUP(Q175,Start!$C$23:$D$29,2,FALSE) -> 0 | Z175: =(Y175/U175)+Start!$D$19*(VLOOKUP(Q175,Start!$M$33:$N$39,2,FALSE)/U175)+VLOOKUP(R175,Start!$C$33:$D$40,2,FALSE) -> 1
C176: Ja | D176: BNA0521 | E176: Städtische Werke Energie + Wärme GmbH | F176: Kombi-HKW | G176: 34134 | H176: Kassel | J176: Hessen | L176: 18.07.1988 | M176: Erdgas | P176: Erdgas | Q176: Erdgas | R176: GuD | S176: Steam turbine | T176: OPSD (2018) | U176: 0.3718 | V176: OPSD (2018) | W176: 48.31 | X176: =(1-VLOOKUP(R176,Start!$H$33:$I$40,2,FALSE)/100)*W176 -> 42.0297 | Y176: =VLOOKUP(Q176,Start!$C$9:$D$15,2,FALSE)+VLOOKUP(Q176,Start!$C$23:$D$29,2,FALSE) -> 14.07 | Z176: =(Y176/U176)+Start!$D$19*(VLOOKUP(Q176,Start!$M$33:$N$39,2,FALSE)/U176)+VLOOKUP(R176,Start!$C$33:$D$40,2,FALSE) -> 52.78588201
C177: Ja | D177: BNA0523 | E177: Städtische Werke Energie + Wärme GmbH | F177: FKK | G177: 34134 | H177: Kassel | J177: Hessen | L177: 21.12.1989 | M177: Mehrere Energieträger | N177: Braunkohle | O177: Steinkohle, Klärschlamm, Erdgas, Heizöl EL | P177: Braunkohle | Q177: Braunkohle | R177: Braunkohle | S177: Steam turbine | T177: OPSD (2018) | U177: 0.3736 | V177: OPSD (2018) | W177: 33.5 | X177: =(1-VLOOKUP(R177,Start!$H$33:$I$40,2,FALSE)/100)*W177 -> 29.48 | Y177: =VLOOKUP(Q177,Start!$C$9:$D$15,2,FALSE)+VLOOKUP(Q177,Start!$C$23:$D$29,2,FALSE) -> 3.1 | Z177: =(Y177/U177)+Start!$D$19*(VLOOKUP(Q177,Start!$M$33:$N$39,2,FALSE)/U177)+VLOOKUP(R177,Start!$C$33:$D$40,2,FALSE) -> 36.88713626
C178: Ja | D178: BNA0527 | E178: Stadtwerke Kiel AG | F178: HKW Humboldtstr. | G178: 24116 | H178: Kiel | J178: Schleswig-Holstein | L178: 27.04.2005 | M178: Erdgas | N178: Erdgas | O178: Heizöl EL | P178: Erdgas | Q178: Erdgas | R178: GuD | S178: Steam turbine | T178: OPSD (2018) | U178: 0.3905 | V178: OPSD (2018) | W178: 21.5 | X178: =(1-VLOOKUP(R178,Start!$H$33:$I$40,2,FALSE)/100)*W178 -> 18.705 | Y178: =VLOOKUP(Q178,Start!$C$9:$D$15,2,FALSE)+VLOOKUP(Q178,Start!$C$23:$D$29,2,FALSE) -> 14.07 | Z178: =(Y178/U178)+Start!$D$19*(VLOOKUP(Q178,Start!$M$33:$N$39,2,FALSE)/U178)+VLOOKUP(R178,Start!$C$33:$D$40,2,FALSE) -> 50.32993836
C179: Ja | D179: BNA0531 | E179: Energieservice Westfalen Weser GmbH | F179: KW Kirchlengern | G179: 32278 | H179: Kirchlengern | J179: Nordrhein-Westfalen | L179: 16.01.1981 | M179: Mehrere Energieträger | N179: Erdgas | O179: Heizöl EL | P179: Erdgas | Q179: Erdgas | R179: GuD | S179: Combined cycle | T179: OPSD (2018) | U179: 0.4545 | V179: OPSD (2018) | W179: 125 | X179: =(1-VLOOKUP(R179,Start!$H$33:$I$40,2,FALSE)/100)*W179 -> 108.75 | Y179: =VLOOKUP(Q179,Start!$C$9:$D$15,2,FALSE)+VLOOKUP(Q179,Start!$C$23:$D$29,2,FALSE) -> 14.07 | Z179: =(Y179/U179)+Start!$D$19*(VLOOKUP(Q179,Start!$M$33:$N$39,2,FALSE)/U179)+VLOOKUP(R179,Start!$C$33:$D$40,2,FALSE) -> 43.45399545
C180: Ja | D180: BNA0543 | E180: RheinEnergie AG | F180: HKW Merkenich | G180: 50769 | H180: Köln | J180: Nordrhein-Westfalen | K180: Block 6 | L180: 16.12.2010 | M180: Braunkohle | P180: Braunkohle | Q180: Braunkohle | R180: Braunkohle | S180: Steam turbine | T180: OPSD (2018) | U180: 0.424 | V180: OPSD (2018) | W180: 75.3 | X180: =(1-VLOOKUP(R180,Start!$H$33:$I$40,2,FALSE)/100)*W180 -> 66.264 | Y180: =VLOOKUP(Q180,Start!$C$9:$D$15,2,FALSE)+VLOOKUP(Q180,Start!$C$23:$D$29,2,FALSE) -> 3.1 | Z180: =(Y180/U180)+Start!$D$19*(VLOOKUP(Q180,Start!$M$33:$N$39,2,FALSE)/U180)+VLOOKUP(R180,Start!$C$33:$D$40,2,FALSE) -> 32.70451441
C181: Ja | D181: BNA0545 | E181: RheinEnergie AG | F181: HKW Niehl 2 | G181: 50735 | H181: Köln | J181: Nordrhein-Westfalen | K181: GuD | L181: 26.03.2005 | M181: Erdgas | P181: Erdgas | Q181: Erdgas | R181: GuD | S181: Combined cycle | T181: OPSD (2018) | U181: 0.576 | V181: OPSD (2018) | W181: 413 | X181: =(1-VLOOKUP(R181,Start!$H$33:$I$40,2,FALSE)/100)*W181 -> 359.31 | Y181: =VLOOKUP(Q181,Start!$C$9:$D$15,2,FALSE)+VLOOKUP(Q181,Start!$C$23:$D$29,2,FALSE) -> 14.07 | Z181: =(Y181/U181)+Start!$D$19*(VLOOKUP(Q181,Start!$M$33:$N$39,2,FALSE)/U181)+VLOOKUP(R181,Start!$C$33:$D$40,2,FALSE) -> 34.60432453
C182: Ja | D182: BNA0546 | E182: RheinEnergie AG | F182: HKW Merkenich | G182: 50769 | H182: Köln | J182: Nordrhein-Westfalen | K182: GuD | L182: 27.01.2004 | M182: Erdgas | P182: Erdgas | Q182: Erdgas | R182: GuD | S182: Combined cycle | T182: OPSD (2018) | U182: 0.558 | V182: OPSD (2018) | W182: 108 | X182: =(1-VLOOKUP(R182,Start!$H$33:$I$40,2,FALSE)/100)*W182 -> 93.96 | Y182: =VLOOKUP(Q182,Start!$C$9:$D$15,2,FALSE)+VLOOKUP(Q182,Start!$C$23:$D$29,2,FALSE) -> 14.07 | Z182: =(Y182/U182)+Start!$D$19*(VLOOKUP(Q182,Start!$M$33:$N$39,2,FALSE)/U182)+VLOOKUP(R182,Start!$C$33:$D$40,2,FALSE) -> 35.67220597
C183: Ja | D183: BNA0547 | E183: Shell Deutschland Oil GmbH | F183: Shell Deutschland Oil GmbH | G183: 50997 | H183: Köln | I183: Godorfer Hauptstr. 150 | J183: Nordrhein-Westfalen | L183: 2004 | M183: Mineralölprodukte | P183: Mineralölprodukte | Q183: Öl | R183: Öl | S183: Combined cycle | T183: OPSD (2018) | U183: 0.38 | V183: OPSD (2018) | W183: 97.1 | X183: =(1-VLOOKUP(R183,Start!$H$33:$I$40,2,FALSE)/100)*W183 -> 82.535 | Y183: =VLOOKUP(Q183,Start!$C$9:$D$15,2,FALSE)+VLOOKUP(Q183,Start!$C$23:$D$29,2,FALSE) -> 33.44 | Z183: =(Y183/U183)+Start!$D$19*(VLOOKUP(Q183,Start!$M$33:$N$39,2,FALSE)/U183)+VLOOKUP(R183,Start!$C$33:$D$40,2,FALSE) -> 107.3224072
C184: Ja | D184: BNA0548a | E184: Statkraft Markets GmbH | F184: Knapsack Gas I | G184: 50351 | H184: Hürth-Knapsack | J184: Nordrhein-Westfalen | L184: 01.01.2006 | M184: Erdgas | P184: Erdgas | Q184: Erdgas | R184: GuD | S184: Combined cycle | T184: OPSD (2018) | U184: 0.567 | V184: OPSD (2018) | W184: 800 | X184: =(1-VLOOKUP(R184,Start!$H$33:$I$40,2,FALSE)/100)*W184 -> 696 | Y184: =VLOOKUP(Q184,Start!$C$9:$D$15,2,FALSE)+VLOOKUP(Q184,Start!$C$23:$D$29,2,FALSE) -> 14.07 | Z184: =(Y184/U184)+Start!$D$19*(VLOOKUP(Q184,Start!$M$33:$N$39,2,FALSE)/U184)+VLOOKUP(R184,Start!$C$33:$D$40,2,FALSE) -> 35.12979
C185: Ja | D185: BNA0548b | E185: Statkraft Markets GmbH | F185: Knapsack Gas II | G185: 50351 | H185: Hürth-Knapsack | J185: Nordrhein-Westfalen | L185: 01.07.2013 | M185: Erdgas | P185: Erdgas | Q185: Erdgas | R185: GuD | S185: Combined cycle | T185: OPSD (2018) | U185: 0.5985 | V185: OPSD (2018) | W185: 430 | X185: =(1-VLOOKUP(R185,Start!$H$33:$I$40,2,FALSE)/100)*W185 -> 374.1 | Y185: =VLOOKUP(Q185,Start!$C$9:$D$15,2,FALSE)+VLOOKUP(Q185,Start!$C$23:$D$29,2,FALSE) -> 14.07 | Z185: =(Y185/U185)+Start!$D$19*(VLOOKUP(Q185,Start!$M$33:$N$39,2,FALSE)/U185)+VLOOKUP(R185,Start!$C$33:$D$40,2,FALSE) -> 33.35980105
C186: Ja | D186: BNA0556a | E186: Cargill Deutschland GmbH | F186: KWK-Anlage Krefeld DT | G186: 47809 | H186: Krefeld | I186: Düsseldorfer Str. 191 | J186: Nordrhein-Westfalen | K186: Dampfturbine | L186: 01.07.1999 | M186: Erdgas | P186: Erdgas | Q186: Erdgas | R186: GuD | S186: Steam turbine | T186: OPSD (2018) | U186: 0.3839 | V186: OPSD (2018) | W186: 25.8 | X186: =(1-VLOOKUP(R186,Start!$H$33:$I$40,2,FALSE)/100)*W186 -> 22.446 | Y186: =VLOOKUP(Q186,Start!$C$9:$D$15,2,FALSE)+VLOOKUP(Q186,Start!$C$23:$D$29,2,FALSE) -> 14.07 | Z186: =(Y186/U186)+Start!$D$19*(VLOOKUP(Q186,Start!$M$33:$N$39,2,FALSE)/U186)+VLOOKUP(R186,Start!$C$33:$D$40,2,FALSE) -> 51.16942154
C187: Ja | D187: BNA0556b | E187: Cargill Deutschland GmbH | F187: KWK-Anlage Krefeld VM | G187: 47809 | H187: Krefeld | I187: Düsseldorfer Str. 191 | J187: Nordrhein-Westfalen | K187: Gasmotor (Dieselgenerator) | L187: 01.07.1999 | M187: Erdgas | O187: Heizöl El | P187: Erdgas | Q187: Erdgas | R187: GuD | S187: Combustion Engine | T187: OPSD (2018) | U187: 0.4406 | V187: OPSD (2018) | W187: 14 | X187: =(1-VLOOKUP(R187,Start!$H$33:$I$40,2,FALSE)/100)*W187 -> 12.18 | Y187: =VLOOKUP(Q187,Start!$C$9:$D$15,2,FALSE)+VLOOKUP(Q187,Start!$C$23:$D$29,2,FALSE) -> 14.07 | Z187: =(Y187/U187)+Start!$D$19*(VLOOKUP(Q187,Start!$M$33:$N$39,2,FALSE)/U187)+VLOOKUP(R187,Start!$C$33:$D$40,2,FALSE) -> 44.77755545
C188: Ja | D188: BNA0557a | E188: Currenta GmbH & Co. OHG | F188: Kraftwerk L 57 | G188: 47812 | H188: Krefeld-Uerdingen | I188: CHEMPARK, Geb. L 57 | J188: Nordrhein-Westfalen | L188: 01.01.1957 | M188: Mehrere Energieträger | N188: Steinkohle | O188: Erdgas, Braunkohle, Produktionsrückstände | P188: Steinkohle | Q188: Steinkohle | R188: Steinkohle | S188: Steam turbine | T188: OPSD (2018) | U188: 0.3175 | V188: OPSD (2018) | W188: 26 | X188: =(1-VLOOKUP(R188,Start!$H$33:$I$40,2,FALSE)/100)*W188 -> 20.54 | Y188: =VLOOKUP(Q188,Start!$C$9:$D$15,2,FALSE)+VLOOKUP(Q188,Start!$C$23:$D$29,2,FALSE) -> 9.17 | Z188: =(Y188/U188)+Start!$D$19*(VLOOKUP(Q188,Start!$M$33:$N$39,2,FALSE)/U188)+VLOOKUP(R188,Start!$C$33:$D$40,2,FALSE) -> 56.57522456
C189: Ja | D189: BNA0557b | E189: Currenta GmbH & Co. OHG | F189: Kraftwerk N 230 | G189: 47812 | H189: Krefeld-Uerdingen | I189: CHEMPARK, Geb. N 230 | J189: Nordrhein-Westfalen | L189: 01.01.1971 | M189: Mehrere Energieträger | N189: Steinkohle | O189: Erdgas, Produktionsrückstände | P189: Steinkohle | Q189: Steinkohle | R189: Steinkohle | S189: Steam turbine | T189: OPSD (2018) | U189: 0.3525 | V189: OPSD (2018) | W189: 110 | X189: =(1-VLOOKUP(R189,Start!$H$33:$I$40,2,FALSE)/100)*W189 -> 86.9 | Y189: =VLOOKUP(Q189,Start!$C$9:$D$15,2,FALSE)+VLOOKUP(Q189,Start!$C$23:$D$29,2,FALSE) -> 9.17 | Z189: =(Y189/U189)+Start!$D$19*(VLOOKUP(Q189,Start!$M$33:$N$39,2,FALSE)/U189)+VLOOKUP(R189,Start!$C$33:$D$40,2,FALSE) -> 51.08690439
C190: Ja | D190: BNA0574a | E190: Statkraft Markets GmbH | F190: Landesbergen Gas | G190: 31628 | H190: Landesbergen | J190: Niedersachsen | K190: Gasturbine | L190: 01.01.1973 | M190: Erdgas | P190: Erdgas | Q190: Erdgas | R190: Gasturbine | S190: Gas turbine | T190: OPSD (2018) | U190: 0.3098 | V190: OPSD (2018) | W190: 56 | X190: =(1-VLOOKUP(R190,Start!$H$33:$I$40,2,FALSE)/100)*W190 -> 48.72 | Y190: =VLOOKUP(Q190,Start!$C$9:$D$15,2,FALSE)+VLOOKUP(Q190,Start!$C$23:$D$29,2,FALSE) -> 14.07 | Z190: =(Y190/U190)+Start!$D$19*(VLOOKUP(Q190,Start!$M$33:$N$39,2,FALSE)/U190)+VLOOKUP(R190,Start!$C$33:$D$40,2,FALSE) -> 62.54968021
C191: Ja | D191: BNA0588 | E191: Stadtwerke Leipzig GmbH | F191: Heizkraftwerk Leipzig-Nord | G191: 4105 | H191: Leipzig | J191: Sachsen | L191: 15.02.1996 | M191: Mehrere Energieträger | N191: Erdgas | O191: leichtes Heizöl | P191: Erdgas | Q191: Erdgas | R191: GuD | S191: Combined cycle | T191: OPSD (2018) | U191: 0.585 | V191: OPSD (2018) | W191: 167 | X191: =(1-VLOOKUP(R191,Start!$H$33:$I$40,2,FALSE)/100)*W191 -> 145.29 | Y191: =VLOOKUP(Q191,Start!$C$9:$D$15,2,FALSE)+VLOOKUP(Q191,Start!$C$23:$D$29,2,FALSE) -> 14.07 | Z191: =(Y191/U191)+Start!$D$19*(VLOOKUP(Q191,Start!$M$33:$N$39,2,FALSE)/U191)+VLOOKUP(R191,Start!$C$33:$D$40,2,FALSE) -> 34.09502723
C192: Ja | D192: BNA0590 | E192: MVV Energie AG | F192: TREA Leuna | G192: 6237 | H192: Leuna | I192: An der B91 | J192: Sachsen-Anhalt | K192: Linie 1 | L192: 26.08.2005 | M192: Abfall | P192: Abfall | Q192: Abfall | R192: Abfall | S192: Steam turbine | T192: OPSD (2018) | U192: 0.33 | V192: OPSD (2018) | W192: 16.25 | X192: =(1-VLOOKUP(R192,Start!$H$33:$I$40,2,FALSE)/100)*W192 -> 13.8125 | Y192: =VLOOKUP(Q192,Start!$C$9:$D$15,2,FALSE)+VLOOKUP(Q192,Start!$C$23:$D$29,2,FALSE) -> 0 | Z192: =(Y192/U192)+Start!$D$19*(VLOOKUP(Q192,Start!$M$33:$N$39,2,FALSE)/U192)+VLOOKUP(R192,Start!$C$33:$D$40,2,FALSE) -> 1
C193: Ja | D193: BNA0591 | E193: MVV Energie AG | F193: TREA Leuna | G193: 6237 | H193: Leuna | I193: An der B91 | J193: Sachsen-Anhalt | K193: Linie 2 | L193: 19.06.2007 | M193: Abfall | P193: Abfall | Q193: Abfall | R193: Abfall | S193: Steam turbine | T193: OPSD (2018) | U193: 0.33 | V193: OPSD (2018) | W193: 16.25 | X193: =(1-VLOOKUP(R193,Start!$H$33:$I$40,2,FALSE)/100)*W193 -> 13.8125 | Y193: =VLOOKUP(Q193,Start!$C$9:$D$15,2,FALSE)+VLOOKUP(Q193,Start!$C$23:$D$29,2,FALSE) -> 0 | Z193: =(Y193/U193)+Start!$D$19*(VLOOKUP(Q193,Start!$M$33:$N$39,2,FALSE)/U193)+VLOOKUP(R193,Start!$C$33:$D$40,2,FALSE) -> 1
C194: Ja | D194: BNA0592 | E194: InfraLeuna GmbH | F194: GuD Leuna | G194: 6237 | H194: Leuna | J194: Sachsen-Anhalt | L194: 01.10.1998 | M194: Erdgas | P194: Erdgas | Q194: Erdgas | R194: GuD | S194: Combined cycle | T194: OPSD (2018) | U194: 0.531 | V194: OPSD (2018) | W194: 39 | X194: =(1-VLOOKUP(R194,Start!$H$33:$I$40,2,FALSE)/100)*W194 -> 33.93 | Y194: =VLOOKUP(Q194,Start!$C$9:$D$15,2,FALSE)+VLOOKUP(Q194,Start!$C$23:$D$29,2,FALSE) -> 14.07 | Z194: =(Y194/U194)+Start!$D$19*(VLOOKUP(Q194,Start!$M$33:$N$39,2,FALSE)/U194)+VLOOKUP(R194,Start!$C$33:$D$40,2,FALSE) -> 37.40977576
C195: Ja | D195: BNA0593 | E195: InfraLeuna GmbH | F195: ILK-GuD | G195: 6237 | H195: Leuna | J195: Sachsen-Anhalt | K195: GT1 | L195: 01.07.1994 | M195: Erdgas | P195: Erdgas | Q195: Erdgas | R195: GuD | S195: Combined cycle | T195: OPSD (2018) | U195: 0.513 | V195: OPSD (2018) | W195: 35 | X195: =(1-VLOOKUP(R195,Start!$H$33:$I$40,2,FALSE)/100)*W195 -> 30.45 | Y195: =VLOOKUP(Q195,Start!$C$9:$D$15,2,FALSE)+VLOOKUP(Q195,Start!$C$23:$D$29,2,FALSE) -> 14.07 | Z195: =(Y195/U195)+Start!$D$19*(VLOOKUP(Q195,Start!$M$33:$N$39,2,FALSE)/U195)+VLOOKUP(R195,Start!$C$33:$D$40,2,FALSE) -> 38.6697679
C196: Ja | D196: BNA0594 | E196: TOTAL Raffinerie Mitteldeutschland GmbH | F196: ILK-GuD | G196: 6237 | H196: Leuna | J196: Sachsen-Anhalt | K196: GT2 | L196: 01.07.1994 | M196: Erdgas | P196: Erdgas | Q196: Erdgas | R196: GuD | S196: Combined cycle | T196: OPSD (2018) | U196: 0.513 | V196: OPSD (2018) | W196: 35 | X196: =(1-VLOOKUP(R196,Start!$H$33:$I$40,2,FALSE)/100)*W196 -> 30.45 | Y196: =VLOOKUP(Q196,Start!$C$9:$D$15,2,FALSE)+VLOOKUP(Q196,Start!$C$23:$D$29,2,FALSE) -> 14.07 | Z196: =(Y196/U196)+Start!$D$19*(VLOOKUP(Q196,Start!$M$33:$N$39,2,FALSE)/U196)+VLOOKUP(R196,Start!$C$33:$D$40,2,FALSE) -> 38.6697679
C197: Ja | D197: BNA0595 | E197: InfraLeuna GmbH | F197: ILK-GuD | G197: 6237 | H197: Leuna | J197: Sachsen-Anhalt | K197: GT3 | L197: 01.07.1994 | M197: Erdgas | P197: Erdgas | Q197: Erdgas | R197: GuD | S197: Combined cycle | T197: OPSD (2018) | U197: 0.513 | V197: OPSD (2018) | W197: 37 | X197: =(1-VLOOKUP(R197,Start!$H$33:$I$40,2,FALSE)/100)*W197 -> 32.19 | Y197: =VLOOKUP(Q197,Start!$C$9:$D$15,2,FALSE)+VLOOKUP(Q197,Start!$C$23:$D$29,2,FALSE) -> 14.07 | Z197: =(Y197/U197)+Start!$D$19*(VLOOKUP(Q197,Start!$M$33:$N$39,2,FALSE)/U197)+VLOOKUP(R197,Start!$C$33:$D$40,2,FALSE) -> 38.6697679
C198: Ja | D198: BNA0596 | E198: TOTAL Raffinerie Mitteldeutschland GmbH | F198: Raffineriekraftwerk | G198: 6237 | H198: Leuna | J198: Sachsen-Anhalt | L198: 01.01.1997 | M198: Mineralölprodukte | P198: Mineralölprodukte | Q198: Öl | R198: Öl | S198: Combined cycle | T198: OPSD (2018) | U198: 0.38 | V198: OPSD (2018) | W198: 92.5 | X198: =(1-VLOOKUP(R198,Start!$H$33:$I$40,2,FALSE)/100)*W198 -> 78.625 | Y198: =VLOOKUP(Q198,Start!$C$9:$D$15,2,FALSE)+VLOOKUP(Q198,Start!$C$23:$D$29,2,FALSE) -> 33.44 | Z198: =(Y198/U198)+Start!$D$19*(VLOOKUP(Q198,Start!$M$33:$N$39,2,FALSE)/U198)+VLOOKUP(R198,Start!$C$33:$D$40,2,FALSE) -> 107.3224072
C199: Ja | D199: BNA0597 | E199: InfraLeuna GmbH | F199: ILK-GuD | G199: 6237 | H199: Leuna | J199: Sachsen-Anhalt | K199: DT1 | L199: 01.07.1994 | M199: Sonstige Energieträger | N199: Dampf | P199: Sonstige Energieträger (nicht erneuerbar) | Q199: Erdgas | R199: GuD | S199: Combined cycle | T199: OPSD (2018) | U199: 0.495 | V199: Annahme basierend auf DIW (2014) | W199: 8.7 | X199: =(1-VLOOKUP(R199,Start!$H$33:$I$40,2,FALSE)/100)*W199 -> 7.569 | Y199: =VLOOKUP(Q199,Start!$C$9:$D$15,2,FALSE)+VLOOKUP(Q199,Start!$C$23:$D$29,2,FALSE) -> 14.07 | Z199: =(Y199/U199)+Start!$D$19*(VLOOKUP(Q199,Start!$M$33:$N$39,2,FALSE)/U199)+VLOOKUP(R199,Start!$C$33:$D$40,2,FALSE) -> 40.02139582
C200: Ja | D200: BNA0598a | E200: InfraLeuna GmbH | F200: ILK-EKT | G200: 6237 | H200: Leuna | J200: Sachsen-Anhalt | K200: EKT | L200: 14.02.2000 | M200: Sonstige Energieträger | N200: Dampf | P200: Sonstige Energieträger (nicht erneuerbar) | Q200: Erdgas | R200: GuD | S200: Steam turbine | T200: OPSD (2018) | U200: 0.385 | V200: Annahme basierend auf DIW (2014) | W200: 14 | X200: =(1-VLOOKUP(R200,Start!$H$33:$I$40,2,FALSE)/100)*W200 -> 12.18 | Y200: =VLOOKUP(Q200,Start!$C$9:$D$15,2,FALSE)+VLOOKUP(Q200,Start!$C$23:$D$29,2,FALSE) -> 14.07 | Z200: =(Y200/U200)+Start!$D$19*(VLOOKUP(Q200,Start!$M$33:$N$39,2,FALSE)/U200)+VLOOKUP(R200,Start!$C$33:$D$40,2,FALSE) -> 51.02750891
C201: Ja | D201: BNA0598b | E201: InfraLeuna GmbH | F201: ILK-GuD | G201: 6237 | H201: Leuna | J201: Sachsen-Anhalt | K201: KT1 | L201: 30.04.2010 | M201: Sonstige Energieträger | N201: Dampf | P201: Sonstige Energieträger (nicht erneuerbar) | Q201: Erdgas | R201: GuD | S201: Combined cycle | T201: OPSD (2018) | U201: 0.585 | V201: Annahme basierend auf DIW (2014) | W201: 20 | X201: =(1-VLOOKUP(R201,Start!$H$33:$I$40,2,FALSE)/100)*W201 -> 17.4 | Y201: =VLOOKUP(Q201,Start!$C$9:$D$15,2,FALSE)+VLOOKUP(Q201,Start!$C$23:$D$29,2,FALSE) -> 14.07 | Z201: =(Y201/U201)+Start!$D$19*(VLOOKUP(Q201,Start!$M$33:$N$39,2,FALSE)/U201)+VLOOKUP(R201,Start!$C$33:$D$40,2,FALSE) -> 34.09502723
C202: Ja | D202: BNA0599 | E202: AVEA Entsorgungsbetriebe GmbH & Co. KG | G202: 51373 | H202: Leverkusen | J202: Nordrhein-Westfalen | K202: entfällt | L202: 03.05.2011 | M202: Abfall | P202: Abfall | Q202: Abfall | R202: Abfall | S202: Steam turbine | T202: https://www.avea.info/klimaschutz/strom/ | U202: 0.33 | V202: eigene Annahme | W202: 11.6 | X202: =(1-VLOOKUP(R202,Start!$H$33:$I$40,2,FALSE)/100)*W202 -> 9.86 | Y202: =VLOOKUP(Q202,Start!$C$9:$D$15,2,FALSE)+VLOOKUP(Q202,Start!$C$23:$D$29,2,FALSE) -> 0 | Z202: =(Y202/U202)+Start!$D$19*(VLOOKUP(Q202,Start!$M$33:$N$39,2,FALSE)/U202)+VLOOKUP(R202,Start!$C$33:$D$40,2,FALSE) -> 1
C203: Ja | D203: BNA0600a | E203: Currenta GmbH & Co. OHG | F203: X-Kraftwerk | G203: 51368 | H203: Leverkusen | I203: CHEMPARK, Geb. X 50 | J203: Nordrhein-Westfalen | L203: 01.01.1981 | M203: Erdgas | P203: Erdgas | Q203: Erdgas | R203: GuD | S203: Steam turbine | T203: OPSD (2018) | U203: 0.3641 | V203: OPSD (2018) | W203: 25 | X203: =(1-VLOOKUP(R203,Start!$H$33:$I$40,2,FALSE)/100)*W203 -> 21.75 | Y203: =VLOOKUP(Q203,Start!$C$9:$D$15,2,FALSE)+VLOOKUP(Q203,Start!$C$23:$D$29,2,FALSE) -> 14.07 | Z203: =(Y203/U203)+Start!$D$19*(VLOOKUP(Q203,Start!$M$33:$N$39,2,FALSE)/U203)+VLOOKUP(R203,Start!$C$33:$D$40,2,FALSE) -> 53.8704777
C204: Ja | D204: BNA0600b | E204: Currenta GmbH & Co. OHG | F204: G-Kraftwerk | G204: 51368 | H204: Leverkusen | I204: CHEMPARK, Geb. G 22 | J204: Nordrhein-Westfalen | L204: 01.01.1962 | M204: Mehrere Energieträger | N204: Steinkohle | O204: Erdgas, Braunkohle, Produktionsrückstände | P204: Steinkohle | Q204: Steinkohle | R204: Steinkohle | S204: Steam turbine | T204: OPSD (2018) | U204: 0.33 | V204: OPSD (2018) | W204: 103 | X204: =(1-VLOOKUP(R204,Start!$H$33:$I$40,2,FALSE)/100)*W204 -> 81.37 | Y204: =VLOOKUP(Q204,Start!$C$9:$D$15,2,FALSE)+VLOOKUP(Q204,Start!$C$23:$D$29,2,FALSE) -> 9.17 | Z204: =(Y204/U204)+Start!$D$19*(VLOOKUP(Q204,Start!$M$33:$N$39,2,FALSE)/U204)+VLOOKUP(R204,Start!$C$33:$D$40,2,FALSE) -> 54.48146606
C205: Ja | D205: BNA0602 | E205: RWE Generation SE | F205: Emsland | G205: 49811 | H205: Lingen | J205: Niedersachsen | K205: C1 | L205: 01.01.1974 | M205: Erdgas | P205: Erdgas | Q205: Erdgas | R205: GuD | S205: Combined cycle | T205: OPSD (2018) | U205: 0.423 | V205: OPSD (2018) | W205: 116 | X205: =(1-VLOOKUP(R205,Start!$H$33:$I$40,2,FALSE)/100)*W205 -> 100.92 | Y205: =VLOOKUP(Q205,Start!$C$9:$D$15,2,FALSE)+VLOOKUP(Q205,Start!$C$23:$D$29,2,FALSE) -> 14.07 | Z205: =(Y205/U205)+Start!$D$19*(VLOOKUP(Q205,Start!$M$33:$N$39,2,FALSE)/U205)+VLOOKUP(R205,Start!$C$33:$D$40,2,FALSE) -> 46.57822915
C206: Ja | D206: BNA0603 | E206: RWE Generation SE | F206: Emsland | G206: 49811 | H206: Lingen | J206: Niedersachsen | K206: B1 | L206: 01.01.1973 | M206: Erdgas | P206: Erdgas | Q206: Erdgas | R206: GuD | S206: Combined cycle | T206: OPSD (2018) | U206: 0.4185 | V206: OPSD (2018) | W206: 116 | X206: =(1-VLOOKUP(R206,Start!$H$33:$I$40,2,FALSE)/100)*W206 -> 100.92 | Y206: =VLOOKUP(Q206,Start!$C$9:$D$15,2,FALSE)+VLOOKUP(Q206,Start!$C$23:$D$29,2,FALSE) -> 14.07 | Z206: =(Y206/U206)+Start!$D$19*(VLOOKUP(Q206,Start!$M$33:$N$39,2,FALSE)/U206)+VLOOKUP(R206,Start!$C$33:$D$40,2,FALSE) -> 47.06294129
... 347 more rows

Sheet Quellen
C3: EWI Merit-Order Tool 2020
C5: Quellen | D5: =Impressum!F5 -> Version 2020.1.1
C7: Abkürzung | D7: Quelle
C8: BNetzA (2019b) | D8: Bundesnetzagentur; Kraftwerksliste der Bundesnetzagentur, Stand: 11.11.2019. Lizensiert unter "dl-de/by-2-0": www.govdata.de/dl-de/by-2-0; URL: https://www.bundesnetzagentur.de/DE/Sachgebiete/ElektrizitaetundGas/Unternehmen_Institutionen/Versorgungssicherheit/Erzeugungskapazitaeten/Kraftwerksliste/kraftwerksliste-node.html (abgerufen am 03.01.2020)
C9: DIW (2014) | D9: Jonas Egerer & Clemens Gerbaulet & Richard Ihlenburg & Friedrich Kunz & Benjamin Reinhard & Christian von Hirschhausen & Alexander Weber & Jens Weibezahn, 2014. "Electricity Sector Data for Policy-Relevant Modeling: Data Documentation and Applications to the German and European Electricity Markets," Data Documentation 72, DIW Berlin, German Institute for Economic Research.
C10: ENTSO-E (2020) | D10: ENTSO-E; Transparency Platform, URL: https://transparency.entsoe.eu/ (abgerufen am: 07.01.2020)
C11: EWI (2019) | D11: Energiewirtschaftliches Institut an der Universität zu Köln gGmbH; Auswirkungen einer Beendigung der Kohleverstromung bis 2038 auf den Strommarkt, CO2-Emissionen und ausgewählte Industrien - Eine Analyse des Abschlussberichts der WSB-Kommission, August 2019.
C12: OPSD (2018) | D12: Open Power System Data. 2018. Data Package Conventional power plants. Version 2018-12-20.
C13: R2B (2019) | D13: R2b energy consulting GmbH, Consentec GmbH, Fraunhofer ISI, TEP Energy GmbH; Definition und Monitoring der Versorgungssicherheit an den europäischen Strommärkten, Projekt Nr. 047/16, Januar 2019.
C14: Sandbag (2020) | D14: Sandbag; Carbon Price Viewer, URL: https://sandbag.org.uk/carbon-price-viewer/ (abgerufen am: 03.01.2020)
C15: SDKW (2019) | D15: Statistik der Kohlewirtschaft e.V.; Entwicklung ausgewählter Energiepreise, Stand 19.12.2019. (Für Dezember 2019 Annahme des Wertes aus dem November 2019)
C16: ÜNB (2019) | D16: 50Hertz Transmission GmbH, Amprio GmbH, TenneT TSO GmbH und TransnetBW GmbH; Netzentwicklungsplan Strom 2030, Version 2019, 2. Entwurf. April 2019.
C17: VDKi (2020) | D17: Verein der Kohlenimporteure; DEUTSCHLAND / Importpreise für Steinkohlen / Wechselkurse - Spotpreise für Kraftwerkskohle in US-$/t SKE (umgerechnet auf 7000 kcal/kg) frei nordwesteuropäische Häfen, URL: https://www.kohlenimporteure.de/marktinformationen.html (abgerufen am: 27.01.2020)

Sheet Impressum
C3: EWI Merit-Order Tool 2020
C5: Impressum | F5: =CONCATENATE("Version ",F11," ") -> Version 2020.1.1
D8: EWI Merit-Order Tool 2020
D10: Energiewirtschaftliches Institut an der Universität zu Köln gGmbH (EWI) | E10: Letzte Aktualisierung: | F10: 27.01.2020
D11: Alte Wagenfabrik | E11: Modellversion: | F11: 2020.1.1
D12: Vogelsanger Straße 321a
D13: 50827 Köln
D14: Tel.: +49 (0)221 277 29-100
D15: Fax: +49 (0)221 277 29-400
D16: www.ewi.uni-koeln.de
D18: Autoren:
D19: Fabian Arnold
D20: David Schlund
D21: Dr. Simon Schulte
D23: Kontakt bei Fragen, Anmerkungen und Kritik: | E23: © Energiewirtschaftliches Institut an der Universität zu Köln gGmbH (EWI).
D24: Fabian Arnold | E24: Alle Rechte vorbehalten. Nutzung des Tools und Ergebnisse nur mit Verweis auf
D25: Tel.: +49 (0)221 277 29-232 | E25: die Autoren und das Energiewirtschaftliche Institut an der Universität zu Köln
D26: fabian.arnold@ewi.uni-koeln.de | E26: gGmbH (EWI) gestattet. Die Haftung für Folgeschäden ist ausgeschlossen. Dies
E27: betrifft auch und insbesondere Schäden oder entgangene Gewinne, die dem/der
E28: Nutzer*in infolge der Verwendung der in diesem Dokument gegebenen
E29: Informationen entstehen.

Sheet Start Reset (hidden)
C3: EWI Merit-Order Tool 2020
C5: Start | P5: =Impressum!F5 -> Version 2020.1.1
C7: Brennstoffkosten | H7: Übersicht über die Grenzkosten der Kraftwerke
C8: Brennstoff | D8: Kosten | E8: Einheit | F8: Quelle Standardwert | H8: Das Boxplot-Diagramm gibt einen ersten Überblick über die Grenzkosten der Kraftwerke. In der Abbildung rechts
C9: Kernenergie | D9: 5.5 | E9: EUR/MWhth | F9: siehe Dokumentation | H9: werden die einzelnen Elemente des Diagramms erläutert. Veränderungen an den Annahmen gibt das Diagramm
C10: Braunkohle | D10: 3.1 | E10: EUR/MWhth | F10: EWI (2019) | H10: augenblicklich wieder. Um die Annahmen in die Merit-Order (Tabellenblatt: Merit-Order) zu übernehmen, muss die
C11: Steinkohle | D11: 7.92 | E11: EUR/MWhth | F11: VDKi (2020) | H11: Schaltfläche Aktualisiere Merit-Order aktiviert werden.
C12: Erdgas | D12: 13.57 | E12: EUR/MWhth | F12: Spot TTF
C13: Öl | D13: 33.14 | E13: EUR/MWhth | F13: SDKW (2019)
C14: Abfall | D14: 0 | E14: EUR/MWhth | F14: siehe Dokumentation
C15: Sonstige | D15: 33.14 | E15: EUR/MWhth | F15: siehe Dokumentation
C17: Emissionszertifikatspreis
D18: Kosten | E18: Einheit | F18: Quelle Standardwert
C19: Emissionszertifikatspreis | D19: 24.86612403 | E19: EUR/tCO2 | F19: Sandbag (2020)
C21: Transportkosten
C22: Kraftwerkstyp | D22: Kosten | E22: Einheit | F22: Quelle Standardwert
C23: Kernenergie | D23: 0 | E23: EUR/MWhth | F23: siehe Dokumentation
C24: Braunkohle | D24: 0 | E24: EUR/MWhth | F24: siehe Dokumentation
C25: Steinkohle | D25: 1.25 | E25: EUR/MWhth | F25: R2B (2019)
C26: Erdgas | D26: 0.5 | E26: EUR/MWhth | F26: R2B (2019)
C27: Öl | D27: 0.3 | E27: EUR/MWhth | F27: R2B (2019)
C28: Abfall | D28: 0 | E28: EUR/MWhth | F28: siehe Dokumentation
C29: Sonstige | D29: 0 | E29: EUR/MWhth | F29: siehe Dokumentation | H29: EE-Erzeugung | I29: 0 | J29: MWh
C31: sonstige variable Kosten | H31: Nicht Verfügbarkeit | M31: Emissionsfaktoren
C32: Kraftwerkstyp | D32: Kosten | E32: Einheit | F32: Quelle Standardwert | H32: Kraftwerkstyp | I32: Kosten | J32: Einheit | K32: Quelle Standardwert | M32: Brennstoff | N32: Kosten | O32: Einheit | P32: Quelle Standardwert
C33: Kernenergie | D33: 1.2 | E33: EUR/Mwhel | F33: siehe Dokumentation | H33: Kernenergie | I33: 7 | J33: % | K33: ENTSO-E (2020) | M33: Kernenergie | N33: 0 | O33: tCO2/MWhth | P33: siehe Dokumentation
C34: Braunkohle | D34: 1.7 | E34: EUR/Mwhel | F34: R2B (2019) | H34: Braunkohle | I34: 12 | J34: % | K34: ENTSO-E (2020) | M34: Braunkohle | N34: 0.404 | O34: tCO2/MWhth | P34: ÜNB (2019)
C35: Steinkohle | D35: 1.3 | E35: EUR/Mwhel | F35: R2B (2019) | H35: Steinkohle | I35: 21 | J35: % | K35: ENTSO-E (2020) | M35: Steinkohle | N35: 0.337 | O35: tCO2/MWhth | P35: ÜNB (2019)
C36: GuD | D36: 1.5 | E36: EUR/Mwhel | F36: R2B (2019) | H36: GuD | I36: 13 | J36: % | K36: ENTSO-E (2020) | M36: Erdgas | N36: 0.201 | O36: tCO2/MWhth | P36: ÜNB (2019)
C37: Gasturbine | D37: 1 | E37: EUR/Mwhel | F37: R2B (2019) | H37: Gasturbine | I37: 13 | J37: % | K37: ENTSO-E (2020) | M37: Öl | N37: 0.28 | O37: tCO2/MWhth | P37: ÜNB (2019)
C38: Öl | D38: 1 | E38: EUR/Mwhel | F38: siehe Dokumentation | H38: Öl | I38: 15 | J38: % | K38: siehe Dokumentation | M38: Abfall | N38: 0 | O38: tCO2/MWhth | P38: siehe Dokumentation
C39: Abfall | D39: 1 | E39: EUR/Mwhel | F39: siehe Dokumentation | H39: Abfall | I39: 15 | J39: % | K39: siehe Dokumentation | M39: Sonstige | N39: 0.214 | O39: tCO2/MWhth | P39: ÜNB (2019)
C40: Sonstige | D40: 1 | E40: EUR/Mwhel | F40: siehe Dokumentation | H40: Sonstige | I40: 15 | J40: % | K40: siehe Dokumentation

Sheet Backend I (hidden)
A1: Index | B1: Kraftwerktyp | C1: Leistung | D1: kumulierte Leistung | E1: Grenzkosten
A2: BNA0084 | B2: Abfall | C2: 30.6 | D2: 30.6 | E2: 1
A3: BNA0088b | B3: Abfall | C3: 29.75 | D3: 60.35 | E3: 1
A4: BNA0097 | B4: Abfall | C4: 28.9 | D4: 89.25 | E4: 1
A5: BNA0117a | B5: Abfall | C5: 10.2 | D5: 99.45 | E5: 1
A6: BNA0139 | B6: Abfall | C6: 28.05 | D6: 127.5 | E6: 1
A7: BNA0223b | B7: Abfall | C7: 45.645 | D7: 173.145 | E7: 1
A8: BNA0237 | B8: Abfall | C8: 19.975 | D8: 193.12 | E8: 1
A9: BNA0287a | B9: Abfall | C9: 22.1 | D9: 215.22 | E9: 1
A10: BNA0287b | B10: Abfall | C10: 39.525 | D10: 254.745 | E10: 1
A11: BNA0380 | B11: Abfall | C11: 19.805 | D11: 274.55 | E11: 1
A12: BNA0398 | B12: Abfall | C12: 20.4 | D12: 294.95 | E12: 1
A13: BNA0407 | B13: Abfall | C13: 11.22 | D13: 306.17 | E13: 1
A14: BNA0417 | B14: Abfall | C14: 19.125 | D14: 325.295 | E14: 1
A15: BNA0438 | B15: Abfall | C15: 31.875 | D15: 357.17 | E15: 1
A16: BNA0519 | B16: Abfall | C16: 32.3 | D16: 389.47 | E16: 1
A17: BNA0590 | B17: Abfall | C17: 13.8125 | D17: 403.2825 | E17: 1
A18: BNA0591 | B18: Abfall | C18: 13.8125 | D18: 417.095 | E18: 1
A19: BNA0599 | B19: Abfall | C19: 9.86 | D19: 426.955 | E19: 1
A20: BNA0622 | B20: Abfall | C20: 24.82 | D20: 451.775 | E20: 1
A21: BNA0623 | B21: Abfall | C21: 24.82 | D21: 476.595 | E21: 1
A22: BNA0640 | B22: Abfall | C22: 7.3525 | D22: 483.9475 | E22: 1
A23: BNA0641a | B23: Abfall | C23: 18.785 | D23: 502.7325 | E23: 1
A24: BNA0641b | B24: Abfall | C24: 4.5645 | D24: 507.297 | E24: 1
A25: BNA0641c | B25: Abfall | C25: 3.298 | D25: 510.595 | E25: 1
A26: BNA0693 | B26: Abfall | C26: 45.56 | D26: 556.155 | E26: 1
A27: BNA0746 | B27: Abfall | C27: 15.3 | D27: 571.455 | E27: 1
A28: BNA0750 | B28: Abfall | C28: 34.34 | D28: 605.795 | E28: 1
A29: BNA0751 | B29: Abfall | C29: 17.935 | D29: 623.73 | E29: 1
A30: BNA0845 | B30: Abfall | C30: 7.65 | D30: 631.38 | E30: 1
A31: BNA0855 | B31: Abfall | C31: 25.5 | D31: 656.88 | E31: 1
A32: BNA0895 | B32: Abfall | C32: 20.74 | D32: 677.62 | E32: 1
A33: BNA0939a | B33: Abfall | C33: 16.575 | D33: 694.195 | E33: 1
A34: BNA0969a | B34: Abfall | C34: 15.3 | D34: 709.495 | E34: 1
A35: BNA0969c | B35: Abfall | C35: 18.7 | D35: 728.195 | E35: 1
A36: BNA1020 | B36: Abfall | C36: 22.95 | D36: 751.145 | E36: 1
A37: BNA1108 | B37: Abfall | C37: 8.415 | D37: 759.56 | E37: 1
A38: BNA1110 | B38: Abfall | C38: 8.075 | D38: 767.635 | E38: 1
A39: BNA1114 | B39: Abfall | C39: 37.4 | D39: 805.035 | E39: 1
A40: BNA1116 | B40: Abfall | C40: 11.9 | D40: 816.935 | E40: 1
A41: BNA1119 | B41: Abfall | C41: 10.625 | D41: 827.56 | E41: 1
A42: BNA1139 | B42: Abfall | C42: 11.56 | D42: 839.12 | E42: 1
A43: BNA1144 | B43: Abfall | C43: 9.35 | D43: 848.47 | E43: 1
A44: BNA1148 | B44: Abfall | C44: 12.393 | D44: 860.863 | E44: 1
A45: BNA1154 | B45: Abfall | C45: 13.175 | D45: 874.038 | E45: 1
A46: BNA1155 | B46: Abfall | C46: 9.945 | D46: 883.983 | E46: 1
A47: BNA1161 | B47: Abfall | C47: 21.675 | D47: 905.658 | E47: 1
A48: BNA1167 | B48: Abfall | C48: 13.6 | D48: 919.258 | E48: 1
A49: BNA1168 | B49: Abfall | C49: 12.495 | D49: 931.753 | E49: 1
A50: BNA1184 | B50: Abfall | C50: 38.335 | D50: 970.088 | E50: 1
A51: BNA1186b | B51: Abfall | C51: 11.73 | D51: 981.818 | E51: 1
A52: BNA1186c | B52: Abfall | C52: 1.275 | D52: 983.093 | E52: 1
A53: BNA1186d | B53: Abfall | C53: 2.38 | D53: 985.473 | E53: 1
A54: BNA1186e | B54: Abfall | C54: 1.275 | D54: 986.748 | E54: 1
A55: BNA1190 | B55: Abfall | C55: 13.345 | D55: 1000.093 | E55: 1
A56: BNA1197 | B56: Abfall | C56: 23.8 | D56: 1023.893 | E56: 1
A57: BNA1198 | B57: Abfall | C57: 19.55 | D57: 1043.443 | E57: 1
A58: BNA1199 | B58: Abfall | C58: 13.26 | D58: 1056.703 | E58: 1
A59: BNA1222 | B59: Abfall | C59: 12.325 | D59: 1069.028 | E59: 1
A60: BNA1229 | B60: Abfall | C60: 12.75 | D60: 1081.778 | E60: 1
A61: BNA1232 | B61: Abfall | C61: 2.125 | D61: 1083.903 | E61: 1
A62: BNA1233 | B62: Abfall | C62: 12.325 | D62: 1096.228 | E62: 1
A63: BNA1243 | B63: Abfall | C63: 14.45 | D63: 1110.678 | E63: 1
A64: BNA1244 | B64: Abfall | C64: 13.6 | D64: 1124.278 | E64: 1
A65: BNA1254 | B65: Abfall | C65: 45.9 | D65: 1170.178 | E65: 1
A66: BNA1255 | B66: Abfall | C66: 24.565 | D66: 1194.743 | E66: 1
A67: BNA1261 | B67: Abfall | C67: 13.94 | D67: 1208.683 | E67: 1
A68: BNA1262 | B68: Abfall | C68: 20.4 | D68: 1229.083 | E68: 1
A69: BNA1286 | B69: Abfall | C69: 10.285 | D69: 1239.368 | E69: 1
A70: BNA1289 | B70: Abfall | C70: 10.7185 | D70: 1250.0865 | E70: 1
A71: BNA1291 | B71: Abfall | C71: 10.625 | D71: 1260.7115 | E71: 1
A72: BNA1295 | B72: Abfall | C72: 8.5 | D72: 1269.2115 | E72: 1
A73: BNA1316 | B73: Abfall | C73: 25.5 | D73: 1294.7115 | E73: 1
A74: BNA1330 | B74: Abfall | C74: 14.45 | D74: 1309.1615 | E74: 1
A75: BNA1447a | B75: Abfall | C75: 10.115 | D75: 1319.2765 | E75: 1
A76: BNA1447b | B76: Abfall | C76: 5.865 | D76: 1325.1415 | E76: 1
A77: BNA1448 | B77: Abfall | C77: 9.86 | D77: 1335.0015 | E77: 1
A78: BNA1449a | B78: Abfall | C78: 7.395 | D78: 1342.3965 | E78: 1
A79: BNA1449b | B79: Abfall | C79: 10.2 | D79: 1352.5965 | E79: 1
A80: BNA1465a | B80: Abfall | C80: 23.8 | D80: 1376.3965 | E80: 1
A81: BNA1490 | B81: Abfall | C81: 28.39 | D81: 1404.7865 | E81: 1
A82: BNA1510 | B82: Abfall | C82: 15.895 | D82: 1420.6815 | E82: 1
A83: BNA1520 | B83: Abfall | C83: 8.925 | D83: 1429.6065 | E83: 1
A84: BNA1864 | B84: Abfall | C84: 8.075 | D84: 1437.6815 | E84: 1
A85: BNA1865 | B85: Abfall | C85: 8.33 | D85: 1446.0115 | E85: 1
A86: BNA1867 | B86: Abfall | C86: 15.3 | D86: 1461.3115 | E86: 1
B87: Abfall | C87: 120.224425 | D87: 1581.535925 | E87: 1
A88: BNA0157 | B88: Kernenergie | C88: 1311.3 | D88: 2892.835925 | E88: 17.86666667
A89: BNA0251 | B89: Kernenergie | C89: 1264.8 | D89: 4157.635925 | E89: 17.86666667
A90: BNA0263 | B90: Kernenergie | C90: 1311.3 | D90: 5468.935925 | E90: 17.86666667
A91: BNA0382 | B91: Kernenergie | C91: 1197.84 | D91: 6666.775925 | E91: 17.86666667
A92: BNA0607 | B92: Kernenergie | C92: 1242.48 | D92: 7909.255925 | E92: 17.86666667
A93: BNA0686 | B93: Kernenergie | C93: 1218.3 | D93: 9127.555925 | E93: 17.86666667
A94: BNA0802 | B94: Kernenergie | C94: 1303.86 | D94: 10431.41593 | E94: 17.86666667
A95: BNA1185 | B95: Braunkohle | C95: 17.864 | D95: 10449.27993 | E95: 32.01806759
A96: BNA1164 | B96: Braunkohle | C96: 20.4336 | D96: 10469.71353 | E96: 32.1868138
A97: BNA1401a | B97: Braunkohle | C97: 932.8 | D97: 11402.51353 | E97: 32.35744895
A98: BNA1401b | B98: Braunkohle | C98: 932.8 | D98: 12335.31352 | E98: 32.35744895
A99: BNA1404 | B99: Braunkohle | C99: 563.2 | D99: 12898.51353 | E99: 32.35744895
A100: BNA1817 | B100: GuD | C100: 517.65 | D100: 13416.16352 | E100: 32.65701132
A101: BNA1819 | B101: GuD | C101: 67.86 | D101: 13484.02353 | E101: 32.65701132
A102: BNA1820 | B102: GuD | C102: 386.715 | D102: 13870.73853 | E102: 32.65701132
A103: BNA0179 | B103: Braunkohle | C103: 79.904 | D103: 13950.64253 | E103: 32.70451441
A104: BNA0543 | B104: Braunkohle | C104: 66.264 | D104: 14016.90653 | E104: 32.70451441
A105: BNA0707 | B105: Braunkohle | C105: 570.24 | D105: 14587.14653 | E105: 32.88101069
A106: BNA0918b | B106: GuD | C106: 136.59 | D106: 14723.73653 | E106: 32.887804
A107: BNA0922 | B107: GuD | C107: 87 | D107: 14810.73653 | E107: 32.887804
A108: BNA0708 | B108: Braunkohle | C108: 552.64 | D108: 15363.37652 | E108: 33.05952793
A109: BNA0256b | B109: GuD | C109: 28.362 | D109: 15391.73852 | E109: 33.12204134
A110: BNA0261c | B110: GuD | C110: 5.829 | D110: 15397.56752 | E110: 33.12204134
A111: BNA0392b | B111: GuD | C111: 48.8418 | D111: 15446.40932 | E111: 33.35980105
A112: BNA0418 | B112: GuD | C112: 200.1 | D112: 15646.50932 | E112: 33.35980105
A113: BNA0548b | B113: GuD | C113: 374.1 | D113: 16020.60932 | E113: 33.35980105
A114: BNA1337e | B114: GuD | C114: 40.89 | D114: 16061.49932 | E114: 33.35980105
A115: BNA1523b | B115: GuD | C115: 23.838 | D115: 16085.33732 | E115: 33.35980105
A116: BNA0059b | B116: GuD | C116: 67.86 | D116: 16153.19732 | E116: 33.84621023
A117: BNA0136 | B117: GuD | C117: 64.38 | D117: 16217.57732 | E117: 34.09502723
A118: BNA0588 | B118: GuD | C118: 145.29 | D118: 16362.86732 | E118: 34.09502723
A119: BNA0598b | B119: GuD | C119: 17.4 | D119: 16380.26732 | E119: 34.09502723
A120: BNA0606 | B120: GuD | C120: 771.69 | D120: 17151.95732 | E120: 34.09502723
A121: BNA0805 | B121: GuD | C121: 103.095 | D121: 17255.05233 | E121: 34.09502723
A122: BNA0709 | B122: Braunkohle | C122: 830.72 | D122: 18085.77233 | E122: 34.17508426
A123: BNA0400 | B123: GuD | C123: 110.49 | D123: 18196.26233 | E123: 34.34770186
A124: BNA0444 | B124: GuD | C124: 60.03 | D124: 18256.29233 | E124: 34.34770186
A125: BNA1087 | B125: GuD | C125: 25.665 | D125: 18281.95733 | E125: 34.34770186
A126: BNA0115 | B126: Braunkohle | C126: 770 | D126: 19051.95733 | E126: 34.56478527
A127: BNA0124 | B127: Braunkohle | C127: 754.16 | D127: 19806.11733 | E127: 34.56478527
A128: BNA1461 | B128: Braunkohle | C128: 15.4 | D128: 19821.51733 | E128: 34.56478527
A129: BNA0410 | B129: GuD | C129: 354.09 | D129: 20175.60733 | E129: 34.60432453
A130: BNA0411 | B130: GuD | C130: 356.7 | D130: 20532.30733 | E130: 34.60432453
A131: BNA0545 | B131: GuD | C131: 359.31 | D131: 20891.61733 | E131: 34.60432453
A132: BNA0116 | B132: Braunkohle | C132: 770 | D132: 21661.61733 | E132: 34.76316426
A133: BNA0183 | B133: Braunkohle | C133: 65.12 | D133: 21726.73733 | E133: 34.76316426
A134: BNA0442 | B134: GuD | C134: 362.79 | D134: 22089.52733 | E134: 34.8649885
A135: BNA0915 | B135: Braunkohle | C135: 660 | D135: 22749.52733 | E135: 34.9639527
A136: BNA0548a | B136: GuD | C136: 696 | D136: 23445.52733 | E136: 35.12979
A137: BNA0914 | B137: Braunkohle | C137: 660 | D137: 24105.52733 | E137: 35.16719478
A138: BNA0785 | B138: Braunkohle | C138: 409.2 | D138: 24514.72733 | E138: 35.37293573
A139: BNA0786 | B139: Braunkohle | C139: 409.2 | D139: 24923.92733 | E139: 35.37293573
A140: BNA0787 | B140: Braunkohle | C140: 409.2 | D140: 25333.12733 | E140: 35.37293573
A141: BNA0788 | B141: Braunkohle | C141: 409.2 | D141: 25742.32733 | E141: 35.37293573
A142: BNA0878 | B142: Braunkohle | C142: 396 | D142: 26138.32733 | E142: 35.37293573
A143: BNA0879 | B143: Braunkohle | C143: 396 | D143: 26534.32733 | E143: 35.37293573
A144: BNA0100 | B144: GuD | C144: 32.5815 | D144: 26566.90883 | E144: 35.39882832
A145: BNA0214 | B145: GuD | C145: 203.58 | D145: 26770.48883 | E145: 35.39882832
A146: BNA0261a | B146: GuD | C146: 18.792 | D146: 26789.28083 | E146: 35.39882832
A147: BNA0614b | B147: GuD | C147: 432.825 | D147: 27222.10583 | E147: 35.39882832
A148: BNA0685 | B148: GuD | C148: 90.6018 | D148: 27312.70763 | E148: 35.39882832
A149: BNA0742 | B149: GuD | C149: 65.25 | D149: 27377.95763 | E149: 35.39882832
A150: BNA0743 | B150: GuD | C150: 65.25 | D150: 27443.20763 | E150: 35.39882832
A151: BNA0861a | B151: GuD | C151: 65.25 | D151: 27508.45763 | E151: 35.39882832
A152: BNA1082 | B152: GuD | C152: 76.57653 | D152: 27585.03416 | E152: 35.39882832
A153: BNA1088 | B153: GuD | C153: 38.715 | D153: 27623.74916 | E153: 35.39882832
A154: BNA1293a | B154: Braunkohle | C154: 8.8 | D154: 27632.54916 | E154: 35.58122193
A155: BNA1293b | B155: Braunkohle | C155: 8.8 | D155: 27641.34916 | E155: 35.58122193
A156: BNA0546 | B156: GuD | C156: 93.96 | D156: 27735.30916 | E156: 35.67220597
A157: BNA0684a | B157: GuD | C157: 108.663 | D157: 27843.97216 | E157: 35.67220597
A158: BNA0684b | B158: GuD | C158: 107.793 | D158: 27951.76516 | E158: 35.67220597
A159: BNA0684c | B159: GuD | C159: 111.012 | D159: 28062.77716 | E159: 35.67220597
A160: BNA0123 | B160: Braunkohle | C160: 409.2 | D160: 28471.97716 | E160: 35.7921009
A161: BNA1002 | B161: Braunkohle | C161: 27.28 | D161: 28499.25716 | E161: 35.7921009
A162: BNA0499 | B162: GuD | C162: 74.82 | D162: 28574.07716 | E162: 35.95002878
A163: BNA0658 | B163: GuD | C163: 53.1831 | D163: 28627.26026 | E163: 35.95002878
A164: BNA1196b | B164: GuD | C164: 10.4052 | D164: 28637.66546 | E164: 35.95002878
A165: BNA0122 | B165: Braunkohle | C165: 409.2 | D165: 29046.86546 | E165: 36.00562137
A166: BNA1400a | B166: Braunkohle | C166: 20.504 | D166: 29067.36946 | E166: 36.00562137
A167: BNA0270 | B167: Steinkohle | C167: 24.49 | D167: 29091.85946 | E167: 36.12119801
A168: BNA1334 | B168: GuD | C168: 12.876 | D168: 29104.73546 | E168: 36.23240607
A169: BNA1141 | B169: Braunkohle | C169: 12.76 | D169: 29117.49546 | E169: 36.44078781
A170: BNA0172a | B170: GuD | C170: 104.4 | D170: 29221.89546 | E170: 36.51945074
A171: BNA1183 | B171: GuD | C171: 13.746 | D171: 29235.64146 | E171: 36.51945074
B172: Braunkohle | C172: 19.56592 | D172: 29255.20738 | E172: 36.66253752
A173: BNA0105 | B173: GuD | C173: 92.22 | D173: 29347.42738 | E173: 36.8112795
A174: BNA0199 | B174: GuD | C174: 509.82 | D174: 29857.24738 | E174: 36.8112795
A175: BNA0220 | B175: GuD | C175: 87 | D175: 29944.24738 | E175: 36.8112795
A176: BNA0397 | B176: GuD | C176: 195.75 | D176: 30139.99738 | E176: 36.8112795
A177: BNA0626 | B177: GuD | C177: 377.754 | D177: 30517.75138 | E177: 36.8112795
A178: BNA1450 | B178: GuD | C178: 11.31 | D178: 30529.06138 | E178: 36.8112795
A179: BNA0523 | B179: Braunkohle | C179: 29.48 | D179: 30558.54138 | E179: 36.88713626
A180: BNA0271 | B180: Steinkohle | C180: 26.07 | D180: 30584.61138 | E180: 37.07957961
A181: BNA0498 | B181: Steinkohle | C181: 52.14 | D181: 30636.75138 | E181: 37.07957961
A182: BNA0256a | B182: GuD | C182: 66.555 | D182: 30703.30638 | E182: 37.10801294
A183: BNA0857 | B183: GuD | C183: 97.527 | D183: 30800.83338 | E183: 37.10801294
A184: BNA0177 | B184: Braunkohle | C184: 49.984 | D184: 30850.81738 | E184: 37.1146393
A185: BNA0292 | B185: Braunkohle | C185: 154.88 | D185: 31005.69738 | E185: 37.1146393
A186: BNA0592 | B186: GuD | C186: 33.93 | D186: 31039.62738 | E186: 37.40977576
A187: BNA0615 | B187: GuD | C187: 356.7 | D187: 31396.32738 | E187: 37.71669692
A188: BNA0688 | B188: GuD | C188: 65.25 | D188: 31461.57738 | E188: 37.71669692
A189: BNA0073 | B189: GuD | C189: 386.28 | D189: 31847.85738 | E189: 38.02890983
A190: BNA0504 | B190: GuD | C190: 158.34 | D190: 32006.19738 | E190: 38.02890983
A191: BNA0848 | B191: GuD | C191: 93.96 | D191: 32100.15738 | E191: 38.02890983
A192: BNA1279 | B192: GuD | C192: 45.153 | D192: 32145.31038 | E192: 38.02890983
A193: BNA1511a | B193: Braunkohle | C193: 8.184 | D193: 32153.49438 | E193: 38.29775643
A194: BNA0207 | B194: GuD | C194: 226.2 | D194: 32379.69438 | E194: 38.34655252
A195: BNA0755b | B195: GuD | C195: 52.2 | D195: 32431.89438 | E195: 38.34655252
A196: BNA0272 | B196: Steinkohle | C196: 26.07 | D196: 32457.96438 | E196: 38.44261121
A197: BNA0088a | B197: GuD | C197: 122.235 | D197: 32580.19938 | E197: 38.6697679
A198: BNA0130 | B198: GuD | C198: 139.2 | D198: 32719.39938 | E198: 38.6697679
A199: BNA0593 | B199: GuD | C199: 30.45 | D199: 32749.84938 | E199: 38.6697679
A200: BNA0594 | B200: GuD | C200: 30.45 | D200: 32780.29938 | E200: 38.6697679
... 334 more rows

Sheet Backend II (hidden)
A1: Power | B1: Erneuerbare Energien | C1: Abfall | D1: Kernenergie | E1: Braunkohle | F1: Steinkohle | G1: GuD | H1: Gasturbine | I1: Öl | J1: Sonstige
A2: 0 | B2: 0 | C2: 1 | D2: 0 | E2: 0 | F2: 0 | G2: 0 | H2: 0 | I2: 0 | J2: 0
A3: 1581.535925 | B3: 0 | C3: 1 | D3: 0 | E3: 0 | F3: 0 | G3: 0 | H3: 0 | I3: 0 | J3: 0
A4: 1581.535925 | B4: 0 | C4: 0 | D4: 17.8667 | E4: 0 | F4: 0 | G4: 0 | H4: 0 | I4: 0 | J4: 0
A5: 10431.41593 | B5: 0 | C5: 0 | D5: 17.8667 | E5: 0 | F5: 0 | G5: 0 | H5: 0 | I5: 0 | J5: 0
A6: 10431.41593 | B6: 0 | C6: 0 | D6: 0 | E6: 32.0181 | F6: 0 | G6: 0 | H6: 0 | I6: 0 | J6: 0
A7: 10449.27993 | B7: 0 | C7: 0 | D7: 0 | E7: 32.0181 | F7: 0 | G7: 0 | H7: 0 | I7: 0 | J7: 0
A8: 10449.27993 | B8: 0 | C8: 0 | D8: 0 | E8: 32.1868 | F8: 0 | G8: 0 | H8: 0 | I8: 0 | J8: 0
A9: 10469.71353 | B9: 0 | C9: 0 | D9: 0 | E9: 32.1868 | F9: 0 | G9: 0 | H9: 0 | I9: 0 | J9: 0
A10: 10469.71353 | B10: 0 | C10: 0 | D10: 0 | E10: 32.3574 | F10: 0 | G10: 0 | H10: 0 | I10: 0 | J10: 0
A11: 12898.51353 | B11: 0 | C11: 0 | D11: 0 | E11: 32.3574 | F11: 0 | G11: 0 | H11: 0 | I11: 0 | J11: 0
A12: 12898.51353 | B12: 0 | C12: 0 | D12: 0 | E12: 0 | F12: 0 | G12: 32.657 | H12: 0 | I12: 0 | J12: 0
A13: 13870.73853 | B13: 0 | C13: 0 | D13: 0 | E13: 0 | F13: 0 | G13: 32.657 | H13: 0 | I13: 0 | J13: 0
A14: 13870.73853 | B14: 0 | C14: 0 | D14: 0 | E14: 32.7045 | F14: 0 | G14: 0 | H14: 0 | I14: 0 | J14: 0
A15: 14016.90653 | B15: 0 | C15: 0 | D15: 0 | E15: 32.7045 | F15: 0 | G15: 0 | H15: 0 | I15: 0 | J15: 0
A16: 14016.90653 | B16: 0 | C16: 0 | D16: 0 | E16: 32.881 | F16: 0 | G16: 0 | H16: 0 | I16: 0 | J16: 0
A17: 14587.14653 | B17: 0 | C17: 0 | D17: 0 | E17: 32.881 | F17: 0 | G17: 0 | H17: 0 | I17: 0 | J17: 0
A18: 14587.14653 | B18: 0 | C18: 0 | D18: 0 | E18: 0 | F18: 0 | G18: 32.8878 | H18: 0 | I18: 0 | J18: 0
A19: 14810.73653 | B19: 0 | C19: 0 | D19: 0 | E19: 0 | F19: 0 | G19: 32.8878 | H19: 0 | I19: 0 | J19: 0
A20: 14810.73653 | B20: 0 | C20: 0 | D20: 0 | E20: 33.0595 | F20: 0 | G20: 0 | H20: 0 | I20: 0 | J20: 0
A21: 15363.37652 | B21: 0 | C21: 0 | D21: 0 | E21: 33.0595 | F21: 0 | G21: 0 | H21: 0 | I21: 0 | J21: 0
A22: 15363.37652 | B22: 0 | C22: 0 | D22: 0 | E22: 0 | F22: 0 | G22: 33.122 | H22: 0 | I22: 0 | J22: 0
A23: 15397.56752 | B23: 0 | C23: 0 | D23: 0 | E23: 0 | F23: 0 | G23: 33.122 | H23: 0 | I23: 0 | J23: 0
A24: 15397.56752 | B24: 0 | C24: 0 | D24: 0 | E24: 0 | F24: 0 | G24: 33.3598 | H24: 0 | I24: 0 | J24: 0
A25: 16085.33732 | B25: 0 | C25: 0 | D25: 0 | E25: 0 | F25: 0 | G25: 33.3598 | H25: 0 | I25: 0 | J25: 0
A26: 16085.33732 | B26: 0 | C26: 0 | D26: 0 | E26: 0 | F26: 0 | G26: 33.8462 | H26: 0 | I26: 0 | J26: 0
A27: 16153.19732 | B27: 0 | C27: 0 | D27: 0 | E27: 0 | F27: 0 | G27: 33.8462 | H27: 0 | I27: 0 | J27: 0
A28: 16153.19732 | B28: 0 | C28: 0 | D28: 0 | E28: 0 | F28: 0 | G28: 34.095 | H28: 0 | I28: 0 | J28: 0
A29: 17255.05233 | B29: 0 | C29: 0 | D29: 0 | E29: 0 | F29: 0 | G29: 34.095 | H29: 0 | I29: 0 | J29: 0
A30: 17255.05233 | B30: 0 | C30: 0 | D30: 0 | E30: 34.1751 | F30: 0 | G30: 0 | H30: 0 | I30: 0 | J30: 0
A31: 18085.77233 | B31: 0 | C31: 0 | D31: 0 | E31: 34.1751 | F31: 0 | G31: 0 | H31: 0 | I31: 0 | J31: 0
A32: 18085.77233 | B32: 0 | C32: 0 | D32: 0 | E32: 0 | F32: 0 | G32: 34.3477 | H32: 0 | I32: 0 | J32: 0
A33: 18281.95733 | B33: 0 | C33: 0 | D33: 0 | E33: 0 | F33: 0 | G33: 34.3477 | H33: 0 | I33: 0 | J33: 0
A34: 18281.95733 | B34: 0 | C34: 0 | D34: 0 | E34: 34.5648 | F34: 0 | G34: 0 | H34: 0 | I34: 0 | J34: 0
A35: 19821.51733 | B35: 0 | C35: 0 | D35: 0 | E35: 34.5648 | F35: 0 | G35: 0 | H35: 0 | I35: 0 | J35: 0
A36: 19821.51733 | B36: 0 | C36: 0 | D36: 0 | E36: 0 | F36: 0 | G36: 34.6043 | H36: 0 | I36: 0 | J36: 0
A37: 20891.61733 | B37: 0 | C37: 0 | D37: 0 | E37: 0 | F37: 0 | G37: 34.6043 | H37: 0 | I37: 0 | J37: 0
A38: 20891.61733 | B38: 0 | C38: 0 | D38: 0 | E38: 34.7632 | F38: 0 | G38: 0 | H38: 0 | I38: 0 | J38: 0
A39: 21726.73733 | B39: 0 | C39: 0 | D39: 0 | E39: 34.7632 | F39: 0 | G39: 0 | H39: 0 | I39: 0 | J39: 0
A40: 21726.73733 | B40: 0 | C40: 0 | D40: 0 | E40: 0 | F40: 0 | G40: 34.865 | H40: 0 | I40: 0 | J40: 0
A41: 22089.52733 | B41: 0 | C41: 0 | D41: 0 | E41: 0 | F41: 0 | G41: 34.865 | H41: 0 | I41: 0 | J41: 0
A42: 22089.52733 | B42: 0 | C42: 0 | D42: 0 | E42: 34.964 | F42: 0 | G42: 0 | H42: 0 | I42: 0 | J42: 0
A43: 22749.52733 | B43: 0 | C43: 0 | D43: 0 | E43: 34.964 | F43: 0 | G43: 0 | H43: 0 | I43: 0 | J43: 0
A44: 22749.52733 | B44: 0 | C44: 0 | D44: 0 | E44: 0 | F44: 0 | G44: 35.1298 | H44: 0 | I44: 0 | J44: 0
A45: 23445.52733 | B45: 0 | C45: 0 | D45: 0 | E45: 0 | F45: 0 | G45: 35.1298 | H45: 0 | I45: 0 | J45: 0
A46: 23445.52733 | B46: 0 | C46: 0 | D46: 0 | E46: 35.1672 | F46: 0 | G46: 0 | H46: 0 | I46: 0 | J46: 0
A47: 24105.52733 | B47: 0 | C47: 0 | D47: 0 | E47: 35.1672 | F47: 0 | G47: 0 | H47: 0 | I47: 0 | J47: 0
A48: 24105.52733 | B48: 0 | C48: 0 | D48: 0 | E48: 35.3729 | F48: 0 | G48: 0 | H48: 0 | I48: 0 | J48: 0
A49: 26534.32733 | B49: 0 | C49: 0 | D49: 0 | E49: 35.3729 | F49: 0 | G49: 0 | H49: 0 | I49: 0 | J49: 0
A50: 26534.32733 | B50: 0 | C50: 0 | D50: 0 | E50: 0 | F50: 0 | G50: 35.3988 | H50: 0 | I50: 0 | J50: 0
A51: 27623.74916 | B51: 0 | C51: 0 | D51: 0 | E51: 0 | F51: 0 | G51: 35.3988 | H51: 0 | I51: 0 | J51: 0
A52: 27623.74916 | B52: 0 | C52: 0 | D52: 0 | E52: 35.5812 | F52: 0 | G52: 0 | H52: 0 | I52: 0 | J52: 0
A53: 27641.34916 | B53: 0 | C53: 0 | D53: 0 | E53: 35.5812 | F53: 0 | G53: 0 | H53: 0 | I53: 0 | J53: 0
A54: 27641.34916 | B54: 0 | C54: 0 | D54: 0 | E54: 0 | F54: 0 | G54: 35.6722 | H54: 0 | I54: 0 | J54: 0
A55: 28062.77716 | B55: 0 | C55: 0 | D55: 0 | E55: 0 | F55: 0 | G55: 35.6722 | H55: 0 | I55: 0 | J55: 0
A56: 28062.77716 | B56: 0 | C56: 0 | D56: 0 | E56: 35.7921 | F56: 0 | G56: 0 | H56: 0 | I56: 0 | J56: 0
A57: 28499.25716 | B57: 0 | C57: 0 | D57: 0 | E57: 35.7921 | F57: 0 | G57: 0 | H57: 0 | I57: 0 | J57: 0
A58: 28499.25716 | B58: 0 | C58: 0 | D58: 0 | E58: 0 | F58: 0 | G58: 35.95 | H58: 0 | I58: 0 | J58: 0
A59: 28637.66546 | B59: 0 | C59: 0 | D59: 0 | E59: 0 | F59: 0 | G59: 35.95 | H59: 0 | I59: 0 | J59: 0
A60: 28637.66546 | B60: 0 | C60: 0 | D60: 0 | E60: 36.0056 | F60: 0 | G60: 0 | H60: 0 | I60: 0 | J60: 0
A61: 29067.36946 | B61: 0 | C61: 0 | D61: 0 | E61: 36.0056 | F61: 0 | G61: 0 | H61: 0 | I61: 0 | J61: 0
A62: 29067.36946 | B62: 0 | C62: 0 | D62: 0 | E62: 0 | F62: 36.1212 | G62: 0 | H62: 0 | I62: 0 | J62: 0
A63: 29091.85946 | B63: 0 | C63: 0 | D63: 0 | E63: 0 | F63: 36.1212 | G63: 0 | H63: 0 | I63: 0 | J63: 0
A64: 29091.85946 | B64: 0 | C64: 0 | D64: 0 | E64: 0 | F64: 0 | G64: 36.2324 | H64: 0 | I64: 0 | J64: 0
A65: 29104.73546 | B65: 0 | C65: 0 | D65: 0 | E65: 0 | F65: 0 | G65: 36.2324 | H65: 0 | I65: 0 | J65: 0
A66: 29104.73546 | B66: 0 | C66: 0 | D66: 0 | E66: 36.4408 | F66: 0 | G66: 0 | H66: 0 | I66: 0 | J66: 0
A67: 29117.49546 | B67: 0 | C67: 0 | D67: 0 | E67: 36.4408 | F67: 0 | G67: 0 | H67: 0 | I67: 0 | J67: 0
A68: 29117.49546 | B68: 0 | C68: 0 | D68: 0 | E68: 0 | F68: 0 | G68: 36.5195 | H68: 0 | I68: 0 | J68: 0
A69: 29235.64146 | B69: 0 | C69: 0 | D69: 0 | E69: 0 | F69: 0 | G69: 36.5195 | H69: 0 | I69: 0 | J69: 0
A70: 29235.64146 | B70: 0 | C70: 0 | D70: 0 | E70: 36.6625 | F70: 0 | G70: 0 | H70: 0 | I70: 0 | J70: 0
A71: 29255.20738 | B71: 0 | C71: 0 | D71: 0 | E71: 36.6625 | F71: 0 | G71: 0 | H71: 0 | I71: 0 | J71: 0
A72: 29255.20738 | B72: 0 | C72: 0 | D72: 0 | E72: 0 | F72: 0 | G72: 36.8113 | H72: 0 | I72: 0 | J72: 0
A73: 30529.06138 | B73: 0 | C73: 0 | D73: 0 | E73: 0 | F73: 0 | G73: 36.8113 | H73: 0 | I73: 0 | J73: 0
A74: 30529.06138 | B74: 0 | C74: 0 | D74: 0 | E74: 36.8871 | F74: 0 | G74: 0 | H74: 0 | I74: 0 | J74: 0
A75: 30558.54138 | B75: 0 | C75: 0 | D75: 0 | E75: 36.8871 | F75: 0 | G75: 0 | H75: 0 | I75: 0 | J75: 0
A76: 30558.54138 | B76: 0 | C76: 0 | D76: 0 | E76: 0 | F76: 37.0796 | G76: 0 | H76: 0 | I76: 0 | J76: 0
A77: 30636.75138 | B77: 0 | C77: 0 | D77: 0 | E77: 0 | F77: 37.0796 | G77: 0 | H77: 0 | I77: 0 | J77: 0
A78: 30636.75138 | B78: 0 | C78: 0 | D78: 0 | E78: 0 | F78: 0 | G78: 37.108 | H78: 0 | I78: 0 | J78: 0
A79: 30800.83338 | B79: 0 | C79: 0 | D79: 0 | E79: 0 | F79: 0 | G79: 37.108 | H79: 0 | I79: 0 | J79: 0
A80: 30800.83338 | B80: 0 | C80: 0 | D80: 0 | E80: 37.1146 | F80: 0 | G80: 0 | H80: 0 | I80: 0 | J80: 0
A81: 31005.69738 | B81: 0 | C81: 0 | D81: 0 | E81: 37.1146 | F81: 0 | G81: 0 | H81: 0 | I81: 0 | J81: 0
A82: 31005.69738 | B82: 0 | C82: 0 | D82: 0 | E82: 0 | F82: 0 | G82: 37.4098 | H82: 0 | I82: 0 | J82: 0
A83: 31039.62738 | B83: 0 | C83: 0 | D83: 0 | E83: 0 | F83: 0 | G83: 37.4098 | H83: 0 | I83: 0 | J83: 0
A84: 31039.62738 | B84: 0 | C84: 0 | D84: 0 | E84: 0 | F84: 0 | G84: 37.7167 | H84: 0 | I84: 0 | J84: 0
A85: 31461.57738 | B85: 0 | C85: 0 | D85: 0 | E85: 0 | F85: 0 | G85: 37.7167 | H85: 0 | I85: 0 | J85: 0
A86: 31461.57738 | B86: 0 | C86: 0 | D86: 0 | E86: 0 | F86: 0 | G86: 38.0289 | H86: 0 | I86: 0 | J86: 0
A87: 32145.31038 | B87: 0 | C87: 0 | D87: 0 | E87: 0 | F87: 0 | G87: 38.0289 | H87: 0 | I87: 0 | J87: 0
A88: 32145.31038 | B88: 0 | C88: 0 | D88: 0 | E88: 38.2978 | F88: 0 | G88: 0 | H88: 0 | I88: 0 | J88: 0
A89: 32153.49438 | B89: 0 | C89: 0 | D89: 0 | E89: 38.2978 | F89: 0 | G89: 0 | H89: 0 | I89: 0 | J89: 0
A90: 32153.49438 | B90: 0 | C90: 0 | D90: 0 | E90: 0 | F90: 0 | G90: 38.3466 | H90: 0 | I90: 0 | J90: 0
A91: 32431.89438 | B91: 0 | C91: 0 | D91: 0 | E91: 0 | F91: 0 | G91: 38.3466 | H91: 0 | I91: 0 | J91: 0
A92: 32431.89438 | B92: 0 | C92: 0 | D92: 0 | E92: 0 | F92: 38.4426 | G92: 0 | H92: 0 | I92: 0 | J92: 0
A93: 32457.96438 | B93: 0 | C93: 0 | D93: 0 | E93: 0 | F93: 38.4426 | G93: 0 | H93: 0 | I93: 0 | J93: 0
A94: 32457.96438 | B94: 0 | C94: 0 | D94: 0 | E94: 0 | F94: 0 | G94: 38.6698 | H94: 0 | I94: 0 | J94: 0
A95: 32918.62938 | B95: 0 | C95: 0 | D95: 0 | E95: 0 | F95: 0 | G95: 38.6698 | H95: 0 | I95: 0 | J95: 0
A96: 32918.62938 | B96: 0 | C96: 0 | D96: 0 | E96: 0 | F96: 38.7998 | G96: 0 | H96: 0 | I96: 0 | J96: 0
A97: 32952.83638 | B97: 0 | C97: 0 | D97: 0 | E97: 0 | F97: 38.7998 | G97: 0 | H97: 0 | I97: 0 | J97: 0
A98: 32952.83638 | B98: 0 | C98: 0 | D98: 0 | E98: 0 | F98: 0 | G98: 38.9987 | H98: 0 | I98: 0 | J98: 0
A99: 32985.99208 | B99: 0 | C99: 0 | D99: 0 | E99: 0 | F99: 0 | G99: 38.9987 | H99: 0 | I99: 0 | J99: 0
A100: 32985.99208 | B100: 0 | C100: 0 | D100: 0 | E100: 0 | F100: 39.1638 | G100: 0 | H100: 0 | I100: 0 | J100: 0
A101: 33040.02808 | B101: 0 | C101: 0 | D101: 0 | E101: 0 | F101: 39.1638 | G101: 0 | H101: 0 | I101: 0 | J101: 0
A102: 33040.02808 | B102: 0 | C102: 0 | D102: 0 | E102: 0 | F102: 39.2457 | G102: 0 | H102: 0 | I102: 0 | J102: 0
A103: 35547.48808 | B103: 0 | C103: 0 | D103: 0 | E103: 0 | F103: 39.2457 | G103: 0 | H103: 0 | I103: 0 | J103: 0
A104: 35547.48808 | B104: 0 | C104: 0 | D104: 0 | E104: 39.3027 | F104: 0 | G104: 0 | H104: 0 | I104: 0 | J104: 0
A105: 35587.08808 | B105: 0 | C105: 0 | D105: 0 | E105: 39.3027 | F105: 0 | G105: 0 | H105: 0 | I105: 0 | J105: 0
A106: 35587.08808 | B106: 0 | C106: 0 | D106: 0 | E106: 0 | F106: 0 | G106: 39.3335 | H106: 0 | I106: 0 | J106: 0
A107: 35597.00608 | B107: 0 | C107: 0 | D107: 0 | E107: 0 | F107: 0 | G107: 39.3335 | H107: 0 | I107: 0 | J107: 0
A108: 35597.00608 | B108: 0 | C108: 0 | D108: 0 | E108: 0 | F108: 39.4519 | G108: 0 | H108: 0 | I108: 0 | J108: 0
A109: 36953.19908 | B109: 0 | C109: 0 | D109: 0 | E109: 0 | F109: 39.4519 | G109: 0 | H109: 0 | I109: 0 | J109: 0
A110: 36953.19908 | B110: 0 | C110: 0 | D110: 0 | E110: 0 | F110: 39.6604 | G110: 0 | H110: 0 | I110: 0 | J110: 0
A111: 38461.30908 | B111: 0 | C111: 0 | D111: 0 | E111: 0 | F111: 39.6604 | G111: 0 | H111: 0 | I111: 0 | J111: 0
A112: 38461.30908 | B112: 0 | C112: 0 | D112: 0 | E112: 0 | F112: 0 | G112: 40.0214 | H112: 0 | I112: 0 | J112: 0
A113: 38468.87808 | B113: 0 | C113: 0 | D113: 0 | E113: 0 | F113: 0 | G113: 40.0214 | H113: 0 | I113: 0 | J113: 0
A114: 38468.87808 | B114: 0 | C114: 0 | D114: 0 | E114: 0 | F114: 40.0843 | G114: 0 | H114: 0 | I114: 0 | J114: 0
A115: 38841.75808 | B115: 0 | C115: 0 | D115: 0 | E115: 0 | F115: 40.0843 | G115: 0 | H115: 0 | I115: 0 | J115: 0
A116: 38841.75808 | B116: 0 | C116: 0 | D116: 0 | E116: 40.0934 | F116: 0 | G116: 0 | H116: 0 | I116: 0 | J116: 0
A117: 39373.27808 | B117: 0 | C117: 0 | D117: 0 | E117: 40.0934 | F117: 0 | G117: 0 | H117: 0 | I117: 0 | J117: 0
A118: 39373.27808 | B118: 0 | C118: 0 | D118: 0 | E118: 40.3645 | F118: 0 | G118: 0 | H118: 0 | I118: 0 | J118: 0
A119: 40484.71808 | B119: 0 | C119: 0 | D119: 0 | E119: 40.3645 | F119: 0 | G119: 0 | H119: 0 | I119: 0 | J119: 0
A120: 40484.71808 | B120: 0 | C120: 0 | D120: 0 | E120: 0 | F120: 40.5176 | G120: 0 | H120: 0 | I120: 0 | J120: 0
A121: 41726.59808 | B121: 0 | C121: 0 | D121: 0 | E121: 0 | F121: 40.5176 | G121: 0 | H121: 0 | I121: 0 | J121: 0
A122: 41726.59808 | B122: 0 | C122: 0 | D122: 0 | E122: 40.6393 | F122: 0 | G122: 0 | H122: 0 | I122: 0 | J122: 0
A123: 42310.03808 | B123: 0 | C123: 0 | D123: 0 | E123: 40.6393 | F123: 0 | G123: 0 | H123: 0 | I123: 0 | J123: 0
A124: 42310.03808 | B124: 0 | C124: 0 | D124: 0 | E124: 0 | F124: 40.9608 | G124: 0 | H124: 0 | I124: 0 | J124: 0
A125: 42586.53808 | B125: 0 | C125: 0 | D125: 0 | E125: 0 | F125: 40.9608 | G125: 0 | H125: 0 | I125: 0 | J125: 0
A126: 42586.53808 | B126: 0 | C126: 0 | D126: 0 | E126: 0 | F126: 41.1861 | G126: 0 | H126: 0 | I126: 0 | J126: 0
A127: 42851.97808 | B127: 0 | C127: 0 | D127: 0 | E127: 0 | F127: 41.1861 | G127: 0 | H127: 0 | I127: 0 | J127: 0
A128: 42851.97808 | B128: 0 | C128: 0 | D128: 0 | E128: 41.2009 | F128: 0 | G128: 0 | H128: 0 | I128: 0 | J128: 0
A129: 43369.41808 | B129: 0 | C129: 0 | D129: 0 | E129: 41.2009 | F129: 0 | G129: 0 | H129: 0 | I129: 0 | J129: 0
A130: 43369.41808 | B130: 0 | C130: 0 | D130: 0 | E130: 0 | F130: 41.414 | G130: 0 | H130: 0 | I130: 0 | J130: 0
A131: 44018.79808 | B131: 0 | C131: 0 | D131: 0 | E131: 0 | F131: 41.414 | G131: 0 | H131: 0 | I131: 0 | J131: 0
A132: 44018.79808 | B132: 0 | C132: 0 | D132: 0 | E132: 0 | F132: 41.8778 | G132: 0 | H132: 0 | I132: 0 | J132: 0
A133: 44563.89808 | B133: 0 | C133: 0 | D133: 0 | E133: 0 | F133: 41.8778 | G133: 0 | H133: 0 | I133: 0 | J133: 0
A134: 44563.89808 | B134: 0 | C134: 0 | D134: 0 | E134: 0 | F134: 0 | G134: 42.0704 | H134: 0 | I134: 0 | J134: 0
A135: 44605.65808 | B135: 0 | C135: 0 | D135: 0 | E135: 0 | F135: 0 | G135: 42.0704 | H135: 0 | I135: 0 | J135: 0
A136: 44605.65808 | B136: 0 | C136: 0 | D136: 0 | E136: 42.3742 | F136: 0 | G136: 0 | H136: 0 | I136: 0 | J136: 0
A137: 44867.01808 | B137: 0 | C137: 0 | D137: 0 | E137: 42.3742 | F137: 0 | G137: 0 | H137: 0 | I137: 0 | J137: 0
A138: 44867.01808 | B138: 0 | C138: 0 | D138: 0 | E138: 0 | F138: 42.5938 | G138: 0 | H138: 0 | I138: 0 | J138: 0
A139: 44964.18808 | B139: 0 | C139: 0 | D139: 0 | E139: 0 | F139: 42.5938 | G139: 0 | H139: 0 | I139: 0 | J139: 0
A140: 44964.18808 | B140: 0 | C140: 0 | D140: 0 | E140: 42.6785 | F140: 0 | G140: 0 | H140: 0 | I140: 0 | J140: 0
A141: 45246.66808 | B141: 0 | C141: 0 | D141: 0 | E141: 42.6785 | F141: 0 | G141: 0 | H141: 0 | I141: 0 | J141: 0
A142: 45246.66808 | B142: 0 | C142: 0 | D142: 0 | E142: 0 | F142: 0 | G142: 42.9344 | H142: 0 | I142: 0 | J142: 0
A143: 45254.67208 | B143: 0 | C143: 0 | D143: 0 | E143: 0 | F143: 0 | G143: 42.9344 | H143: 0 | I143: 0 | J143: 0
A144: 45254.67208 | B144: 0 | C144: 0 | D144: 0 | E144: 0 | F144: 0 | G144: 43.0608 | H144: 0 | I144: 0 | J144: 0
A145: 45258.41308 | B145: 0 | C145: 0 | D145: 0 | E145: 0 | F145: 0 | G145: 43.0608 | H145: 0 | I145: 0 | J145: 0
A146: 45258.41308 | B146: 0 | C146: 0 | D146: 0 | E146: 0 | F146: 0 | G146: 43.188 | H146: 0 | I146: 0 | J146: 0
A147: 45275.50858 | B147: 0 | C147: 0 | D147: 0 | E147: 0 | F147: 0 | G147: 43.188 | H147: 0 | I147: 0 | J147: 0
A148: 45275.50858 | B148: 0 | C148: 0 | D148: 0 | E148: 43.301 | F148: 0 | G148: 0 | H148: 0 | I148: 0 | J148: 0
A149: 45817.58858 | B149: 0 | C149: 0 | D149: 0 | E149: 43.301 | F149: 0 | G149: 0 | H149: 0 | I149: 0 | J149: 0
A150: 45817.58858 | B150: 0 | C150: 0 | D150: 0 | E150: 0 | F150: 0 | G150: 43.316 | H150: 0 | I150: 0 | J150: 0
A151: 45989.80508 | B151: 0 | C151: 0 | D151: 0 | E151: 0 | F151: 0 | G151: 43.316 | H151: 0 | I151: 0 | J151: 0
A152: 45989.80508 | B152: 0 | C152: 0 | D152: 0 | E152: 0 | F152: 0 | G152: 43.454 | H152: 0 | I152: 0 | J152: 0
A153: 46098.55508 | B153: 0 | C153: 0 | D153: 0 | E153: 0 | F153: 0 | G153: 43.454 | H153: 0 | I153: 0 | J153: 0
A154: 46098.55508 | B154: 0 | C154: 0 | D154: 0 | E154: 0 | F154: 43.5889 | G154: 0 | H154: 0 | I154: 0 | J154: 0
A155: 46109.14108 | B155: 0 | C155: 0 | D155: 0 | E155: 0 | F155: 43.5889 | G155: 0 | H155: 0 | I155: 0 | J155: 0
A156: 46109.14108 | B156: 0 | C156: 0 | D156: 0 | E156: 43.6194 | F156: 0 | G156: 0 | H156: 0 | I156: 0 | J156: 0
A157: 46150.50108 | B157: 0 | C157: 0 | D157: 0 | E157: 43.6194 | F157: 0 | G157: 0 | H157: 0 | I157: 0 | J157: 0
A158: 46150.50108 | B158: 0 | C158: 0 | D158: 0 | E158: 0 | F158: 0 | G158: 43.8735 | H158: 0 | I158: 0 | J158: 0
A159: 47029.37508 | B159: 0 | C159: 0 | D159: 0 | E159: 0 | F159: 0 | G159: 43.8735 | H159: 0 | I159: 0 | J159: 0
A160: 47029.37508 | B160: 0 | C160: 0 | D160: 0 | E160: 0 | F160: 44.1046 | G160: 0 | H160: 0 | I160: 0 | J160: 0
A161: 47435.43508 | B161: 0 | C161: 0 | D161: 0 | E161: 0 | F161: 44.1046 | G161: 0 | H161: 0 | I161: 0 | J161: 0
A162: 47435.43508 | B162: 0 | C162: 0 | D162: 0 | E162: 0 | F162: 44.1569 | G162: 0 | H162: 0 | I162: 0 | J162: 0
A163: 47479.32748 | B163: 0 | C163: 0 | D163: 0 | E163: 0 | F163: 44.1569 | G163: 0 | H163: 0 | I163: 0 | J163: 0
A164: 47479.32748 | B164: 0 | C164: 0 | D164: 0 | E164: 0 | F164: 44.3672 | G164: 0 | H164: 0 | I164: 0 | J164: 0
A165: 48181.63748 | B165: 0 | C165: 0 | D165: 0 | E165: 0 | F165: 44.3672 | G165: 0 | H165: 0 | I165: 0 | J165: 0
A166: 48181.63748 | B166: 0 | C166: 0 | D166: 0 | E166: 0 | F166: 44.633 | G166: 0 | H166: 0 | I166: 0 | J166: 0
A167: 48600.89048 | B167: 0 | C167: 0 | D167: 0 | E167: 0 | F167: 44.633 | G167: 0 | H167: 0 | I167: 0 | J167: 0
A168: 48600.89048 | B168: 0 | C168: 0 | D168: 0 | E168: 0 | F168: 0 | G168: 44.6405 | H168: 0 | I168: 0 | J168: 0
A169: 48639.69248 | B169: 0 | C169: 0 | D169: 0 | E169: 0 | F169: 0 | G169: 44.6405 | H169: 0 | I169: 0 | J169: 0
A170: 48639.69248 | B170: 0 | C170: 0 | D170: 0 | E170: 0 | F170: 0 | G170: 44.7776 | H170: 0 | I170: 0 | J170: 0
A171: 48651.87248 | B171: 0 | C171: 0 | D171: 0 | E171: 0 | F171: 0 | G171: 44.7776 | H171: 0 | I171: 0 | J171: 0
A172: 48651.87248 | B172: 0 | C172: 0 | D172: 0 | E172: 0 | F172: 44.9022 | G172: 0 | H172: 0 | I172: 0 | J172: 0
A173: 48914.70548 | B173: 0 | C173: 0 | D173: 0 | E173: 0 | F173: 44.9022 | G173: 0 | H173: 0 | I173: 0 | J173: 0
A174: 48914.70548 | B174: 0 | C174: 0 | D174: 0 | E174: 0 | F174: 45.1747 | G174: 0 | H174: 0 | I174: 0 | J174: 0
A175: 49048.92648 | B175: 0 | C175: 0 | D175: 0 | E175: 0 | F175: 45.1747 | G175: 0 | H175: 0 | I175: 0 | J175: 0
A176: 49048.92648 | B176: 0 | C176: 0 | D176: 0 | E176: 0 | F176: 45.4507 | G176: 0 | H176: 0 | I176: 0 | J176: 0
A177: 49479.08148 | B177: 0 | C177: 0 | D177: 0 | E177: 0 | F177: 45.4507 | G177: 0 | H177: 0 | I177: 0 | J177: 0
A178: 49479.08148 | B178: 0 | C178: 0 | D178: 0 | E178: 0 | F178: 0 | G178: 45.6391 | H178: 0 | I178: 0 | J178: 0
A179: 49861.88148 | B179: 0 | C179: 0 | D179: 0 | E179: 0 | F179: 0 | G179: 45.6391 | H179: 0 | I179: 0 | J179: 0
A180: 49861.88148 | B180: 0 | C180: 0 | D180: 0 | E180: 0 | F180: 45.7301 | G180: 0 | H180: 0 | I180: 0 | J180: 0
A181: 50425.54648 | B181: 0 | C181: 0 | D181: 0 | E181: 0 | F181: 45.7301 | G181: 0 | H181: 0 | I181: 0 | J181: 0
A182: 50425.54648 | B182: 0 | C182: 0 | D182: 0 | E182: 0 | F182: 46.0131 | G182: 0 | H182: 0 | I182: 0 | J182: 0
A183: 51339.57648 | B183: 0 | C183: 0 | D183: 0 | E183: 0 | F183: 46.0131 | G183: 0 | H183: 0 | I183: 0 | J183: 0
A184: 51339.57648 | B184: 0 | C184: 0 | D184: 0 | E184: 0 | F184: 0 | G184: 46.0516 | H184: 0 | I184: 0 | J184: 0
A185: 51351.06048 | B185: 0 | C185: 0 | D185: 0 | E185: 0 | F185: 0 | G185: 46.0516 | H185: 0 | I185: 0 | J185: 0
A186: 51351.06048 | B186: 0 | C186: 0 | D186: 0 | E186: 0 | F186: 0 | G186: 46.5782 | H186: 0 | I186: 0 | J186: 0
A187: 51764.31048 | B187: 0 | C187: 0 | D187: 0 | E187: 0 | F187: 0 | G187: 46.5782 | H187: 0 | I187: 0 | J187: 0
A188: 51764.31048 | B188: 0 | C188: 0 | D188: 0 | E188: 0 | F188: 46.59 | G188: 0 | H188: 0 | I188: 0 | J188: 0
A189: 52038.44048 | B189: 0 | C189: 0 | D189: 0 | E189: 0 | F189: 46.59 | G189: 0 | H189: 0 | I189: 0 | J189: 0
A190: 52038.44048 | B190: 0 | C190: 0 | D190: 0 | E190: 0 | F190: 0 | G190: 0 | H190: 46.7927 | I190: 0 | J190: 0
A191: 52055.40548 | B191: 0 | C191: 0 | D191: 0 | E191: 0 | F191: 0 | G191: 0 | H191: 46.7927 | I191: 0 | J191: 0
A192: 52055.40548 | B192: 0 | C192: 0 | D192: 0 | E192: 0 | F192: 46.8841 | G192: 0 | H192: 0 | I192: 0 | J192: 0
A193: 52090.95548 | B193: 0 | C193: 0 | D193: 0 | E193: 0 | F193: 46.8841 | G193: 0 | H193: 0 | I193: 0 | J193: 0
A194: 52090.95548 | B194: 0 | C194: 0 | D194: 0 | E194: 0 | F194: 0 | G194: 47.0629 | H194: 0 | I194: 0 | J194: 0
A195: 53241.96548 | B195: 0 | C195: 0 | D195: 0 | E195: 0 | F195: 0 | G195: 47.0629 | H195: 0 | I195: 0 | J195: 0
A196: 53241.96548 | B196: 0 | C196: 0 | D196: 0 | E196: 0 | F196: 0 | G196: 0 | H196: 47.3718 | I196: 0 | J196: 0
A197: 53352.64688 | B197: 0 | C197: 0 | D197: 0 | E197: 0 | F197: 0 | G197: 0 | H197: 47.3718 | I197: 0 | J197: 0
A198: 53352.64688 | B198: 0 | C198: 0 | D198: 0 | E198: 0 | F198: 47.4839 | G198: 0 | H198: 0 | I198: 0 | J198: 0
A199: 53879.10288 | B199: 0 | C199: 0 | D199: 0 | E199: 0 | F199: 47.4839 | G199: 0 | H199: 0 | I199: 0 | J199: 0
A200: 53879.10288 | B200: 0 | C200: 0 | D200: 0 | E200: 0 | F200: 0 | G200: 47.5582 | H200: 0 | I200: 0 | J200: 0
... 231 more rows

Sheet Kraftwerksliste Backend (hidden)
C3: EWI Merit-Order Tool 2020
C5: Kraftwerksliste | L5: =Impressum!F5 -> Version 2020.1.1
C7: Kurze Erläuterung der Liste und der grundsätzlichen Datenquellen
C10: Teil der Merit-Order? | D10: Kraftwerksnummer Bundesnetzagentur | E10: Unternehmen | F10: Kraftwerksname | G10: Blockname | H10: Aufnahme der kommerziellen Stromerzeugung | I10: Zuordnung Kraftwerkstyp | J10: Effizienz | K10: Mittlere verfügbare Netto-Nennleistung [MW] | L10: Grenzkosten [EUR/MWHel]
C11: Nein | D11: (optional) | E11: (optional) | F11: (optional) | G11: (optional) | H11: (optional) | I11: (notwendig) | J11: (notwendig) | K11: 0 | L11: 0
C12: Nein | D12: (optional) | E12: (optional) | F12: (optional) | G12: (optional) | H12: (optional) | I12: (notwendig) | J12: (notwendig) | K12: 0 | L12: 0
C13: Nein | D13: (optional) | E13: (optional) | F13: (optional) | G13: (optional) | H13: (optional) | I13: (notwendig) | J13: (notwendig) | K13: 0 | L13: 0
C14: Nein | D14: (optional) | E14: (optional) | F14: (optional) | G14: (optional) | H14: (optional) | I14: (notwendig) | J14: (notwendig) | K14: 0 | L14: 0
C15: Nein | D15: (optional) | E15: (optional) | F15: (optional) | G15: (optional) | H15: (optional) | I15: (notwendig) | J15: (notwendig) | K15: 0 | L15: 0
C16: Nein | D16: (optional) | E16: (optional) | F16: (optional) | G16: (optional) | H16: (optional) | I16: (notwendig) | J16: (notwendig) | K16: 0 | L16: 0
C17: Nein | D17: (optional) | E17: (optional) | F17: (optional) | G17: (optional) | H17: (optional) | I17: (notwendig) | J17: (notwendig) | K17: 0 | L17: 0
C18: Nein | D18: (optional) | E18: (optional) | F18: (optional) | G18: (optional) | H18: (optional) | I18: (notwendig) | J18: (notwendig) | K18: 0 | L18: 0
C19: Nein | D19: (optional) | E19: (optional) | F19: (optional) | G19: (optional) | H19: (optional) | I19: (notwendig) | J19: (notwendig) | K19: 0 | L19: 0
C20: Nein | D20: (optional) | E20: (optional) | F20: (optional) | G20: (optional) | H20: (optional) | I20: (notwendig) | J20: (notwendig) | K20: 0 | L20: 0
C21: Ja | D21: BNA0084 | E21: Vattenfall Wärme Berlin AG | F21: Reuter | G21: Reuter M | H21: 30.10.1998 | I21: Abfall | J21: 0.33 | K21: 30.6 | L21: 1
C22: Ja | D22: BNA0088b | E22: Solvay Chemicals GmbH | F22: Dampfturbinenanlage der EBS-Kessel | H22: 16.10.2009 | I22: Abfall | J22: 0.33 | K22: 29.75 | L22: 1
C23: Ja | D23: BNA0097 | E23: MVA Bielefeld-Herford GmbH | F23: MVA Bielefeld | G23: Linien 1 - 3 | H23: 01.07.1981 | I23: Abfall | J23: 0.33 | K23: 28.9 | L23: 1
C24: Ja | D24: BNA0117a | E24: Energie- und Wasserversorgung Bonn/Rhein-Sieg GmbH | F24: Heizkraftwerk Karlstraße | G24: Heizkraftwerk Karlstraße | H24: 01.07.1990 | I24: Abfall | J24: 0.33 | K24: 10.2 | L24: 1
C25: Ja | D25: BNA0139 | E25: swb Entsorgung GmbH & Co. KG | F25: KW Hafen | G25: MKK | H25: 2009 | I25: Abfall | J25: 0.33 | K25: 28.05 | L25: 1
C26: Ja | D26: BNA0223b | E26: Stadtwerke Düsseldorf AG | F26: DT | G26: Flingern T1 | H26: 17.04.2000 | I26: Abfall | J26: 0.33 | K26: 45.645 | L26: 1
C27: Ja | D27: BNA0237 | E27: Progroup Power 1 GmbH | F27: EBS-Heizkraftwerk | H27: 10.02.2011 | I27: Abfall | J27: 0.33 | K27: 19.975 | L27: 1
C28: Ja | D28: BNA0287a | E28: Mainova AG | F28: MHKW Frankfurt | G28: T 3 (nur alleiniger Betrieb, kein gemeinsamer Betrieb mit T 7 möglich) | H28: 01.01.1969 | I28: Abfall | J28: 0.33 | K28: 22.1 | L28: 1
C29: Ja | D29: BNA0287b | E29: Mainova AG | F29: MHKW Frankfurt | G29: T 7 (nur alleiniger Betrieb, kein gemeinsamer Betrieb mit T 3 möglich) | H29: 01.01.2006 | I29: Abfall | J29: 0.33 | K29: 39.525 | L29: 1
C30: Ja | D30: BNA0380 | E30: EEW Energy from Waste Großräschen GmbH | F30: EEW Großräschen | H30: 01.12.2007 | I30: Abfall | J30: 0.33 | K30: 19.805 | L30: 1
C31: Ja | D31: BNA0398 | E31: MVR Müllverwertung Rugenberger Damm GmbH & Co. KG | F31: MVR Müllverwertung Rugenberger Damm GmbH & Co. KG | H31: 12.08.1999 | I31: Abfall | J31: 0.33 | K31: 20.4 | L31: 1
C32: Ja | D32: BNA0407 | E32: Enertec Hameln GmbH | F32: Enertec Hameln | G32: Linien 1,3,4 | H32: 07.10.1913 | I32: Abfall | J32: 0.33 | K32: 11.22 | L32: 1
C33: Ja | D33: BNA0417 | E33: EEW Energy from Waste Hannover GmbH | F33: EEW Energy from Waste Hannover GmbH | G33: Hannover | H33: 01.06.2005 | I33: Abfall | J33: 0.33 | K33: 19.125 | L33: 1
C34: Ja | D34: BNA0438 | E34: EEW Energy from Waste Helmstedt GmbH | F34: TRV Buschhaus | G34: Linie 1-3 | H34: 31.03.1999 | I34: Abfall | J34: 0.33 | K34: 31.875 | L34: 1
C35: Ja | D35: BNA0519 | E35: RWE Generation SE | F35: Karnap | G35: B | H35: 16.03.1987 | I35: Abfall | J35: 0.33 | K35: 32.3 | L35: 1
C36: Ja | D36: BNA0590 | E36: MVV Energie AG | F36: TREA Leuna | G36: Linie 1 | H36: 26.08.2005 | I36: Abfall | J36: 0.33 | K36: 13.8125 | L36: 1
C37: Ja | D37: BNA0591 | E37: MVV Energie AG | F37: TREA Leuna | G37: Linie 2 | H37: 19.06.2007 | I37: Abfall | J37: 0.33 | K37: 13.8125 | L37: 1
C38: Ja | D38: BNA0599 | E38: AVEA Entsorgungsbetriebe GmbH & Co. KG | G38: entfällt | H38: 03.05.2011 | I38: Abfall | J38: 0.33 | K38: 9.86 | L38: 1
C39: Ja | D39: BNA0622 | E39: Müllheizkraftwerk Rothensee GmbH | F39: MHKW Rothensee | G39: Block 1 | H39: 17.07.2005 | I39: Abfall | J39: 0.33 | K39: 24.82 | L39: 1
C40: Ja | D40: BNA0623 | E40: Müllheizkraftwerk Rothensee GmbH | F40: MHKW Rothensee | G40: Block 2 | H40: 08.09.2006 | I40: Abfall | J40: 0.33 | K40: 24.82 | L40: 1
C41: Ja | D41: BNA0640 | E41: MVV Energie AG | F41: HKW Mannheim | G41: Turbine 3 | H41: 13.10.2006 | I41: Abfall | J41: 0.33 | K41: 7.3525 | L41: 1
C42: Ja | D42: BNA0641a | E42: MVV Energie AG | F42: HKW Mannheim | G42: Turbine 60 | H42: 07.01.2010 | I42: Abfall | J42: 0.33 | K42: 18.785 | L42: 1
C43: Ja | D43: BNA0641b | E43: MVV Energie AG | F43: HKW Mannheim | G43: Turbine D.0 | H43: 13.08.2012 | I43: Abfall | J43: 0.33 | K43: 4.5645 | L43: 1
C44: Ja | D44: BNA0641c | E44: MVV Energie AG | F44: HKW Mannheim | G44: Turbine E.0 | H44: 14.06.2012 | I44: Abfall | J44: 0.33 | K44: 3.298 | L44: 1
C45: Ja | D45: BNA0693 | E45: SWN Stadtwerke Neumünster GmbH | F45: Heizkraftwerk NMS | H45: 03.05.1974 | I45: Abfall | J45: 0.33 | K45: 45.56 | L45: 1
C46: Ja | D46: BNA0746 | E46: N-ERGIE AG | F46: HKW Sandreuth | H46: 01.09.1996 | I46: Abfall | J46: 0.33 | K46: 15.3 | L46: 1
C47: Ja | D47: BNA0750 | E47: GMVA Gemeinschafts-Müll-Verbrennungsanlage Niederrhein GmbH | F47: GMVA Niederrhein | G47: Ausspeisung 10/110kV (Turbine 2) | H47: 17.10.1991 | I47: Abfall | J47: 0.33 | K47: 34.34 | L47: 1
C48: Ja | D48: BNA0751 | E48: GMVA Gemeinschafts-Müll-Verbrennungsanlage Niederrhein GmbH | F48: GMVA Niederrhein | G48: Ausspeisung 10/25kV (Turbine 1) | H48: 06.04.2006 | I48: Abfall | J48: 0.33 | K48: 17.935 | L48: 1
C49: Ja | D49: BNA0845 | E49: Stadtwerke Rosenheim GmbH & Co. KG | F49: MHKW, WKW | G49: T1a/b, T2 | H49: 01.01.1988 | I49: Abfall | J49: 0.33 | K49: 7.65 | L49: 1
C50: Ja | D50: BNA0855 | E50: Steag GmbH | F50: IKW Rüdersdorf | H50: 15.12.2009 | I50: Abfall | J50: 0.33 | K50: 25.5 | L50: 1
C51: Ja | D51: BNA0895 | E51: GKS Gemeinschaftskraftwerk Schweinfurt GmbH | F51: GKS | G51: entfällt | H51: 01.06.1990 | I51: Abfall | J51: 0.33 | K51: 20.74 | L51: 1
C52: Ja | D52: BNA0939a | E52: EnBW Energie Baden-Württemberg AG | F52: Restmüll-Heizkraftwerk Stuttgart-Münster | G52: MÜN DT19 neu | H52: 01.01.2009 | I52: Abfall | J52: 0.33 | K52: 16.575 | L52: 1
C53: Ja | D53: BNA0969a | E53: SWM Services GmbH | F53: Nord 1 | G53: 1 | H53: 15.09.1991 | I53: Abfall | J53: 0.33 | K53: 15.3 | L53: 1
C54: Ja | D54: BNA0969c | E54: SWM Services GmbH | F54: Nord 3 | G54: 3 | H54: 17.05.1984 | I54: Abfall | J54: 0.33 | K54: 18.7 | L54: 1
C55: Ja | D55: BNA1020 | E55: RWE Power AG | F55: MVA Weisweiler | G55: MVA | H55: 22.10.1996 | I55: Abfall | J55: 0.33 | K55: 22.95 | L55: 1
C56: Ja | D56: BNA1108 | E56: PD energy GmbH | F56: PD energy GmbH | H56: 01.01.2010 | I56: Abfall | J56: 0.33 | K56: 8.415 | L56: 1
C57: Ja | D57: BNA1110 | E57: Zweckverband Restmüllheizkraftwerk Böblingen | F57: Restmüllheizkraftwerk Böblingen | G57: Müllverbrennung | H57: 03.05.1999 | I57: Abfall | J57: 0.33 | K57: 8.075 | L57: 1
C58: Ja | D58: BNA1114 | E58: swb Entsorgung GmbH & Co. KG | F58: MHKW | G58: MHKW | H58: 1969 / 2012 | I58: Abfall | J58: 0.33 | K58: 37.4 | L58: 1
C59: Ja | D59: BNA1116 | E59: Bremerhavener Entsorgungsgesellschaft mbH | F59: BEG | H59: 18.03.1977 | I59: Abfall | J59: 0.33 | K59: 11.9 | L59: 1
C60: Ja | D60: BNA1119 | E60: Zweckverband Abfallverwertung Südostbayern | F60: MHKW Burgkirchen | H60: 15.01.1994 | I60: Abfall | J60: 0.33 | K60: 10.625 | L60: 1
C61: Ja | D61: BNA1139 | E61: EEW Energy from Waste Saarbrücken GmbH | F61: TREA Breisgau | H61: 15.07.2005 | I61: Abfall | J61: 0.33 | K61: 11.56 | L61: 1
C62: Ja | D62: BNA1144 | E62: EEW Energy from Waste Göppingen GmbH | F62: EEW Göppingen | G62: Turb. Neu | H62: 01.07.1975 | I62: Abfall | J62: 0.33 | K62: 9.35 | L62: 1
C63: Ja | D63: BNA1148 | E63: MHB Hamm Betriebsführungsgesellschaft mbH | F63: MVA Hamm | H63: 13.02.1986 | I63: Abfall | J63: 0.33 | K63: 12.393 | L63: 1
C64: Ja | D64: BNA1154 | E64: AGR Abfallentsorgungsgesellschaft Ruhrgebiet mbH | F64: RZR Herten I | G64: RZR I | H64: 06.01.1982 | I64: Abfall | J64: 0.33 | K64: 13.175 | L64: 1
C65: Ja | D65: BNA1155 | E65: AGR Abfallentsorgungsgesellschaft Ruhrgebiet mbH | F65: RZR Herten II | G65: RZR II | H65: 07.01.2009 | I65: Abfall | J65: 0.33 | K65: 9.945 | L65: 1
C66: Ja | D66: BNA1161 | E66: Zweckverband Müllverwertungsanlage Ingolstadt (MVA Ingolstadt) | F66: MVA Ingolstadt | G66: Müllheizkraftwerk (MHKW) | H66: 26.10.1984 | I66: Abfall | J66: 0.33 | K66: 21.675 | L66: 1
C67: Ja | D67: BNA1167 | E67: Kreis Weseler Abfallgesellschaft mbH & Co. KG (KWA) | F67: Abfallentsorgungszentrum Asdonkshof | G67: MVA | H67: 01.04.1997 | I67: Abfall | J67: 0.33 | K67: 13.6 | L67: 1
C68: Ja | D68: BNA1168 | E68: Müllheizkraftwerk Kassel GmbH | F68: Müllheizkraftwerk | H68: 17.12.1985 | I68: Abfall | J68: 0.33 | K68: 12.495 | L68: 1
C69: Ja | D69: BNA1184 | E69: AVG Köln mbH | F69: RMVA Köln | G69: RMVA Köln | H69: 01.02.1998 | I69: Abfall | J69: 0.33 | K69: 38.335 | L69: 1
C70: Ja | D70: BNA1186b | E70: EGK Entsorgungsgesellschaft Krefeld GmbH & Co.KG | F70: MKVA Krefeld | G70: Turbine 4 | H70: 01.01.2002 | I70: Abfall | J70: 0.33 | K70: 11.73 | L70: 1
C71: Ja | D71: BNA1186c | E71: EGK Entsorgungsgesellschaft Krefeld GmbH & Co.KG | F71: MKVA Krefeld | G71: Turbine 2 | H71: 01.01.1976 | I71: Abfall | J71: 0.33 | K71: 1.275 | L71: 1
C72: Ja | D72: BNA1186d | E72: EGK Entsorgungsgesellschaft Krefeld GmbH & Co.KG | F72: MKVA Krefeld | G72: Turbine 5 | H72: 01.01.1997 | I72: Abfall | J72: 0.33 | K72: 2.38 | L72: 1
C73: Ja | D73: BNA1186e | E73: EGK Entsorgungsgesellschaft Krefeld GmbH & Co.KG | F73: MKVA Krefeld | G73: Turbine 1 | H73: 01.01.1976 | I73: Abfall | J73: 0.33 | K73: 1.275 | L73: 1
C74: Ja | D74: BNA1190 | E74: Steag GmbH | F74: Thermische Abfallbehandlung Lauta GmbH & Co. oHG | H74: 21.07.2004 | I74: Abfall | J74: 0.33 | K74: 13.345 | L74: 1
C75: Ja | D75: BNA1197 | E75: Technische Werke Ludwigshafen AG | F75: FHKW Ludwigshafen | G75: FHKW | H75: 01.08.1967 | I75: Abfall | J75: 0.33 | K75: 23.8 | L75: 1
C76: Ja | D76: BNA1198 | E76: SUEZ Energie und Verwertung GmbH | F76: SITA Abfallverwertung GmbH | H76: 22.06.2005 | I76: Abfall | J76: 0.33 | K76: 19.55 | L76: 1
C77: Ja | D77: BNA1199 | E77: Entsorgungsgesellschaft Mainz mbH | F77: MHKW Mainz | H77: 01.12.2009 | I77: Abfall | J77: 0.33 | K77: 13.26 | L77: 1
C78: Ja | D78: BNA1222 | E78: Energieversorgung Offenbach AG | F78: Müllheizkraftwerk Offenbach | H78: 01.01.1972 | I78: Abfall | J78: 0.33 | K78: 12.325 | L78: 1
C79: Ja | D79: BNA1229 | E79: EEW Energy from Waste Saarbrücken GmbH | F79: MHKW Pirmasens | H79: 01.01.1999 | I79: Abfall | J79: 0.33 | K79: 12.75 | L79: 1
C80: Ja | D80: BNA1232 | E80: EEW Energy from Waste Premnitz GmbH | F80: ZWSF | G80: ZWSF | H80: 08.01.2004 | I80: Abfall | J80: 0.33 | K80: 2.125 | L80: 1
C81: Ja | D81: BNA1233 | E81: EEW Energy from Waste Premnitz GmbH | F81: EVE | G81: EVE | H81: 09.06.2009 | I81: Abfall | J81: 0.33 | K81: 12.325 | L81: 1
C82: Ja | D82: BNA1243 | E82: Vattenfall Europe New Energy Ecopower GmbH | F82: EBS-HKW Rostock | H82: 2009 | I82: Abfall | J82: 0.33 | K82: 14.45 | L82: 1
C83: Ja | D83: BNA1244 | E83: AVA Velsen GmbH | F83: AVA Velsen | H83: 07.08.1997 | I83: Abfall | J83: 0.33 | K83: 13.6 | L83: 1
C84: Ja | D84: BNA1254 | E84: Zweckverband Müllverwertung Schwandorf | F84: Müllkraftwerk Schwandorf | H84: 31.08.1982 | I84: Abfall | J84: 0.33 | K84: 45.9 | L84: 1
C85: Ja | D85: BNA1255 | E85: Kraftwerk Schwedt GmbH & Co. KG | F85: Kraftwerk Schwedt GmbH & Co.KG | H85: 01.04.2011 | I85: Abfall | J85: 0.33 | K85: 24.565 | L85: 1
C86: Ja | D86: BNA1261 | E86: EEW Energy from Waste Stapelfeld GmbH | H86: 01.10.1979 | I86: Abfall | J86: 0.33 | K86: 13.94 | L86: 1
C87: Ja | D87: BNA1262 | E87: REMONDIS Thermische Abfallverwertung GmbH | F87: REMONDIS Thermische Abfallverwertung GmbH | H87: 21.04.2008 | I87: Abfall | J87: 0.33 | K87: 20.4 | L87: 1
C88: Ja | D88: BNA1286 | E88: Zweckverband für Abfallwirtschaft Südwestthüringen (ZASt) | F88: Restabfallbehandlungsanlage | G88: 1 | H88: 13.11.2007 | I88: Abfall | J88: 0.33 | K88: 10.285 | L88: 1
C89: Ja | D89: BNA1289 | E89: AMK - Abfallentsorgungsgesellschaft des Märkischen Kreises mbH | F89: AMK - Abfallentsorgungsgesellschaft des Märkischen Kreises mbH | H89: 01.04.1981 | I89: Abfall | J89: 0.33 | K89: 10.7185 | L89: 1
C90: Ja | D90: BNA1291 | E90: IHKW Industrieheizkraftwerk Andernach GmbH | F90: IHKW Andernach | H90: 14.01.2008 | I90: Abfall | J90: 0.33 | K90: 10.625 | L90: 1
C91: Ja | D91: BNA1295 | E91: AVA Abfallverwertung Augsburg GmbH | F91: AVA GmbH | G91: AHKW | H91: 16.09.1994 | I91: Abfall | J91: 0.33 | K91: 8.5 | L91: 1
C92: Ja | D92: BNA1316 | E92: EKOCity GmbH | F92: Müllheizkraftwerk | H92: 01.01.1976 | I92: Abfall | J92: 0.33 | K92: 25.5 | L92: 1
C93: Ja | D93: BNA1330 | E93: Steinbeis Energie GmbH | F93: Steinbeis Energie | H93: 27.09.2010 | I93: Abfall | J93: 0.33 | K93: 14.45 | L93: 1
C94: Ja | D94: BNA1447a | E94: Evonik Röhm GmbH | G94: G2 | H94: 20.11.1990 | I94: Abfall | J94: 0.33 | K94: 10.115 | L94: 1
C95: Ja | D95: BNA1447b | E95: Evonik Röhm GmbH | G95: G3/Kontu | H95: 12.03.2012 | I95: Abfall | J95: 0.33 | K95: 5.865 | L95: 1
C96: Ja | D96: BNA1448 | E96: EEW Energy from Waste Saarbrücken GmbH | F96: AHKW Neunkirchen | G96: Linie 3 + 4 | H96: 02.06.1977 | I96: Abfall | J96: 0.33 | K96: 9.86 | L96: 1
C97: Ja | D97: BNA1449a | E97: Zweckverband Abfallwirtschaft Raum Würzburg | F97: Turbosatz 1 | H97: 04.06.1984 | I97: Abfall | J97: 0.33 | K97: 7.395 | L97: 1
C98: Ja | D98: BNA1449b | E98: Zweckverband Abfallwirtschaft Raum Würzburg | F98: Turbosatz 2 | H98: 09.11.1998 | I98: Abfall | J98: 0.33 | K98: 10.2 | L98: 1
C99: Ja | D99: BNA1465a | E99: B+T Energie GmbH | F99: EBS-Kraftwerk Witzenhausen | H99: 24.06.2009 | I99: Abfall | J99: 0.33 | K99: 23.8 | L99: 1
C100: Ja | D100: BNA1490 | E100: EBS - Kraftwerk GmbH | F100: EBKW Knapsack | H100: 01.01.2009 | I100: Abfall | J100: 0.33 | K100: 28.39 | L100: 1
C101: Ja | D101: BNA1510 | E101: Spreestromerzeugungs GmbH | F101: Hamburger Rieger | H101: 01.01.2013 | I101: Abfall | J101: 0.33 | K101: 15.895 | L101: 1
C102: Ja | D102: BNA1520 | E102: ESWE BioEnergie GmbH | F102: Biomasseheizkraftwerk Wiesbaden | H102: 01.01.2014 | I102: Abfall | J102: 0.33 | K102: 8.925 | L102: 1
C103: Ja | D103: BNA1864 | E103: KÄMMERER Energie GmbH | F103: Turbine 4 | H103: 1962 | I103: Abfall | J103: 0.33 | K103: 8.075 | L103: 1
C104: Ja | D104: BNA1865 | E104: KÄMMERER Energie GmbH | F104: Turbine 5 | H104: 1972 | I104: Abfall | J104: 0.33 | K104: 8.33 | L104: 1
C105: Ja | D105: BNA1867 | E105: AVG Köln mbH | F105: AVG Köln | G105: Turbosatz 2 | H105: 01.05.2017 | I105: Abfall | J105: 0.33 | K105: 15.3 | L105: 1
C106: Ja | E106: Nicht-EEG-Anlagen < 10 MW | I106: Abfall | J106: 0.33 | K106: 120.224425 | L106: 1
C107: Ja | D107: BNA0157 | E107: Preussen Elektra GmbH | F107: Brokdorf | G107: KBR | H107: 22.12.1986 | I107: Kernenergie | J107: 0.33 | K107: 1311.3 | L107: 17.86666667
C108: Ja | D108: BNA0251 | E108: Preussen Elektra GmbH | F108: Grohnde | G108: KWG | H108: 01.02.1985 | I108: Kernenergie | J108: 0.33 | K108: 1264.8 | L108: 17.86666667
C109: Ja | D109: BNA0263 | E109: Preussen Elektra GmbH | F109: Isar 2 | G109: KKI 2 | H109: 09.04.1988 | I109: Kernenergie | J109: 0.33 | K109: 1311.3 | L109: 17.86666667
C110: Ja | D110: BNA0382 | E110: RWE Power AG | F110: Kernkraft Gundremmingen | G110: C | H110: 02.11.1984 | I110: Kernenergie | J110: 0.33 | K110: 1197.84 | L110: 17.86666667
C111: Ja | D111: BNA0607 | E111: RWE Power AG | F111: Kernkraftwerk Emsland | G111: KKE | H111: 19.04.1988 | I111: Kernenergie | J111: 0.33 | K111: 1242.48 | L111: 17.86666667
C112: Ja | D112: BNA0686 | E112: EnBW Energie Baden-Württemberg AG | F112: Gemeinschaftskernkraftwerk Neckarwestheim II | G112: GKN II | H112: 15.04.1989 | I112: Kernenergie | J112: 0.33 | K112: 1218.3 | L112: 17.86666667
C113: Ja | D113: BNA0802 | E113: EnBW Energie Baden-Württemberg AG | F113: Kernkraftwerk Philippsburg 2 | G113: KKP 2 | H113: 18.04.1985 | I113: Kernenergie | J113: 0.33 | K113: 1303.86 | L113: 17.86666667
C114: Ja | D114: BNA1185 | E114: Pfeifer & Langen GmbH & Co. KG | F114: P&L Werk Könnern | G114: Kessel 1 und 2 | H114: 31.03.2014 | I114: Braunkohle | J114: 0.4336 | K114: 17.864 | L114: 32.01806759
C115: Ja | D115: BNA1164 | E115: Pfeifer & Langen GmbH & Co. KG | F115: P&L Werk Jülich | G115: Kessel 5 | H115: 15.09.2013 | I115: Braunkohle | J115: 0.4312 | K115: 20.4336 | L115: 32.1868138
C116: Ja | D116: BNA1401a | E116: RWE Power AG | F116: BoA 2 | G116: Neurath F | H116: 08.07.2012 | I116: Braunkohle | J116: 0.4288 | K116: 932.8 | L116: 32.35744895
C117: Ja | D117: BNA1401b | E117: RWE Power AG | F117: BoA 3 | G117: Neurath G | H117: 03.08.2012 | I117: Braunkohle | J117: 0.4288 | K117: 932.8 | L117: 32.35744895
C118: Ja | D118: BNA1404 | E118: Lausitz Energie Kraftwerke AG | F118: Boxberg | G118: R | H118: 06.11.2012 | I118: Braunkohle | J118: 0.4288 | K118: 563.2 | L118: 32.35744895
C119: Ja | D119: BNA1817 | E119: Stadtwerke Düsseldorf AG | F119: GuD | G119: GuD F | H119: 22.01.2016 | I119: GuD | J119: 0.612 | K119: 517.65 | L119: 32.65701132
C120: Ja | D120: BNA1819 | E120: Stadtwerke Flensburg GmbH | F120: Heizkraftwerk FL | G120: Block 12 | H120: 01.10.2016 | I120: GuD | J120: 0.612 | K120: 67.86 | L120: 32.65701132
C121: Ja | D121: BNA1820 | E121: Gemeinschaftskraftwerk Bremen GmbH und Co. KG | F121: KW Mittelsbüren | G121: GuD MiBÜ | H121: 01.10.2016 | I121: GuD | J121: 0.612 | K121: 386.715 | L121: 32.65701132
C122: Ja | D122: BNA0179 | E122: eins - energie in sachsen GmbH & Co. KG | F122: HKW Chemnitz Nord II | G122: Block C | H122: 15.06.1990 | I122: Braunkohle | J122: 0.424 | K122: 79.904 | L122: 32.70451441
C123: Ja | D123: BNA0543 | E123: RheinEnergie AG | F123: HKW Merkenich | G123: Block 6 | H123: 16.12.2010 | I123: Braunkohle | J123: 0.424 | K123: 66.264 | L123: 32.70451441
C124: Ja | D124: BNA0707 | E124: RWE Power AG | F124: Niederaußem | G124: H | H124: 16.09.1974 | I124: Braunkohle | J124: 0.4216 | K124: 570.24 | L124: 32.88101069
C125: Ja | D125: BNA0918b | E125: Dow Deutschland Anlagengesellschaft mbH | F125: Dow Stade | G125: Cogen Dow Stade | H125: 01.01.2015 | I125: GuD | J125: 0.6075 | K125: 136.59 | L125: 32.887804
C126: Ja | D126: BNA0922 | E126: CIECH Energy Deutschland GmbH | F126: GuD-Ikw Staßfurt | H126: 01.10.2015 | I126: GuD | J126: 0.6075 | K126: 87 | L126: 32.887804
C127: Ja | D127: BNA0708 | E127: RWE Power AG | F127: Niederaußem | G127: G | H127: 23.10.1974 | I127: Braunkohle | J127: 0.4192 | K127: 552.64 | L127: 33.05952793
C128: Ja | D128: BNA0256b | E128: SWE Energie GmbH | F128: HKW Erfurt-Ost | G128: GT2 | H128: 2014 | I128: GuD | J128: 0.603 | K128: 28.362 | L128: 33.12204134
C129: Ja | D129: BNA0261c | E129: Erlanger Stadtwerke AG | F129: HKW Erlangen | G129: GuD 2 | H129: 10.02.2014 | I129: GuD | J129: 0.603 | K129: 5.829 | L129: 33.12204134
C130: Ja | D130: BNA0392b | E130: Heizkraftwerk Halle-Trotha GmbH | F130: HKW Halle Trotha | G130: GuD | H130: 30.01.2013 | I130: GuD | J130: 0.5985 | K130: 48.8418 | L130: 33.35980105
C131: Ja | D131: BNA0418 | E131: enercity AG | F131: GKL | G131: GKL | H131: 05.11.1998 | I131: GuD | J131: 0.5985 | K131: 200.1 | L131: 33.35980105
C132: Ja | D132: BNA0548b | E132: Statkraft Markets GmbH | F132: Knapsack Gas II | H132: 01.07.2013 | I132: GuD | J132: 0.5985 | K132: 374.1 | L132: 33.35980105
C133: Ja | D133: BNA1337e | E133: DS Smith Paper Deutschland GmbH | F133: GuD-Anlage | G133: GuD-Anlage | H133: 28.01.2013 | I133: GuD | J133: 0.5985 | K133: 40.89 | L133: 33.35980105
C134: Ja | D134: BNA1523b | E134: Moritz J. Weig GmbH & Co KG | F134: Gemeinschaftskraftwerk Weig | G134: Block 2 (Kessel 6, GT 2, DT 3) | H134: 01.01.2013 | I134: GuD | J134: 0.5985 | K134: 23.838 | L134: 33.35980105
C135: Ja | D135: BNA0059b | E135: Volkswagen AG | F135: GuD Baunatal, VW Werksgelände | H135: 29.12.2011 | I135: GuD | J135: 0.5895 | K135: 67.86 | L135: 33.84621023
C136: Ja | D136: BNA0136 | E136: Braunschweiger Versorgungs-AG & Co. KG | F136: HKW-Mitte | G136: GuD | H136: 30.12.2010 | I136: GuD | J136: 0.585 | K136: 64.38 | L136: 34.09502723
C137: Ja | D137: BNA0588 | E137: Stadtwerke Leipzig GmbH | F137: Heizkraftwerk Leipzig-Nord | H137: 15.02.1996 | I137: GuD | J137: 0.585 | K137: 145.29 | L137: 34.09502723
C138: Ja | D138: BNA0598b | E138: InfraLeuna GmbH | F138: ILK-GuD | G138: KT1 | H138: 30.04.2010 | I138: GuD | J138: 0.585 | K138: 17.4 | L138: 34.09502723
C139: Ja | D139: BNA0606 | E139: RWE Generation SE | F139: Emsland | G139: D | H139: 07.09.2010 | I139: GuD | J139: 0.585 | K139: 771.69 | L139: 34.09502723
C140: Ja | D140: BNA0805 | E140: Kraftwerk Platting GmbH | F140: Kraftwerk Plattling | H140: 20.04.2010 | I140: GuD | J140: 0.585 | K140: 103.095 | L140: 34.09502723
C141: Ja | D141: BNA0709 | E141: RWE Power AG | F141: Niederaußem | G141: K | H141: 30.08.2002 | I141: Braunkohle | J141: 0.4048 | K141: 830.72 | L141: 34.17508426
C142: Ja | D142: BNA0400 | E142: Vattenfall Hamburg Wärme GmbH | F142: GuD Tiefstack | G142: GuD Tiefstack | H142: 02.11.2009 | I142: GuD | J142: 0.5805 | K142: 110.49 | L142: 34.34770186
C143: Ja | D143: BNA0444 | E143: K+S AG | F143: Wintershall | G143: Wintershall | H143: 20.05.2009 | I143: GuD | J143: 0.5805 | K143: 60.03 | L143: 34.34770186
C144: Ja | D144: BNA1087 | E144: Heizkraftwerk Würzburg GmbH | F144: Heizkraftwerke an der Friedensbrücke | G144: GTII | H144: 01.01.2009 | I144: GuD | J144: 0.5805 | K144: 25.665 | L144: 34.34770186
C145: Ja | D145: BNA0115 | E145: Lausitz Energie Kraftwerke AG | F145: Lippendorf | G145: R | H145: 20.06.2000 | I145: Braunkohle | J145: 0.4 | K145: 770 | L145: 34.56478527
C146: Ja | D146: BNA0124 | E146: Lausitz Energie Kraftwerke AG | F146: Boxberg | G146: Q | H146: 01.10.2000 | I146: Braunkohle | J146: 0.4 | K146: 754.16 | L146: 34.56478527
C147: Ja | D147: BNA1461 | E147: CropEnergies Bioethanol GmbH Zeitz | H147: 15.01.2005 | I147: Braunkohle | J147: 0.4 | K147: 15.4 | L147: 34.56478527
C148: Ja | D148: BNA0410 | E148: Trianel Gaskraftwerk Hamm GmbH & Co. KG | F148: Trianel Gaskraftwerk | G148: Block 10 | H148: 01.03.2008 | I148: GuD | J148: 0.576 | K148: 354.09 | L148: 34.60432453
C149: Ja | D149: BNA0411 | E149: Trianel Gaskraftwerk Hamm GmbH & Co. KG | F149: Trianel Gaskraftwerk | G149: Block 20 | H149: 01.03.2008 | I149: GuD | J149: 0.576 | K149: 356.7 | L149: 34.60432453
C150: Ja | D150: BNA0545 | E150: RheinEnergie AG | F150: HKW Niehl 2 | G150: GuD | H150: 26.03.2005 | I150: GuD | J150: 0.576 | K150: 359.31 | L150: 34.60432453
C151: Ja | D151: BNA0116 | E151: EnBW Energie Baden-Württemberg AG | F151: Braunkohlekraftwerk Lippendorf | G151: LIP S | H151: 01.12.1999 | I151: Braunkohle | J151: 0.3976 | K151: 770 | L151: 34.76316426
C152: Ja | D152: BNA0183 | E152: Stadtwerke Cottbus mbH | F152: HKW Cottbus | G152: 1 | H152: 16.12.1999 | I152: Braunkohle | J152: 0.3976 | K152: 65.12 | L152: 34.76316426
C153: Ja | D153: BNA0442 | E153: Mark-E AG / Statkraft Markets | F153: Cuno Heizkraftwerk Herdecke | G153: H6 | H153: 01.01.2007 | I153: GuD | J153: 0.5715 | K153: 362.79 | L153: 34.8649885
C154: Ja | D154: BNA0915 | E154: Lausitz Energie Kraftwerke AG | F154: Schwarze Pumpe | G154: B | H154: 25.05.1998 | I154: Braunkohle | J154: 0.3952 | K154: 660 | L154: 34.9639527
C155: Ja | D155: BNA0548a | E155: Statkraft Markets GmbH | F155: Knapsack Gas I | H155: 01.01.2006 | I155: GuD | J155: 0.567 | K155: 696 | L155: 35.12979
C156: Ja | D156: BNA0914 | E156: Lausitz Energie Kraftwerke AG | F156: Schwarze Pumpe | G156: A | H156: 15.12.1997 | I156: Braunkohle | J156: 0.3928 | K156: 660 | L156: 35.16719478
C157: Ja | D157: BNA0785 | E157: Lausitz Energie Kraftwerke AG | F157: KW Jänschwalde | G157: A | H157: 01.10.1981 | I157: Braunkohle | J157: 0.3904 | K157: 409.2 | L157: 35.37293573
C158: Ja | D158: BNA0786 | E158: Lausitz Energie Kraftwerke AG | F158: KW Jänschwalde | G158: B | H158: 29.11.1982 | I158: Braunkohle | J158: 0.3904 | K158: 409.2 | L158: 35.37293573
C159: Ja | D159: BNA0787 | E159: Lausitz Energie Kraftwerke AG | F159: KW Jänschwalde | G159: C | H159: 01.02.1984 | I159: Braunkohle | J159: 0.3904 | K159: 409.2 | L159: 35.37293573
C160: Ja | D160: BNA0788 | E160: Lausitz Energie Kraftwerke AG | F160: KW Jänschwalde | G160: D | H160: 06.10.1985 | I160: Braunkohle | J160: 0.3904 | K160: 409.2 | L160: 35.37293573
C161: Ja | D161: BNA0878 | E161: Uniper Kraftwerke GmbH | F161: Schkopau | G161: A | H161: 01.01.1996 | I161: Braunkohle | J161: 0.3904 | K161: 396 | L161: 35.37293573
C162: Ja | D162: BNA0879 | E162: Uniper Kraftwerke GmbH | F162: Schkopau | G162: B | H162: 01.01.1996 | I162: Braunkohle | J162: 0.3904 | K162: 396 | L162: 35.37293573
C163: Ja | D163: BNA0100 | E163: Stadtwerke Bielefeld GmbH | F163: GuD Kraftwerk Hillegossen | G163: GuD | H163: 02.01.2005 | I163: GuD | J163: 0.5625 | K163: 32.5815 | L163: 35.39882832
C164: Ja | D164: BNA0214 | E164: Stadtwerke Duisburg AG | F164: HKW III/B | G164: HKW III/B | H164: 24.10.2005 | I164: GuD | J164: 0.5625 | K164: 203.58 | L164: 35.39882832
C165: Ja | D165: BNA0261a | E165: Erlanger Stadtwerke AG | F165: HKW Erlangen | G165: GuD I | H165: 14.09.2005 | I165: GuD | J165: 0.5625 | K165: 18.792 | L165: 35.39882832
C166: Ja | D166: BNA0614b | E166: BASF SE | F166: Kraftwerk Mitte | G166: GUD A 800 GT 11, GT 12, DT 10 | H166: 12.05.2005 | I166: GuD | J166: 0.5625 | K166: 432.825 | L166: 35.39882832
C167: Ja | D167: BNA0685 | E167: Stadtwerke Münster GmbH | F167: Heizkraftwerk Hafen | G167: GuD | H167: 14.12.2005 | I167: GuD | J167: 0.5625 | K167: 90.6018 | L167: 35.39882832
C168: Ja | D168: BNA0742 | E168: N-ERGIE AG | F168: HKW Sandreuth | G168: GuD 1 | H168: 05.01.2005 | I168: GuD | J168: 0.5625 | K168: 65.25 | L168: 35.39882832
C169: Ja | D169: BNA0743 | E169: N-ERGIE AG | F169: HKW Sandreuth | G169: GuD 2 | H169: 05.01.2005 | I169: GuD | J169: 0.5625 | K169: 65.25 | L169: 35.39882832
C170: Ja | D170: BNA0861a | E170: Energie SaarLorLux AG | F170: HKW Römerbrücke | G170: GuD-Anlage | H170: 01.06.2005 | I170: GuD | J170: 0.5625 | K170: 65.25 | L170: 35.39882832
C171: Ja | D171: BNA1082 | E171: WSW Energie & Wasser AG | F171: HKW Barmen | G171: Block 1 | H171: 38716 | I171: GuD | J171: 0.5625 | K171: 76.57653 | L171: 35.39882832
C172: Ja | D172: BNA1088 | E172: Heizkraftwerk Würzburg GmbH | F172: Heizkraftwerke an der Friedensbrücke | G172: GTI | H172: 01.01.2005 | I172: GuD | J172: 0.5625 | K172: 38.715 | L172: 35.39882832
C173: Ja | D173: BNA1293a | E173: Martinswerk GmbH | F173: Kraftwerk | G173: K1/TG1 | H173: 01.02.1995 | I173: Braunkohle | J173: 0.388 | K173: 8.8 | L173: 35.58122193
C174: Ja | D174: BNA1293b | E174: Martinswerk GmbH | F174: Kraftwerk | G174: K2/TG2 | H174: 01.02.1995 | I174: Braunkohle | J174: 0.388 | K174: 8.8 | L174: 35.58122193
C175: Ja | D175: BNA0546 | E175: RheinEnergie AG | F175: HKW Merkenich | G175: GuD | H175: 27.01.2004 | I175: GuD | J175: 0.558 | K175: 93.96 | L175: 35.67220597
C176: Ja | D176: BNA0684a | E176: SWM Services GmbH | F176: Süd GT 61 | G176: 2 | H176: 30.09.2004 | I176: GuD | J176: 0.558 | K176: 108.663 | L176: 35.67220597
C177: Ja | D177: BNA0684b | E177: SWM Services GmbH | F177: Süd GT 62 | G177: 2 | H177: 30.09.2004 | I177: GuD | J177: 0.558 | K177: 107.793 | L177: 35.67220597
C178: Ja | D178: BNA0684c | E178: SWM Services GmbH | F178: Süd DT60 | G178: 2 | H178: 30.09.2004 | I178: GuD | J178: 0.558 | K178: 111.012 | L178: 35.67220597
C179: Ja | D179: BNA0123 | E179: Lausitz Energie Kraftwerke AG | F179: Boxberg | G179: P | H179: 01.07.1980 | I179: Braunkohle | J179: 0.3856 | K179: 409.2 | L179: 35.7921009
C180: Ja | D180: BNA1002 | E180: Mitteldeutsche Braunkohlengesellschaft mbH | F180: Wählitz | H180: 25.08.1994 | I180: Braunkohle | J180: 0.3856 | K180: 27.28 | L180: 35.7921009
C181: Ja | D181: BNA0499 | E181: Infraserv GmbH & Co. Höchst KG | F181: Heizkraftwerk | G181: Block A | H181: 26.11.2003 | I181: GuD | J181: 0.5535 | K181: 74.82 | L181: 35.95002878
C182: Ja | D182: BNA0658 | E182: Evonik Degussa GmbH | F182: Kraftwerk III | G182: Block 311 | H182: 22.11.1973 | I182: GuD | J182: 0.5535 | K182: 53.1831 | L182: 35.95002878
C183: Ja | D183: BNA1196b | E183: MVV Energie AG | F183: Industriekraftwerk Ludwigshafen | G183: GuD | H183: 01.03.2003 | I183: GuD | J183: 0.5535 | K183: 10.4052 | L183: 35.95002878
C184: Ja | D184: BNA0122 | E184: Lausitz Energie Kraftwerke AG | F184: Boxberg | G184: N | H184: 01.01.1979 | I184: Braunkohle | J184: 0.3832 | K184: 409.2 | L184: 36.00562137
C185: Ja | D185: BNA1400a | E185: Südzucker AG, Werk Zeitz | F185: EZ1 | G185: WSK | H185: 01.09.1993 | I185: Braunkohle | J185: 0.3832 | K185: 20.504 | L185: 36.00562137
C186: Ja | D186: BNA0270 | E186: Stadtwerke Flensburg GmbH | F186: Heizkraftwerk FL | G186: Block 11 | H186: 02.06.1992 | I186: Steinkohle | J186: 0.504 | K186: 24.49 | L186: 36.12119801
C187: Ja | D187: BNA1334 | E187: CR3-Kaffeeveredelung M. Hermsen GmbH | F187: KWK-Anlage | G187: GT 1-3, DT | H187: 1993 und 2002 | I187: GuD | J187: 0.549 | K187: 12.876 | L187: 36.23240607
C188: Ja | D188: BNA1141 | E188: Pfeifer & Langen GmbH & Co. KG | F188: P&L Werk Euskirchen | G188: Kessel 4 / 6 | H188: 01.12.1991 | I188: Braunkohle | J188: 0.3784 | K188: 12.76 | L188: 36.44078781
C189: Ja | D189: BNA0172a | E189: Wacker Chemie AG | F189: Burghausen 01 - GT | H189: 27.07.2001 | I189: GuD | J189: 0.5445 | K189: 104.4 | L189: 36.51945074
C190: Ja | D190: BNA1183 | E190: RheinEnergie AG | F190: HKW Merheim | G190: GuD | H190: 08.03.2001 | I190: GuD | J190: 0.5445 | K190: 13.746 | L190: 36.51945074
C191: Ja | E191: Nicht-EEG-Anlagen < 10 MW | I191: Braunkohle | J191: 0.376 | K191: 19.56592 | L191: 36.66253752
C192: Ja | D192: BNA0105 | E192: envia THERM GmbH | F192: GuD Bitterfeld | H192: 04.08.2000 | I192: GuD | J192: 0.54 | K192: 92.22 | L192: 36.8112795
C193: Ja | D193: BNA0199 | E193: RWE Generation SE | F193: Dormagen | G193: GuD | H193: 01.07.2000 | I193: GuD | J193: 0.54 | K193: 509.82 | L193: 36.8112795
C194: Ja | D194: BNA0220 | E194: Stadtwerke Düsseldorf AG | F194: GuD | G194: AGuD | H194: 28.07.2000 | I194: GuD | J194: 0.54 | K194: 87 | L194: 36.8112795
C195: Ja | D195: BNA0397 | E195: ThyssenKrupp Steel Europe AG | F195: Duisburg Hamborn 5 | G195: Block 5 | H195: 01.01.2003 | I195: GuD | J195: 0.54 | K195: 195.75 | L195: 36.8112795
C196: Ja | D196: BNA0626 | E196: Kraftwerke Mainz-Wiesbaden AG | F196: Kraftwerk Mainz | G196: KW3 | H196: 23.05.2000 | I196: GuD | J196: 0.54 | K196: 377.754 | L196: 36.8112795
C197: Ja | D197: BNA1450 | E197: DREWSEN SPEZIALPAPIERE GmbH & Co. KG | F197: GUD-Anlage DREWSEN | H197: 01.09.2000 | I197: GuD | J197: 0.54 | K197: 11.31 | L197: 36.8112795
C198: Ja | D198: BNA0523 | E198: Städtische Werke Energie + Wärme GmbH | F198: FKK | H198: 21.12.1989 | I198: Braunkohle | J198: 0.3736 | K198: 29.48 | L198: 36.88713626
C199: Ja | D199: BNA0271 | E199: Stadtwerke Flensburg GmbH | F199: Heizkraftwerk FL | G199: Block 10 | H199: 23.01.1989 | I199: Steinkohle | J199: 0.4905 | K199: 26.07 | L199: 37.07957961
C200: Ja | D200: BNA0498 | E200: Infraserv GmbH & Co. Höchst KG | F200: Heizkraftwerk | G200: Block B | H200: 21.08.1989 | I200: Steinkohle | J200: 0.4905 | K200: 52.14 | L200: 37.07957961
C201: Ja | D201: BNA0256a | E201: SWE Energie GmbH | F201: HKW Erfurt-Ost | G201: GT1 | H201: 17.12.1999 | I201: GuD | J201: 0.5355 | K201: 66.555 | L201: 37.10801294
C202: Ja | D202: BNA0857 | E202: Opel Automobile GmbH | F202: GuD-Anlage Rüsselsheim | G202: M120 | H202: 10.09.1999 | I202: GuD | J202: 0.5355 | K202: 97.527 | L202: 37.10801294
C203: Ja | D203: BNA0177 | E203: eins - energie in sachsen GmbH & Co. KG | F203: HKW Chemnitz Nord II | G203: Block B | H203: 01.09.1988 | I203: Braunkohle | J203: 0.3712 | K203: 49.984 | L203: 37.1146393
C204: Ja | D204: BNA0292 | E204: RWE Power AG | F204: Frechen/Wachtberg | G204: Frechen/Wachtberg | H204: 01.01.1959 | I204: Braunkohle | J204: 0.3712 | K204: 154.88 | L204: 37.1146393
C205: Ja | D205: BNA0592 | E205: InfraLeuna GmbH | F205: GuD Leuna | H205: 01.10.1998 | I205: GuD | J205: 0.531 | K205: 33.93 | L205: 37.40977576
C206: Ja | D206: BNA0615 | E206: BASF SE | F206: Kraftwerk Süd | G206: GUD C 200 GT 1, GT 2, DT 1 | H206: 14.07.1997 | I206: GuD | J206: 0.5265 | K206: 356.7 | L206: 37.71669692
... 347 more rows

Sheet Hilfssheet Abbildung (hidden)
C2: Abfall | D2: Kernenergie | E2: Braunkohle | F2: Steinkohle | G2: GuD | H2: Gasturbine | I2: Öl
B3: Minimalwert | C3: =MIN(IF(Kraftwerksliste!$R$11:$R$553='Hilfssheet Abbildung'!C2,Kraftwerksliste!$Z$11:$Z$553,"fail")) -> 1 | D3: =MIN(IF(Kraftwerksliste!$R$11:$R$553='Hilfssheet Abbildung'!D2,Kraftwerksliste!$Z$11:$Z$553,"fail")) -> 17.86666667 | E3: =MIN(IF(Kraftwerksliste!$R$11:$R$553='Hilfssheet Abbildung'!E2,Kraftwerksliste!$Z$11:$Z$553,"fail")) -> 32.01806759 | F3: =MIN(IF(Kraftwerksliste!$R$11:$R$553='Hilfssheet Abbildung'!F2,Kraftwerksliste!$Z$11:$Z$553,"fail")) -> 36.12119801 | G3: =MIN(IF(Kraftwerksliste!$R$11:$R$553='Hilfssheet Abbildung'!G2,Kraftwerksliste!$Z$11:$Z$553,"fail")) -> 32.65701132 | H3: =MIN(IF(Kraftwerksliste!$R$11:$R$553='Hilfssheet Abbildung'!H2,Kraftwerksliste!$Z$11:$Z$553,"fail")) -> 46.79272558 | I3: =MIN(IF(Kraftwerksliste!$R$11:$R$553='Hilfssheet Abbildung'!I2,Kraftwerksliste!$Z$11:$Z$553,"fail")) -> 102.7439303
B4: erstes Quartil | C4: =_xlfn.QUARTILE.INC(IF(Kraftwerksliste!$R$11:$R$553='Hilfssheet Abbildung'!C2,Kraftwerksliste!$Z$11:$Z$553,"fail"),1) -> 1 | D4: =_xlfn.QUARTILE.INC(IF(Kraftwerksliste!$R$11:$R$553='Hilfssheet Abbildung'!D2,Kraftwerksliste!$Z$11:$Z$553,"fail"),1) -> 17.86666667 | E4: =_xlfn.QUARTILE.INC(IF(Kraftwerksliste!$R$11:$R$553='Hilfssheet Abbildung'!E2,Kraftwerksliste!$Z$11:$Z$553,"fail"),1) -> 34.66397476 | F4: =_xlfn.QUARTILE.INC(IF(Kraftwerksliste!$R$11:$R$553='Hilfssheet Abbildung'!F2,Kraftwerksliste!$Z$11:$Z$553,"fail"),1) -> 40.51761743 | G4: =_xlfn.QUARTILE.INC(IF(Kraftwerksliste!$R$11:$R$553='Hilfssheet Abbildung'!G2,Kraftwerksliste!$Z$11:$Z$553,"fail"),1) -> 38.02890983 | H4: =_xlfn.QUARTILE.INC(IF(Kraftwerksliste!$R$11:$R$553='Hilfssheet Abbildung'!H2,Kraftwerksliste!$Z$11:$Z$553,"fail"),1) -> 51.52488323 | I4: =_xlfn.QUARTILE.INC(IF(Kraftwerksliste!$R$11:$R$553='Hilfssheet Abbildung'!I2,Kraftwerksliste!$Z$11:$Z$553,"fail"),1) -> 107.4624894
B5: Median | C5: =_xlfn.QUARTILE.INC(IF(Kraftwerksliste!$R$11:$R$553='Hilfssheet Abbildung'!C2,Kraftwerksliste!$Z$11:$Z$553,"fail"),2) -> 1 | D5: =_xlfn.QUARTILE.INC(IF(Kraftwerksliste!$R$11:$R$553='Hilfssheet Abbildung'!D2,Kraftwerksliste!$Z$11:$Z$553,"fail"),2) -> 17.86666667 | E5: =_xlfn.QUARTILE.INC(IF(Kraftwerksliste!$R$11:$R$553='Hilfssheet Abbildung'!E2,Kraftwerksliste!$Z$11:$Z$553,"fail"),2) -> 35.7921009 | F5: =_xlfn.QUARTILE.INC(IF(Kraftwerksliste!$R$11:$R$553='Hilfssheet Abbildung'!F2,Kraftwerksliste!$Z$11:$Z$553,"fail"),2) -> 44.63304642 | G5: =_xlfn.QUARTILE.INC(IF(Kraftwerksliste!$R$11:$R$553='Hilfssheet Abbildung'!G2,Kraftwerksliste!$Z$11:$Z$553,"fail"),2) -> 48.86237191 | H5: =_xlfn.QUARTILE.INC(IF(Kraftwerksliste!$R$11:$R$553='Hilfssheet Abbildung'!H2,Kraftwerksliste!$Z$11:$Z$553,"fail"),2) -> 54.08488566 | I5: =_xlfn.QUARTILE.INC(IF(Kraftwerksliste!$R$11:$R$553='Hilfssheet Abbildung'!I2,Kraftwerksliste!$Z$11:$Z$553,"fail"),2) -> 113.3228099
B6: Drittes Quartil | C6: =_xlfn.QUARTILE.INC(IF(Kraftwerksliste!$R$11:$R$553='Hilfssheet Abbildung'!C2,Kraftwerksliste!$Z$11:$Z$553,"fail"),3) -> 1 | D6: =_xlfn.QUARTILE.INC(IF(Kraftwerksliste!$R$11:$R$553='Hilfssheet Abbildung'!D2,Kraftwerksliste!$Z$11:$Z$553,"fail"),3) -> 17.86666667 | E6: =_xlfn.QUARTILE.INC(IF(Kraftwerksliste!$R$11:$R$553='Hilfssheet Abbildung'!E2,Kraftwerksliste!$Z$11:$Z$553,"fail"),3) -> 40.36445326 | F6: =_xlfn.QUARTILE.INC(IF(Kraftwerksliste!$R$11:$R$553='Hilfssheet Abbildung'!F2,Kraftwerksliste!$Z$11:$Z$553,"fail"),3) -> 47.18400925 | G6: =_xlfn.QUARTILE.INC(IF(Kraftwerksliste!$R$11:$R$553='Hilfssheet Abbildung'!G2,Kraftwerksliste!$Z$11:$Z$553,"fail"),3) -> 51.45570063 | H6: =_xlfn.QUARTILE.INC(IF(Kraftwerksliste!$R$11:$R$553='Hilfssheet Abbildung'!H2,Kraftwerksliste!$Z$11:$Z$553,"fail"),3) -> 62.54968021 | I6: =_xlfn.QUARTILE.INC(IF(Kraftwerksliste!$R$11:$R$553='Hilfssheet Abbildung'!I2,Kraftwerksliste!$Z$11:$Z$553,"fail"),3) -> 123.2096634
B7: Maximalwert | C7: =MAX(IF(Kraftwerksliste!$R$11:$R$553='Hilfssheet Abbildung'!C2,Kraftwerksliste!$Z$11:$Z$553,"fail")) -> 1 | D7: =MAX(IF(Kraftwerksliste!$R$11:$R$553='Hilfssheet Abbildung'!D2,Kraftwerksliste!$Z$11:$Z$553,"fail")) -> 17.86666667 | E7: =MAX(IF(Kraftwerksliste!$R$11:$R$553='Hilfssheet Abbildung'!E2,Kraftwerksliste!$Z$11:$Z$553,"fail")) -> 67.16769974 | F7: =MAX(IF(Kraftwerksliste!$R$11:$R$553='Hilfssheet Abbildung'!F2,Kraftwerksliste!$Z$11:$Z$553,"fail")) -> 76.78337118 | G7: =MAX(IF(Kraftwerksliste!$R$11:$R$553='Hilfssheet Abbildung'!G2,Kraftwerksliste!$Z$11:$Z$553,"fail")) -> 107.4338385 | H7: =MAX(IF(Kraftwerksliste!$R$11:$R$553='Hilfssheet Abbildung'!H2,Kraftwerksliste!$Z$11:$Z$553,"fail")) -> 70.08728598 | I7: =MAX(IF(Kraftwerksliste!$R$11:$R$553='Hilfssheet Abbildung'!I2,Kraftwerksliste!$Z$11:$Z$553,"fail")) -> 133.6412171
C10: Abfall | D10: Kernenergie | E10: Braunkohle | F10: Steinkohle | G10: GuD | H10: Gasturbine | I10: Öl
B11: Q1-Minimum | E11: =E4-E3 -> 2.645907171 | F11: 4.396419414 | G11: 5.371898504 | H11: 4.732157651 | I11: =I4-I3 -> 4.718559087
B12: Q1 | C12: =C4 -> 1 | D12: =D4 -> 17.86666667 | E12: =E4 -> 34.66397476 | F12: 40.51761743 | G12: 38.02890983 | H12: 51.52488323 | I12: =I4 -> 107.4624894
B13: Median-Q1 | C13: =C5-C4+0.1 -> 0.1 | D13: =D5-D4+0.1 -> 0.1 | E13: =E5-E4 -> 1.12812614 | F13: 4.115428989 | G13: 10.83346208 | H13: 2.560002435 | I13: =I5-I4 -> 5.860320518
B14: Q3-Median | C14: =C6-C5+0.1 -> 0.1 | D14: =D6-D5+0.1 -> 0.1 | E14: =E6-E5 -> 4.572352357 | F14: 2.550962832 | G14: 2.593328721 | H14: 8.464794551 | I14: =I6-I5 -> 9.886853505
B15: Maximum-Q3 | E15: =E7-E6 -> 26.80324648 | F15: 29.59936193 | G15: 55.97813787 | H15: 7.537605765 | I15: =I7-I6 -> 10.43155367
B18: Teil der Merit Order? | C18: Angenommener Hauptenergieträger | D18: Zuordnung Kraftwerkstyp
B19: Ja | C19: Abfall | D19: Abfall
B20: Nein | C20: Kernenergie | D20: Kernenergie
C21: Braunkohle | D21: Braunkohle
C22: Steinkohle | D22: Steinkohle
C23: Erdgas | D23: GuD
C24: Öl | D24: Gasturbine
C25: Sonstige | D25: Öl
D26: Sonstige
